Workbook

Sheet Capa
B2: Planilha de fundamentos - CPTS11
B3: Março/2022
B19: Conteúdo
B20: Carteira CRI
B21: Gráficos Carteira CRI
B22: Carteira FII
B23: Compromissadas
B24: Resultado Caixa
B25: Dividendos
B26: Rentabilidade
B27: Movimentações
B30: “As informações contidas nesta apresentação não podem ser consideradas como única fonte de informações no processo decisório do investidor, que, antes de tomar qualquer decisão, deverá realizar uma avaliação minuciosa do produto e respectivos riscos, face aos seus objetivos pessoais e ao seu perfil de risco ("Suitability"). RENTABILIDADE PASSADA NÃO REPRESENTA GARANTIA DE RENTABILIDADE FUTURA. Assim, não é possível prever o desempenho futuro de um investimento a partir da variação de seu valor de mercado no passado. A Capitânia não assume que os investidores vão obter lucros, nem se responsabiliza pelas perdas. FUNDOS DE INVESTIMENTO NÃO CONTAM COM GARANTIA DO ADMINISTRADOR, DO GESTOR, DE QUALQUER MECANISMO DE SEGURO OU FUNDO GARANTIDOR DE CRÉDITO – FGC. É recomendada a leitura cuidadosa do Formulário de Informações Complementares e regulamento do fundo de investimento pelo investidor ao aplicar seus recursos. Não é autorizada a sua reprodução ou disponibilidade para circulação sem prévia autorização da Capitânia.”

Sheet Carteira CRI
B2: Planilha de fundamentos - CPTS11
B3: =Data -> Março/2022
A4: Capa
B5: Ativo | C5: Código B3 | D5: Segmento | E5: Devedor | F5: Indexador | G5: Taxa de Emissão | H5: PU (R$) | I5: Quantidade | J5: Volume (R$) | K5: % Ativos | L5: Duration (anos) | M5: Taxa poderada de Aquisição (a.a.) | N5: Taxa MtM (a.a.) | O5: Spread Over (a.a.) | P5: Taxa Nominal (a.a.) | Q5: LTV | S5: Segmento | T5: Volume (R$) | U5: % Ativos | V5: Duration (anos) | W5: Taxa poderada de Aquisição inflação + (a.a.) | X5: Taxa MtM inflação + (a.a.) | Y5: Taxa poderada de Aquisição CDI + (a.a.) | Z5: Taxa MtM CDI + (a.a.) | AA5: Spread Over (a.a.) | AB5: Taxa Nominal (a.a.) | AC5: LTV
B6: CRI GTIS True 447S 1E | C6: 21J0043571 | D6: Logístico/Industrial | E6: GTIS Logística FII | F6: IPCA + | G6: 0.0593 | H6: 1065.908185 | I6: 176209 | J6: 187822615.4 | K6: 0.06042854438 | L6: 8.300869 | M6: 0.0593 | N6: 0.05821 | O6: 0.01015453731 | P6: 0.1239165247 | Q6: 0.4460620236 | S6: Logístico/Industrial | T6: 852074020.9 | U6: 0.2741394729 | V6: 6.536275972 | W6: 0.0690668455 | X6: 0.0683435844 | Y6: - | Z6: - | AA6: 0.02203013193 | AB6: 0.1372048536 | AC6: 0.6109887012
B7: CRI Vinci Shoppings Virgo 366S 4E | C7: 21I0682465 | D7: Shopping | E7: Vinci Shoppings FII | F7: IPCA + | G7: 0.0625 | H7: 1075.096359 | I7: 160500 | J7: 172552965.6 | K7: 0.05551580951 | L7: 6.696061 | M7: 0.06248410146 | N7: 0.062022 | O7: 0.01572229877 | P7: 0.1298898813 | Q7: 0.5027866699 | S7: Shopping | T7: 509381592.9 | U7: 0.1638843551 | V7: 6.292663344 | W7: 0.06072149853 | X7: 0.0616150394 | Y7: 0.015 | Z7: 0.030279 | AA7: 0.01564106182 | AB7: 0.1303836612 | AC7: 0.4145880293
B8: CRI Assai TRX Barisec 93S 1E | C8: 21I0277341 | D8: Varejo | E8: Assaí | F8: IPCA + | G8: 0.051 | H8: 997.4237878 | I8: 148277 | J8: 147895007 | K8: 0.04758255534 | L8: 8.316586 | M8: 0.057 | N8: 0.058041 | O8: 0.0156861444 | P8: 0.1300850415 | Q8: 0.7987384495 | S8: Varejo | T8: 406164125 | U8: 0.1306759934 | V8: 7.10147011 | W8: 0.05994025156 | X8: 0.06051510986 | Y8: - | Z8: - | AA8: 0.01474564873 | AB8: 0.1290229343 | AC8: 0.7481950471
B9: CRI Gazit True Sec 340S 1E | C9: 21E0407810 | D9: Shopping | E9: Gazit Malls FII | F9: IPCA + | G9: 0.058926 | H9: 1166.443939 | I9: 98126 | J9: 114458478 | K9: 0.03682495423 | L9: 8.183486 | M9: 0.058897 | N9: 0.058053 | O9: 0.01040778021 | P9: 0.1241562207 | Q9: N/A | S9: Comercial | T9: 185190068.7 | U9: 0.05958156988 | V9: 6.189066085 | W9: 0.05951883724 | X9: 0.06349106808 | Y9: - | Z9: - | AA9: 0.01653855484 | AB9: 0.1310369277 | AC9: 0.6943143682
B10: CRI HBR ComVem Habitasec 242S 1E | C10: 21G0507867 | D10: Varejo | E10: HBR | F10: IPCA + | G10: 0.05 | H10: 1014.668376 | I10: 112217 | J10: 113863041.1 | K10: 0.03663338315 | L10: 6.246879 | M10: 0.056 | N10: 0.054165 | O10: 0.008744898641 | P10: 0.1222124473 | Q10: 0.817050585 | S10: Educacional | T10: 32808173.12 | U10: 0.01055543892 | V10: 5.182726 | W10: 0.056 | X10: 0.053486 | Y10: - | Z10: - | AA10: 0.008798195106 | AB10: 0.1224324684 | AC10: 0.6280860502
B11: CRI Via Varejo Extrema Habitasec 1E 258S | C11: 21G0864354 | D11: Logístico/Industrial | E11: Via Varejo | F11: IPCA + | G11: 0.085 | H11: 1073.304525 | I11: 99500 | J11: 106793800.2 | K11: 0.03435898218 | L11: 5.921672 | M11: 0.08458555432 | N11: 0.085023 | O11: 0.0382363432 | P11: 0.1548185669 | Q11: 0.8026684947 | S11: Residencial | T11: 34476533.45 | U11: 0.01109220382 | V11: 1.4 | W11: 0.06 | X11: 0.06 | Y11: - | Z11: - | AA11: 0.004797433785 | AB11: 0.1324561574 | AC11: 0.749
B12: CRI Marabraz Opea Sec 1E 423S | C12: 22A0699149 | D12: Logístico/Industrial | E12: Leo Madeiras | F12: IPCA + | G12: 0.07 | H12: 1020.662663 | I12: 100000 | J12: 102066266.3 | K12: 0.03283798326 | L12: 6.294693 | M12: 0.07 | N12: 0.068202 | O12: 0.02031148561 | P12: 0.1351585191 | Q12: 0.6499837504 | S12: Loteamento | T12: 906333.3555 | U12: 0.0002915964367 | V12: 0.821173 | W12: 0.09 | X12: 0.090261 | Y12: - | Z12: - | AA12: 0.06955167909 | AB12: 0.2053906659 | AC12: 0.735377482
B13: CRI Pátio Malzoni Virgo 329S 4E | C13: 21I0931497 | D13: Comercial | E13: Pátio Malzoni | F13: IPCA + | G13: 0.059193 | H13: 1031.899248 | I13: 98658 | J13: 101805116 | K13: 0.03275396287 | L13: 7.235043 | M13: 0.059193 | N13: 0.063444 | O13: 0.0155896692 | P13: 0.1296672736 | Q13: 0.6623292819
B14: CRI JSL Habitasec 291S 1E | C14: 21K0728271 | D14: Logístico/Industrial | E14: JSL | F14: IPCA + | G14: 0.085 | H14: 1025.261144 | I14: 91004 | J14: 93302865.15 | K14: 0.03001851675 | L14: 6.13875 | M14: 0.08499620171 | N14: 0.091486 | O14: 0.04432221231 | P14: 0.1616272507 | Q14: 0.6599908406 | S14: Total | T14: 2021000847 | U14: 0.6502206304 | V14: 6.444490603 | W14: 0.06392853721 | X14: 0.06428232033 | Y14: 0.015 | Z14: 0.030279 | AA14: 0.01796515343 | AB14: 0.1329858524 | AC14: 0.599384706
B15: CRI Hypera True Sec 392S 1E | C15: 21E0514204 | D15: Logístico/Industrial | E15: Hypera | F15: IPCA + | G15: 0.056 | H15: 1105.484869 | I15: 71174 | J15: 78681780.07 | K15: 0.02531444591 | L15: 6.036714 | M15: 0.06399388735 | N15: 0.054488 | O15: 0.01407087311 | P15: 0.1279268161 | Q15: 0.6516428238
B16: CRI TRX Assaí II Bari 98S 1E | C16: 21K0665223 | D16: Varejo | E16: Assaí | F16: IPCA + | G16: 0.06 | H16: 967.2939853 | I16: 74253 | J16: 71824480.29 | K16: 0.02310823319 | L16: 8.051894 | M16: 0.0674069411 | N16: 0.068726 | O16: 0.0193069804 | P16: 0.1340214562 | Q16: 0.7242916991
B17: CRI XP Industrial True 446S 1E | C17: 21J0790766 | D17: Logístico/Industrial | E17: XPIN FII | F17: IPCA + | G17: 0.065 | H17: 1078.53492 | I17: 55476 | J17: 59832803.22 | K17: 0.01925012702 | L17: 6.365253 | M17: 0.065 | N17: 0.059989 | O17: 0.01411631185 | P17: 0.1283506399 | Q17: 0.9376793614
B18: CRI "BR Malls" RB Capital 99S 1E | C18: 14C0072810 | D18: Shopping | E18: BR Malls | F18: IPCA + | G18: 0.0704 | H18: 412857.9567 | I18: 144 | J18: 59451545.76 | K18: 0.0191274643 | L18: 3.511076 | M18: 0.053903 | N18: 0.062835 | O18: 0.01799398414 | P18: 0.1357854736 | Q18: 0.7278809227
B19: CRI BRF PE Isec 99S 4E | C19: 21A0709253 | D19: Logístico/Industrial | E19: BRF | F19: IPCA + | G19: 0.0525 | H19: 1058.190971 | I19: 55920 | J19: 59174039.09 | K19: 0.01903818153 | L19: 6.979825 | M19: 0.05249678562 | N19: 0.055047 | O19: 0.01104748141 | P19: 0.1245304814 | Q19: 0.4862854343
B20: CRI HBR Habitasec 148S 1E | C20: 19G0228153 | D20: Comercial | E20: HBR | F20: IPCA + | G20: 0.06 | H20: 914.1222452 | I20: 47458 | J20: 43382413.52 | K20: 0.01395751036 | L20: 5.349404 | M20: 0.05884447531 | N20: 0.070137 | O20: 0.02384552411 | P20: 0.1390905133 | Q20: 0.7591087554
B21: CRI GSFI True 236S 1E | C21: 20G0800227 | D21: Shopping | E21: General Shopping FII | F21: IPCA + | G21: 0.05 | H21: 1.123032892 | I21: 37673256 | J21: 42308305.64 | K21: 0.01361193549 | L21: 5.73798 | M21: 0.05165888439 | N21: 0.051362 | O21: 0.005003448007 | P21: 0.117864979 | Q21: 0.4754251172
B22: FII Unidades Autônomas | C22: IDFI11 | D22: Residencial | E22: Helbor | F22: IPCA + | G22: 0.06 | H22: 101.95 | I22: 338171 | J22: 34476533.45 | K22: 0.01109220382 | L22: 1.4 | M22: 0.06 | N22: 0.06 | O22: 0.004797433785 | P22: 0.1324561574 | Q22: 0.749
B23: CRI Plural Renda Urbana Travessia Sec 1E 82S | C23: 21H0862845 | D23: Shopping | E23: Plural Renda Urbana FII | F23: IPCA + | G23: 0.065 | H23: 1071.10642 | I23: 31048 | J23: 33255712.13 | K23: 0.01069942654 | L23: 6.151809 | M23: 0.065 | N23: 0.065297 | O23: 0.01834421164 | P23: 0.1327637653 | Q23: 0.3972003553
B24: CRI Vinci Renda Urbana Virgo 280S 4E | C24: 21G0093703 | D24: Educacional | E24: Vinci Renda Urbana FII | F24: IPCA + | G24: 0.056 | H24: 1108.384227 | I24: 29600 | J24: 32808173.12 | K24: 0.01055543892 | L24: 5.182726 | M24: 0.056 | N24: 0.053486 | O24: 0.008798195106 | P24: 0.1224324684 | Q24: 0.6280860502
B25: CRI Makro RB Sec 422S 1E | C25: 21L0666509 | D25: Varejo | E25: CSHG Renda Urbana FII | F25: IPCA + | G25: 0.065 | H25: 0.9972782 | I25: 32684287 | J25: 32595326.91 | K25: 0.01048695949 | L25: 4.597448 | M25: 0.065 | N25: 0.06775 | O25: 0.01509111495 | P25: 0.1300435591 | Q25: 0.55578105
B26: CRI Hedge Viracopos True 478S 1E | C26: 21L0355069 | D26: Logístico/Industrial | E26: Hedge Logística FII | F26: IPCA + | G26: 0.0675 | H26: 1008.600336 | I26: 32000 | J26: 32275210.75 | K26: 0.01038396788 | L26: 4.430515 | M26: 0.0675 | N26: 0.070049 | O26: 0.02330716481 | P26: 0.1393654151 | Q26: 0.5140797235
B27: CRI Hedge Viracopos True 479S 1E | C27: 21L0355178 | D27: Logístico/Industrial | E27: Hedge Logística FII | F27: IPCA + | G27: 0.0675 | H27: 1008.600336 | I27: 32000 | J27: 32275210.75 | K27: 0.01038396788 | L27: 4.430515 | M27: 0.0675 | N27: 0.070049 | O27: 0.02330716481 | P27: 0.1393654151 | Q27: 0.5140797235
B28: CRI Athena l Virgo 4E 335S | C28: 21H0700312 | D28: Comercial | E28: Athena FII | F28: IPCA + | G28: 0.0625 | H28: 1097.650224 | I28: 26017 | J28: 28557565.88 | K28: 0.009187882583 | L28: 4.106764 | M28: 0.06251394143 | N28: 0.05726 | O28: 0.01128051726 | P28: 0.1264350157 | Q28: 0.6803484087
B29: CRI DutraLog TrueSec 401S 1E | C29: 21F1076305 | D29: Logístico/Industrial | E29: DutraLog | F29: IPCA + | G29: 0.08 | H29: 1101.861918 | I29: 25000 | J29: 27546547.94 | K29: 0.008862605768 | L29: 4.957592 | M29: 0.079914 | N29: 0.076906 | O29: 0.03163443299 | P29: 0.1480114054 | Q29: 0.513484423
B30: CRI Madureira Shopping RBSec 468S 1E | C30: 21L0736589 | D30: Shopping | E30: Malls Brasil Plural FII | F30: IPCA + | G30: 0.065 | H30: 1022.969325 | I30: 26472 | J30: 27080043.98 | K30: 0.00871251652 | L30: 4.945903 | M30: 0.065 | N30: 0.065317 | O30: 0.0183673406 | P30: 0.1332677538 | Q30: 0.9262153215
B31: CRI Frio Peças Habitasec 310S 1E | C31: 22B0582974 | D31: Logístico/Industrial | E31: Frio Peças | F31: IPCA + | G31: 0.075 | H31: 1041.02999 | I31: 25000 | J31: 26025749.75 | K31: 0.008373316335 | L31: 10.684275 | M31: 0.07518910568 | N31: 0.071891 | O31: 0.02359395406 | P31: 0.1404445514 | Q31: 0.7377668243
B32: CRI Verticale RB Sec 383S 1E | C32: 21I0277499 | D32: Varejo | E32: Grupo Verticale | F32: IPCA + | G32: 0.07 | H32: 1045.394579 | I32: 24183 | J32: 25280777.1 | K32: 0.008133634801 | L32: 5.064246 | M32: 0.07206014627 | N32: 0.067921 | O32: 0.02263360509 | P32: 0.1379005752 | Q32: 0.4184397511
B33: CRI Plural Renda Urbana Travessia Sec 1E 83S | C33: 21H0865631 | D33: Shopping | E33: Plural Renda Urbana FII | F33: IPCA + | G33: 0.065 | H33: 1042.731772 | I33: 22052 | J33: 22994321.04 | K33: 0.007398008735 | L33: 6.197273 | M33: 0.065 | N33: 0.065294 | O33: 0.01832206835 | P33: 0.1327954906 | Q33: 0.2746151991
B34: CRI Vinci Log Castelo RB Sec 472S 1E | C34: 22A0377996 | D34: Logístico/Industrial | E34: Vinci Logística FII | F34: IPCA + | G34: 0.068 | H34: 1007.16756 | I34: 22636 | J34: 22798244.88 | K34: 0.007334924762 | L34: 4.409047 | M34: 0.068 | N34: 0.067299 | O34: 0.02291904751 | P34: 0.1389589843 | Q34: 0.4469616892
B35: CRI BTG Malls FII Vert 1S 8E | C35: 19H0000001 | D35: Shopping | E35: BTG Malls FII | F35: CDI + | G35: 0.015 | H35: 794.1794217 | I35: 25070 | J35: 19910078.1 | K35: 0.006405709107 | L35: 3.532174 | M35: 0.015 | N35: 0.030279 | O35: 0.03027917385 | P35: 0.1494093585 | Q35: 0.3819269735
B36: CRI Jaraguá do Sul Habitasec 32S 1E | C36: 13F0056986 | D36: Shopping | E36: Jaraguá do Sul | F36: IPCA + | G36: 0.06 | H36: 430.0391838 | I36: 40392 | J36: 17370142.71 | K36: 0.005588530632 | L36: 6.357071 | M36: 0.08011991315 | N36: 0.084151 | O36: 0.03742174172 | P36: 0.1542734915 | Q36: 0.5082390269
B37: CRI Hedge Viracopos True 477S 1E | C37: 21L0354209 | D37: Logístico/Industrial | E37: Hedge Logística FII | F37: IPCA + | G37: 0.0675 | H37: 1008.600336 | I37: 16000 | J37: 16137605.38 | K37: 0.005191983939 | L37: 4.430515 | M37: 0.0675 | N37: 0.070049 | O37: 0.02330716481 | P37: 0.1393654151 | Q37: 0.5140797235
B38: CRI GPA RBVA True 346S 1E | C38: 20L0687133 | D38: Varejo | E38: GPA | F38: IPCA + | G38: 0.056 | H38: 1.052346609 | I38: 13974001 | J38: 14705492.57 | K38: 0.004731227431 | L38: 5.908385 | M38: 0.0515 | N38: 0.065694 | O38: 0.01514546634 | P38: 0.1291361508 | Q38: 0.8168697284
B39: CRI Tellus Isec 226S 4E | C39: 21C0549648 | D39: Comercial | E39: Tellus Properties FII | F39: IPCA + | G39: 0.0575 | H39: 1129.809804 | I39: 10130 | J39: 11444973.31 | K39: 0.003682214074 | L39: 5.263441 | M39: 0.0575 | N39: 0.054266 | O39: 0.01040173015 | P39: 0.1241756801 | Q39: 0.7680709695
B40: CRI Grupo AIZ Isec 302S 4E | C40: 21F0569265 | D40: Logístico/Industrial | E40: Grupo AIZ | F40: IPCA + | G40: 0.055 | H40: 969.7027804 | I40: 5000 | J40: 4848513.902 | K40: 0.00155992204 | L40: 2.131935 | M40: 0.055 | N40: 0.052558 | O40: 0.008613983702 | P40: 0.1324872875 | Q40: 0.4164244294
B41: CRI LOG CP Virgo 362S 4E | C41: 21I0278118 | D41: Logístico/Industrial | E41: LOG CP | F41: IPCA + | G41: 0.055212 | H41: 1027.098506 | I41: 2427 | J41: 2492768.074 | K41: 0.0008020032404 | L41: 4.345789 | M41: 0.060821 | N41: 0.063804 | O41: 0.01456938851 | P41: 0.129713588 | Q41: N/A
B42: CRI Colorado SCCI 1S 1E | C42: 14E0026716 | D42: Loteamento | E42: Colorado | F42: IPCA + | G42: 0.0925 | H42: 90633.33555 | I42: 10 | J42: 906333.3555 | K42: 0.0002915964367 | L42: 0.821173 | M42: 0.09 | N42: 0.090261 | O42: 0.06955167909 | P42: 0.2053906659 | Q42: 0.735377482
B43: Total | C43: - | D43: - | E43: - | F43: - | G43: - | H43: - | I43: - | J43: =SUM(J6:J42) -> 2021000847 | K43: =SUM(K6:K42) -> 0.6502206304 | L43: =SUMPRODUCT(J6:J42,L6:L42)/J43 -> 6.444490603 | M43: =SUMPRODUCT(J6:J42,M6:M42)/J43 -> 0.06344651317 | N43: =SUMPRODUCT(J6:J42,N6:N42)/J43 -> 0.06394733346 | O43: =SUMPRODUCT(J6:J42,O6:O42)/J43 -> 0.01796515343 | P43: =SUMPRODUCT(J6:J42,P6:P42)/J43 -> 0.1329858524 | Q43: =SUMPRODUCT(J6:J42,Q6:Q42)/J43 -> 0.599384706

Sheet Gráficos Carteira CRI
B2: Planilha de fundamentos - CPTS11
B3: =Data -> Março/2022
A4: Capa
B5: Devedor - Ativos | C5: Volume (R$) | D5: %
B6: Total | C6: 3108177060 | D6: 1
B7: FII | C7: 1073871915 | D7: 0.3454989513
B8: Assaí | C8: 219719487.3 | D8: 0.07069078853
B9: GTIS Logística FII | C9: 187822615.4 | D9: 0.06042854438
B10: Vinci Shoppings FII | C10: 172552965.6 | D10: 0.05551580951
B11: HBR | C11: 157245454.7 | D11: 0.05059089351
B12: Gazit Malls FII | C12: 114458478 | D12: 0.03682495423
B13: Via Varejo | C13: 106793800.2 | D13: 0.03435898218
B14: Leo Madeiras | C14: 102066266.3 | D14: 0.03283798326
B15: Pátio Malzoni | C15: 101805116 | D15: 0.03275396287
B16: JSL | C16: 93302865.15 | D16: 0.03001851675
B17: Hedge Logística FII | C17: 80688026.88 | D17: 0.02595991969
B18: Hypera | C18: 78681780.07 | D18: 0.02531444591
B19: XPIN FII | C19: 59832803.22 | D19: 0.01925012702
B20: BR Malls | C20: 59451545.76 | D20: 0.0191274643
B21: BRF | C21: 59174039.09 | D21: 0.01903818153
B22: Plural Renda Urbana FII | C22: 56250033.17 | D22: 0.01809743527
B23: General Shopping FII | C23: 42308305.64 | D23: 0.01361193549
B24: Helbor | C24: 34476533.45 | D24: 0.01109220382
B25: Vinci Renda Urbana FII | C25: 32808173.12 | D25: 0.01055543892
B26: CSHG Renda Urbana FII | C26: 32595326.91 | D26: 0.01048695949
B27: Athena FII | C27: 28557565.88 | D27: 0.009187882583
B28: DutraLog | C28: 27546547.94 | D28: 0.008862605768
B29: Malls Brasil Plural FII | C29: 27080043.98 | D29: 0.00871251652
B30: Frio Peças | C30: 26025749.75 | D30: 0.008373316335
B31: Grupo Verticale | C31: 25280777.1 | D31: 0.008133634801
B32: Vinci Logística FII | C32: 22798244.88 | D32: 0.007334924762
B33: BTG Malls FII | C33: 19910078.1 | D33: 0.006405709107
B34: Jaraguá do Sul | C34: 17370142.71 | D34: 0.005588530632
B35: GPA | C35: 14705492.57 | D35: 0.004731227431
B36: Tellus Properties FII | C36: 11444973.31 | D36: 0.003682214074
B37: Grupo AIZ | C37: 4848513.902 | D37: 0.00155992204
B38: LOG CP | C38: 2492768.074 | D38: 0.0008020032404
B39: Colorado | C39: 906333.3555 | D39: 0.0002915964367
B42: Liquidez | C42: 13304297.99 | D42: 0.004280418307
B52: Indexador | C52: Volume (R$) | D52: %
B53: Total | C53: 3108177060 | D53: 1
B54: IPCA + | C54: 2001090769 | D54: 0.6438149213 | E54: 0.06392853721 | F54: IPCA + 6.39%
B55: FII | C55: 1073871915 | D55: 0.3454989513 | E55: FII | F55: FII
B56: CDI + | C56: 19910078.1 | D56: 0.006405709107 | E56: 0.015 | F56: CDI + 1.50%
B59: Liquidez | C59: 13304297.99 | D59: 0.004280418307 | E59: 0 | F59: Liquidez
B68: Produto | C68: Volume (R$) | D68: %
B69: Total | C69: 3108177060 | D69: 1
B70: Liquidez | C70: 13304297.99 | D70: 0.004280418307
B71: CRI | C71: 2021000847 | D71: 0.6502206304
B72: FII | C72: 1073871915 | D72: 0.3454989513
B81: Segmento | C81: Volume (R$) | D81: %
B82: Total | C82: 3108177060 | D82: 1
B83: FII | C83: 1073871915 | D83: 0.3454989513
B84: Logístico/Industrial | C84: 852074020.9 | D84: 0.2741394729
B85: Shopping | C85: 509381592.9 | D85: 0.1638843551
B86: Varejo | C86: 406164125 | D86: 0.1306759934
B87: Comercial | C87: 185190068.7 | D87: 0.05958156988
B88: Educacional | C88: 32808173.12 | D88: 0.01055543892
B89: Residencial | C89: 34476533.45 | D89: 0.01109220382
B90: Loteamento | C90: 906333.3555 | D90: 0.0002915964367
B92: Liquidez | C92: 13304297.99 | D92: 0.004280418307
B95: Data | C95: Spread Over - Eixo Esquerdo | D95: CDI - Eixo Esquerdo | E95: Quantidade de Cotas - Eixo Direito | F95: PL - Eixo Direito
B96: 2014-08-29 | C96: 0.03360896901 | D96: 0.1084 | E96: 500000 | F96: 50088576.41
B97: 2014-09-30 | C97: 0.0313188456 | D97: 0.1081 | E97: 500000 | F97: 50266489.37
B98: 2014-10-31 | C98: 0.04300792421 | D98: 0.1109 | E98: 500000 | F98: 50034419.45
B99: 2014-11-30 | C99: 0.04140116406 | D99: 0.1109 | E99: 500000 | F99: 50509843.51
B100: 2014-12-31 | C100: 0.03261623389 | D100: 0.1157 | E100: 500000 | F100: 50474055.56
B101: 2015-01-31 | C101: 0.0351 | D101: 0.1208 | E101: 500000 | F101: 50979884.76
B102: 2015-02-28 | C102: 0.0379 | D102: 0.1209 | E102: 500000 | F102: 50977376.63
B103: 2015-03-31 | C103: 0.03779701906 | D103: 0.126 | E103: 500000 | F103: 50918689.58
B104: 2015-04-30 | C104: 0.0402 | D104: 0.1262 | E104: 500000 | F104: 51176477.74
B105: 2015-05-31 | C105: 0.0395 | D105: 0.1313 | E105: 500000 | F105: 51615959.8
B106: 2015-06-30 | C106: 0.04110937688 | D106: 0.1364 | E106: 500000 | F106: 51860002.92
B107: 2015-07-31 | C107: 0.04012288114 | D107: 0.1413 | E107: 500000 | F107: 51121785.89
B108: 2015-08-31 | C108: 0.04268408627 | D108: 0.1413 | E108: 500000 | F108: 51610446.87
B109: 2015-09-30 | C109: 0.0416 | D109: 0.1413 | E109: 500000 | F109: 50946485.8
B110: 2015-10-31 | C110: 0.04168236218 | D110: 0.1414 | E110: 500000 | F110: 51789373.98
B111: 2015-11-30 | C111: 0.03951891093 | D111: 0.1414 | E111: 500000 | F111: 50906319.98
B112: 2015-12-31 | C112: 0.0372 | D112: 0.1414 | E112: 570094 | F112: 58411651.63
B113: 2016-01-31 | C113: 0.0418 | D113: 0.1413 | E113: 570094 | F113: 58197002.45
B114: 2016-02-29 | C114: 0.04182378095 | D114: 0.1413 | E114: 570094 | F114: 58263929.48
B115: 2016-03-31 | C115: 0.0404 | D115: 0.1413 | E115: 570094 | F115: 57851206.84
B116: 2016-04-30 | C116: 0.03824832025 | D116: 0.1413 | E116: 500000 | F116: 50938989.33
B117: 2016-05-31 | C117: 0.0382 | D117: 0.1413 | E117: 500000 | F117: 51253097.32
B118: 2016-06-30 | C118: 0.0361 | D118: 0.1413 | E118: 500000 | F118: 51241514.93
B119: 2016-07-31 | C119: 0.034 | D119: 0.1413 | E119: 500000 | F119: 51374532.11
B120: 2016-08-31 | C120: 0.041288774 | D120: 0.1413 | E120: 500000 | F120: 50502195.52
B121: 2016-09-30 | C121: 0.03683399943 | D121: 0.1413 | E121: 550146 | F121: 56170880.45
B122: 2016-10-31 | C122: 0.02712538107 | D122: 0.1388 | E122: 1000000 | F122: 100474173
B123: 2016-11-30 | C123: 0.0261 | D123: 0.1388 | E123: 1000000 | F123: 100455056.7
B124: 2016-12-31 | C124: 0.0354 | D124: 0.1363 | E124: 1000000 | F124: 100072542.9
B125: 2017-01-31 | C125: 0.03176428331 | D125: 0.1288 | E125: 1000000 | F125: 100162045.5
B126: 2017-02-28 | C126: 0.03018543644 | D126: 0.1213 | E126: 1000000 | F126: 100292427.2
B127: 2017-03-31 | C127: 0.02918795345 | D127: 0.1213 | E127: 1000000 | F127: 100692159.2
B128: 2017-04-30 | C128: 0.03322007902 | D128: 0.1113 | E128: 1000000 | F128: 101315062.7
B129: 2017-05-31 | C129: 0.03531990158 | D129: 0.1113 | E129: 1000000 | F129: 100100359.9
B130: 2017-06-30 | C130: 0.03597459453 | D130: 0.1014 | E130: 1000000 | F130: 99954914.64
B131: 2017-07-31 | C131: 0.03960117739 | D131: 0.0914 | E131: 1000000 | F131: 101241108.7
B132: 2017-08-31 | C132: 0.04151354189 | D132: 0.0914 | E132: 1000000 | F132: 100422151.8
B133: 2017-09-30 | C133: 0.0422 | D133: 0.0814 | E133: 1000000 | F133: 100585236.1
B134: 2017-10-31 | C134: 0.0437 | D134: 0.0739 | E134: 1000000 | F134: 100729401.8
B135: 2017-11-30 | C135: 0.0437207269 | D135: 0.0739 | E135: 1000000 | F135: 100524488.4
B136: 2017-12-31 | C136: 0.0405 | D136: 0.0689 | E136: 1000000 | F136: 98395585.32
B137: 2018-01-31 | C137: 0.0439 | D137: 0.0689 | E137: 1000000 | F137: 98617435.07
B138: 2018-02-28 | C138: 0.0428 | D138: 0.0664 | E138: 1000000 | F138: 99400793.99
B139: 2018-03-31 | C139: 0.04 | D139: 0.0639 | E139: 1000000 | F139: 99127793.12
B140: 2018-04-30 | C140: 0.0437 | D140: 0.0639 | E140: 1000000 | F140: 99780202.76
B141: 2018-05-31 | C141: 0.041 | D141: 0.064 | E141: 1000000 | F141: 95732632.43
B142: 2018-06-30 | C142: 0.0391 | D142: 0.0639 | E142: 1000000 | F142: 96903498.87
B143: 2018-07-31 | C143: 0.0341 | D143: 0.0639 | E143: 1000000 | F143: 97581052.98
B144: 2018-08-31 | C144: 0.0366 | D144: 0.0639 | E144: 1000000 | F144: 97199600.01
B145: 2018-09-30 | C145: 0.0424 | D145: 0.0639 | E145: 1000000 | F145: 95580371.2
B146: 2018-10-31 | C146: 0.0414 | D146: 0.064 | E146: 1002845 | F146: 97993889.61
B147: 2018-11-30 | C147: 0.0223 | D147: 0.064 | E147: 1577825 | F147: 153904789.6
B148: 2018-12-31 | C148: 0.0321 | D148: 0.064 | E148: 1577825 | F148: 153886529.2
B149: 2019-01-31 | C149: 0.0428 | D149: 0.064 | E149: 1577825 | F149: 152817467.6
B150: 2019-02-28 | C150: 0.0429 | D150: 0.064 | E150: 1577825 | F150: 152565783.6
B151: 2019-03-31 | C151: 0.0419 | D151: 0.064 | E151: 1577825 | F151: 152580555.1
B152: 2019-04-30 | C152: 0.0383 | D152: 0.064 | E152: 1577825 | F152: 153064129
B153: 2019-05-31 | C153: 0.0365 | D153: 0.064 | E153: 1577825 | F153: 153755286.5
B154: 2019-06-30 | C154: 0.0418 | D154: 0.064 | E154: 1577825 | F154: 153975376.2
B155: 2019-07-31 | C155: 0.0398 | D155: 0.064 | E155: 1577825 | F155: 155335143.2
B156: 2019-08-31 | C156: 0.0407 | D156: 0.059 | E156: 1577825 | F156: 153289859.1
B157: 2019-09-30 | C157: 0.0362 | D157: 0.054 | E157: 3115025 | F157: 303388490.5
B158: 2019-10-31 | C158: 0.0425 | D158: 0.054 | E158: 3115025 | F158: 306963307.1
B159: 2019-11-30 | C159: 0.0442 | D159: 0.049 | E159: 3115025 | F159: 303435696.1
B160: 2019-12-30 | C160: 0.0519 | D160: 0.044 | E160: 3115025 | F160: 308188496.5
B161: 2020-01-31 | C161: 0.0482 | D161: 0.044 | E161: 3115025 | F161: 304298403.5
B162: 2020-02-28 | C162: 0.0489 | D162: 0.0419 | E162: 3115025 | F162: 305484994.4
B163: 2020-03-31 | C163: 0.0464 | D163: 0.0395 | E163: 3115025 | F163: 297212758.9
B164: 2020-04-30 | C164: 0.03928546359 | D164: 0.0384 | E164: 3115025 | F164: 298597107.2
B165: 2020-05-29 | C165: 0.0444 | D165: 0.029 | E165: 3115025 | F165: 299148956.2
B166: 2020-06-30 | C166: 0.04921321223 | D166: 0.0215 | E166: 7753859 | F166: 728458107.3
B167: 2020-07-31 | C167: 0.04932552955 | D167: 0.0215 | E167: 7753859 | F167: 750855384.1
B168: 2020-08-31 | C168: 0.0530935971 | D168: 0.019 | E168: 8442107 | F168: 792841202.7
B169: 2020-09-30 | C169: 0.05577775607 | D169: 0.019 | E169: 8442107 | F169: 789101448.1
B170: 2020-10-30 | C170: 0.05480335738 | D170: 0.019 | E170: 8442107 | F170: 788887951.2
B171: 2020-11-30 | C171: 0.05370813695 | D171: 0.019 | E171: 8442107 | F171: 795722034
B172: 2020-12-30 | C172: 0.05176886543 | D172: 0.019 | E172: 13455161 | F172: 1268286552
B173: 2021-01-29 | C173: 0.0529 | D173: 0.019 | E173: 13455161 | F173: 1271746643
B174: 2021-02-26 | C174: 0.04756596465 | D174: 0.019 | E174: 13455161 | F174: 1281820456
B175: 2021-03-31 | C175: 0.04146819091 | D175: 0.0265 | E175: 18378741 | F175: 1748061799
B176: 2021-04-30 | C176: 0.03992558954 | D176: 0.0265 | E176: 18378741 | F176: 1749247096
B177: 2021-05-31 | C177: 0.04044139445 | D177: 0.03400091579 | E177: 21397454 | F177: 2033959002
B178: 2021-06-30 | C178: 0.03388785084 | D178: 0.0415 | E178: 25781435 | F178: 2458261151
B179: 2021-07-30 | C179: 0.02807000171 | D179: 0.0415 | E179: 25781435 | F179: 2458942926
B180: 2021-08-31 | C180: 0.0269673815 | D180: 0.05150092503 | E180: 25781435 | F180: 2447172370
B181: 2021-09-30 | C181: 0.02518068465 | D181: 0.06150124134 | E181: 25781435 | F181: 2427021347
B182: 2021-10-29 | C182: 0.01347376427 | D182: 0.0765 | E182: 25781435 | F182: 2415410951
B183: 2021-11-30 | C183: 0.01323863274 | D183: 0.0765 | E183: 27972629 | F183: 2650260334
B184: 2021-12-31 | C184: 0.01115697646 | D184: 0.0915 | E184: 27972629 | F184: 2646336851
B185: 2022-01-31 | C185: 0.01089999552 | D185: 0.0915 | E185: 27972629 | F185: 2627597254
B186: 2022-02-25 | C186: 0.01356641687 | D186: 0.1065012783 | E186: 27972629 | F186: 3001657447
B187: 2022-03-31 | C187: 0.01796515343 | D187: 0.1165 | E187: 27972629 | F187: 3030229681

Sheet Carteira FII
B2: Planilha de fundamentos - CPTS11
B3: =Data -> Março/2022
A4: Capa
B5: Ativo | C5: Código B3 | D5: Segmento | E5: QTD | F5: Preço (R$) | G5: Volume (R$) | H5: % Ativos | I5: Emissão | L5: Segmento | M5: (% Ativos) | O5: Alocação por segmento (% Ativos)
B6: FII TRX Real Estate | C6: TRXF11 | D6: Renda Urbana | E6: 1163550 | F6: 100.33 | G6: 116738971.5 | H6: 0.03755866195 | I6: 476 | L6: Renda Urbana | M6: =SUMIF($D$6:$D$73,L6,$H$6:$H$73) -> 0.1135183091
B7: FII GTIS Brazil Logistics | C7: GTLG11 | D7: Logística | E7: 1031342 | F7: 99.99 | G7: 103123886.6 | H7: 0.03317825355 | I7: 476 | L7: Logística | M7: 0.08874924406
B8: FII Multi Renda Urbana | C8: HBRH11 | D8: Lajes Corporativas | E8: 869238 | F8: 84.34426237 | G8: 73315237.93 | H8: 0.02358785761 | L8: Lajes Corporativas | M8: 0.04902656165
B9: FII VXXV | C9: VXXV11 | D9: CRI | E9: 65237 | F9: 852.64 | G9: 55623675.68 | H9: 0.01789591603 | I9: 476 | L9: CRI | M9: 0.05445340839
B10: FII V2 Properties | C10: VVPR11 | D10: Renda Urbana | E10: 554471 | F10: 94.5 | G10: 52397509.5 | H10: 0.01685795516 | L10: Híbrido | M10: 0.007215483406
B11: FII Newport Logística | C11: NEWL11 | D11: Logística | E11: 497720 | F11: 100.8 | G11: 50170176 | H11: 0.01614135071 | L11: Shoppings | M11: 0.0173714903
B12: FII Guardian Logística | C12: GALG11 | D12: Logística | E12: 511847 | F12: 95.6 | G12: 48932573.2 | H12: 0.0157431743 | L12: Agro | M12: 0.008788085605
B13: FII Succespar Varejo | C13: SPVJ11 | D13: Renda Urbana | E13: 405875 | F13: 107.5128904 | G13: 43636794.39 | H13: 0.01403935283 | I13: 476 | L13: FOF | M13: 0.003092509459
B14: FII Bluecap Renda Logística | C14: BLCP11 | D14: Logística | E14: 505690 | F14: 85.14 | G14: 43054446.6 | H14: 0.01385199291 | I14: 476 | L14: Residencial | M14: 0.002250777261
B15: FII Plural Renda Urbana | C15: PURB11 | D15: Renda Urbana | E15: 405873 | F15: 95 | G15: 38557935 | H15: 0.01240532127 | I15: 476 | L15: Hotel | M15: 0
B16: FII Tishman Speyer | C16: TSER11 | D16: Lajes Corporativas | E16: 355715 | F16: 100 | G16: 35571500 | H16: 0.01144448959 | I16: 476 | L16: Agência | M16: 0
B17: FII Pátria Edifícios Corporativos | C17: PATC11 | D17: Lajes Corporativas | E17: 504416 | F17: 68.9 | G17: 34754262.4 | H17: 0.01118155811
B18: FII VBI Consumo Essencial | C18: EVBI11 | D18: Renda Urbana | E18: 352270 | F18: 93.01 | G18: 32764632.7 | H18: 0.01054143058 | L18: Total | M18: =SUM(M6:M17) -> 0.3444658693
B19: FII Vinci Shopping Centers | C19: VISC11 | D19: Shoppings | E19: 318623 | F19: 99.88 | G19: 31824065.24 | H19: 0.01023881993 | I19: 476
B20: FII Santander Recebíveis CDI | C20: SADI11 | D20: CRI | E20: 332860 | F20: 90.2 | G20: 30023972 | H20: 0.009659672348
B21: FII Quasar Agro | C21: QAGR11 | D21: Agro | E21: 558816 | F21: 48.88 | G21: 27314926.08 | H21: 0.008788085605
B22: FII HSI Renda | C22: HSRE11 | D22: Renda Urbana | E22: 241362 | F22: 100 | G22: 24136200 | H22: 0.007765387728 | I22: 476
B23: FII JPP Mogno Allocation | C23: JPPA11 | D23: CRI | E23: 229050 | F23: 100.94 | G23: 23120307 | H23: 0.007438542448
B24: FII TRX Real Estate II | C24: TRXB11 | D24: Renda Urbana | E24: 186262 | F24: 122 | G24: 22723964 | H24: 0.007311026225
B25: FII Panorama Properties | C25: PNPR11 | D25: Híbrido | E25: 224270 | F25: 100 | G25: 22427000 | H25: 0.007215483406 | I25: 476
B26: FII Hedge Recebíveis | C26: HREC11 | D26: CRI | E26: 187367 | F26: 97 | G26: 18174599 | H26: 0.005847349957
B27: FII XP Industrial | C27: XPIN11 | D27: Logística | E27: 180035 | F27: 82.02 | G27: 14766470.7 | H27: 0.004750846047 | I27: 476
B28: FII Legatus Shoppings | C28: LASC11 | D28: Shoppings | E28: 153198 | F28: 86.99 | G28: 13326694.02 | H28: 0.004287623826
B29: FII Guardian Multiestratégia | C29: GAME11 | D29: CRI | E29: 1077100 | F29: 10.4 | G29: 11201840 | H29: 0.003603990308 | I29: 476
B30: FII XP Exeter | C30: XPEX11 | D30: Logística | E30: 11425.66101 | F30: 943.746752 | G30: 10782930.47 | H30: 0.00346921371 | I30: 476
B31: FII Rio Bravo High Grade | C31: RBHG11 | D31: CRI | E31: 106289 | F31: 89.95 | G31: 9560695.55 | H31: 0.003075981633
B32: FII HBC Renda Urbana | C32: HBCR11 | D32: Renda Urbana | E32: 88232 | F32: 108 | G32: 9529056 | H32: 0.003065802178 | I32: 476
B33: FII BTG Pactual Excellence | C33: FEXC11 | D33: CRI | E33: 103454 | F33: 90.34 | G33: 9346034.36 | H33: 0.003006918261
B34: FII General Shopping e Outlets | C34: GSFI11 | D34: Shoppings | E34: 2028190 | F34: 4.36 | G34: 8842908.4 | H34: 0.002845046543
B35: FII HBC Renda Urbana | C35: HBCR14 | D35: Renda Urbana | E35: 52000 | F35: 108 | G35: 5616000 | H35: 0.001806846872 | I35: 476
B36: FII Autonomy Edifícios Corporativos | C36: AIEC11 | D36: Lajes Corporativas | E36: 60826 | F36: 81.03 | G36: 4928730.78 | H36: 0.001585730377
B37: FII XP Ideazarvos | C37: XPIZ11 | D37: Residencial | E37: 4963.76006 | F37: 924.413647 | G37: 4588567.54 | H37: 0.001476288979 | I37: 476
B38: FII Canvas Recebíveis | C38: CCRF11 | D38: CRI | E38: 43682 | F38: 98.98 | G38: 4323644.36 | H38: 0.001391054717
B39: FII Vinci Renda Urbana | C39: VIUR11 | D39: Renda Urbana | E39: 50467 | F39: 73.5 | G39: 3709324.5 | H39: 0.001193408364 | I39: 476
B40: FII BM Brascan Lajes Corporativas | C40: BMLC11 | D40: Lajes Corporativas | E40: 34336 | F40: 91 | G40: 3124576 | H40: 0.001005276064
B41: FII Integral Brei FOF | C41: IBFF11 | D41: FOF | E41: 43276 | F41: 60 | G41: 2596560 | H41: 0.0008353964236
B42: FII Kinea FOF | C42: KFOF11 | D42: FOF | E42: 32607 | F42: 76.75 | G42: 2502587.25 | H42: 0.0008051623834
B43: FII Panorama Desenvolvimento Logístico | C43: PNDL13 | D43: Logística | E43: 2252 | F43: 1109.19 | G43: 2497895.88 | H43: 0.0008036530196 | I43: 476
B44: FII Hedge Seed | C44: SEED11 | D44: CRI | E44: 23000 | F44: 100 | G44: 2300000 | H44: 0.0007399835838 | I44: 476
B45: FII Votorantim Securities Master | C45: VOTS11 | D45: CRI | E45: 26133 | F45: 84.03 | G45: 2195955.99 | H45: 0.0007065092971
B46: FII HBC Renda Urbana | C46: HBCR16 | D46: Renda Urbana | E46: 20000 | F46: 108 | G46: 2160000 | H46: 0.0006949411048 | I46: 476
B47: FII EQI Recebíveis | C47: EQIR11 | D47: CRI | E47: 18898 | F47: 99.57 | G47: 1881673.86 | H47: 0.000605394681 | I47: 476
B48: FII CSHG FOF | C48: HGFF11 | D48: FOF | E48: 22597 | F48: 71.7 | G48: 1620204.9 | H48: 0.0005212717514
B49: FII Caixa Rio Bravo II | C49: CRFF11 | D49: FOF | E49: 19844 | F49: 65.9 | G49: 1307719.6 | H49: 0.0004207352331
B50: FII Housi | C50: HOSI11 | D50: Residencial | E50: 16441 | F50: 71.01 | G50: 1167475.41 | H50: 0.0003756141904
B51: FII Plural Logística | C51: PLOG11 | D51: Logística | E51: 15663 | F51: 71.15 | G51: 1114422.45 | H51: 0.0003585453558
B52: FII Brio Real Estate III | C52: BRIP11 | D52: Residencial | E52: 770 | F52: 1213.99 | G52: 934772.3 | H52: 0.000300746155 | I52: 476
B53: FII Sequóia III | C53: SEQR11 | D53: Logística | E53: 12454 | F53: 68.53 | G53: 853472.62 | H53: 0.000274589447
B54: FII MAX Retail | C54: MAXR11 | D54: Renda Urbana | E54: 9923 | F54: 81.6 | G54: 809716.8 | H54: 0.0002605117998
B55: FII Navi Total Return | C55: NAVT11 | D55: FOF | E55: 9535 | F55: 73.99 | G55: 705494.65 | H55: 0.0002269801998
B56: FII Rio Bravo Crédito Imobiliário II | C56: RBVO11 | D56: CRI | E56: 54793 | F56: 12.44 | G56: 681624.92 | H56: 0.0002193005439
B57: FII TRX Edifícios Corporativos | C57: XTED11 | D57: Lajes Corporativas | E57: 101194 | F57: 6.19 | G57: 626390.86 | H57: 0.0002015299797
B58: FII Mogno Logística | C58: MGLG11 | D58: Logística | E58: 11000 | F58: 50.19 | G58: 552090 | H58: 0.000177625016 | I58: 476
B59: FII Brio Crédito Estruturado | C59: BICE11 | D59: CRI | E59: 490 | F59: 1000 | G59: 490000 | H59: 0.0001576486765 | I59: 476
B60: FII Kilima Suno 30 | C60: KISU11 | D60: FOF | E60: 63552 | F60: 7.53 | G60: 478546.56 | H60: 0.0001539637385
B61: FII Caixa Rio Bravo | C61: CXRI11 | D61: FOF | E61: 6200 | F61: 64.67 | G61: 400954 | H61: 0.0001289997295
B62: FII WHG Real Estate | C62: WHGR13 | D62: CRI | E62: 20000 | F62: 10 | G62: 200000 | H62: 6.434639859e-05 | I62: 476
B63: FII Rio Bravo Renda Residencial | C63: RBRS11 | D63: Residencial | E63: 3000 | F63: 61.2 | G63: 183600 | H63: 5.90699939e-05
B64: FII Brio Real Estate III | C64: BRIP18 | D64: Residencial | E64: 100 | F64: 1213.99 | G64: 121399 | H64: 3.905794221e-05 | I64: 476
B65: FII Brio Crédito Estruturado | C65: BICE14 | D65: CRI | E65: 112 | F65: 1000 | G65: 112000 | H65: 3.603398321e-05 | I65: 476
B66: FII Tellus Properties | C66: TEPP11 | D66: Lajes Corporativas | E66: 870 | F66: 71 | G66: 61770 | H66: 1.98733852e-05
B67: FII TRX Real Estate II | C67: TRXB13 | D67: Renda Urbana | E67: 450 | F67: 122 | G67: 54900 | H67: 1.766308641e-05
B68: FII Mogno Recebíveis | C68: MGCR11 | D68: CRI | E68: 96 | F68: 84.7 | G68: 8131.2 | H68: 2.616067181e-06
B69: FII BB Renda de Papéis | C69: RNDP11 | D69: CRI | E69: 13 | F69: 385.11 | G69: 5006.43 | H69: 1.610728701e-06
B70: FII Mauá Capital Recebíveis | C70: MCCI11 | D70: CRI | E70: 13 | F70: 99.2 | G70: 1289.6 | H70: 4.149055781e-07
B71: FII Newport Renda Urbana | C71: NEWU11 | D71: Lajes Corporativas | E71: 16 | F71: 39.7 | G71: 635.2 | H71: 2.043641619e-07
B72: FII BB Renda de Papéis II | C72: RDPD11 | D72: CRI | E72: 7 | F72: 54.98 | G72: 384.86 | H72: 1.238217748e-07
B73: FII Memorial Office | C73: FMOF11 | D73: Lajes Corporativas | E73: 2 | F73: 65.55 | G73: 131.1 | H73: 4.217906427e-08
G74: =SUM(G6:G73) -> 1070660913 | H74: =SUM(H6:H73) -> 0.3444658693

Sheet Compromissadas
B2: Planilha de fundamentos - CPTS11
B3: =Data -> Março/2022
A4: Capa
B5: Operações em andamento | N5: Operações concluídas
B6: Descrição | C6: Código B3 | D6: Indexador | E6: Taxa (a.a.) | F6: Haircut | G6: Data ida | H6: Vencimento | I6: Data volta | J6: Volume ida | K6: Saldo | L6: Despesa acumulada | N6: Descrição | O6: Código B3 | P6: Indexador | Q6: Taxa (a.a.) | R6: Haircut | S6: Data ida | T6: Vencimento | U6: Data volta | V6: Volume ida | W6: Volume volta | X6: Despesa realizada
B7: CRI Vinci Renda Urbana Virgo 280S 4E | C7: 21G0093703 | D7: CDI | E7: 0.009 | F7: 0.5 | G7: 2021-10-15 | H7: 2022-04-13 | I7: 2022-04-29 | J7: 15000204.81 | K7: -15674343.17 | L7: -674138.3587 | N7: CRI GSFI CRI True 236S 1E | O7: 20G0800227 | P7: CDI | Q7: 0.006 | R7: 0.5 | S7: 2021-09-13 | T7: 2022-03-14 | U7: 2022-03-14 | V7: 50042993.32 | W7: -52197410.06 | X7: -2154416.74
B8: CRI HBR ComVem Habitasec 242S 1E | C8: 21G0507867 | D8: CDI | E8: 0.008 | F8: 0.5 | G8: 2021-10-18 | H8: 2022-04-13 | I8: 2022-04-29 | J8: 50000180.39 | K8: -52209425.62 | L8: -2209245.225 | N8: CRI HBR Habitasec 148S 1E | O8: 19G0228153 | P8: CDI | Q8: 0.006 | R8: 0.5 | S8: 2021-09-15 | T8: 2022-03-14 | U8: 2022-03-14 | V8: 20004215.27 | W8: -20865423.11 | X8: -861207.84
B9: CRI GSFI CRI True 236S 1E | C9: 20G0800227 | D9: CDI | E9: 0.008 | F9: 0.5 | G9: 2021-10-29 | H9: 2022-04-29 | I9: 2022-04-29 | J9: 20629560.79 | K9: -21487893.29 | L9: -858332.5 | N9: CRI BTG Malls Vert 1S 8E | O9: 19H0000001 | P9: CDI | Q9: 0.006 | R9: 0.5 | S9: 2021-09-16 | T9: 2022-03-14 | U9: 2022-03-14 | V9: 10964369.51 | W9: -11436400.08 | X9: -472030.57
B10: CRI GTIS True 447S 1E | C10: 21J0043571 | D10: CDI | E10: 0.0073 | F10: 0.5 | G10: 2022-02-15 | H10: 2022-05-17 | I10: 2022-04-29 | J10: 50000232.97 | K10: -50669658.62 | L10: -669425.6439 | N10: CRI GSFI CRI True 236S 1E | O10: 20G0800227 | P10: CDI | Q10: 0.006 | R10: 0.5 | S10: 2021-09-22 | T10: 2022-03-21 | U10: 2022-03-21 | V10: 24937893.01 | W10: -26033880.78 | X10: -1095987.77
B11: CRI Via Varejo Extrema Habitasec 1E 258S | C11: 21G0864354 | D11: CDI | E11: 0.0065 | F11: 0.5 | G11: 2021-11-29 | H11: 2022-05-30 | I11: 2022-04-29 | J11: 19999795.38 | K11: -20693381.09 | L11: -693585.7078 | N11: Total | O11: - | P11: - | Q11: =SUMPRODUCT(Q7:Q10,W7:W10)/W11 -> 0.006 | R11: - | S11: - | T11: - | U11: - | V11: =SUM(V7:V10) -> 105949471.1 | W11: =SUM(W7:W10) -> -110533114 | X11: =SUM(X7:X10) -> -4583642.92
B12: CRI Via Varejo Extrema Habitasec 1E 258S | C12: 21G0864354 | D12: CDI | E12: 0.0075 | F12: 0.5 | G12: 2021-12-20 | H12: 2022-05-30 | I12: 2022-04-29 | J12: 6947216.35 | K12: -7153192.762 | L12: -205976.4122
B13: CRI Via Varejo Extrema Habitasec 1E 258S | C13: 21G0864354 | D13: CDI | E13: 0.008 | F13: 0.5 | G13: 2022-03-17 | H13: 2022-05-30 | I13: 2022-04-29 | J13: 4998215.88 | K13: -5021867.164 | L13: -23651.28433
B14: CRI RB Capital "BR Malls" 99S 1E | C14: 14C0072810 | D14: CDI | E14: 0.0055 | F14: 0.5 | G14: 2021-12-02 | H14: 2022-06-02 | I14: 2022-04-29 | J14: 29018689.86 | K14: -29986459.12 | L14: -967769.2552
B15: CRI HBR Habitasec 148S 1E | C15: 19G0228153 | D15: CDI | E15: 0.0085 | F15: 0.55 | G15: 2021-12-16 | H15: 2022-06-17 | I15: 2022-04-29 | J15: 2401612.17 | K15: -2475403.662 | L15: -73791.49231
B16: CRI GPA RBVA True 346S 1E | C16: 20L0687133 | D16: CDI | E16: 0.0085 | F16: 0.5 | G16: 2021-12-17 | H16: 2022-06-17 | I16: 2022-04-29 | J16: 7009243.61 | K16: -7221856.142 | L16: -212612.5315
B17: CRI Vinci Shoppings Virgo 366S 4E | C17: 21I0682465 | D17: CDI | E17: 0.008 | F17: 0.5 | G17: 2021-12-29 | H17: 2022-06-29 | I17: 2022-04-29 | J17: 83566879.35 | K17: -85828695.77 | L17: -2261816.425
B18: CRI Assai TRX Barisec 93S 1E | C18: 21I0277341 | D18: CDI | E18: 0.008 | F18: 0.5 | G18: 2021-12-30 | H18: 2022-06-29 | I18: 2022-04-29 | J18: 76350461.81 | K18: -78387240.63 | L18: -2036778.815
B19: CRI BRF PE Isec 99S 4E | C19: 21A0709253 | D19: CDI | E19: 0.007 | F19: 0.5 | G19: 2022-01-17 | H19: 2022-07-18 | I19: 2022-04-29 | J19: 29731283.4 | K19: -30379664.57 | L19: -648381.171
B20: CRI Pátio Malzoni Virgo 329S 4E | C20: 21I0931497 | D20: CDI | E20: 0.0085 | F20: 0.5 | G20: 2022-03-18 | H20: 2022-09-14 | I20: 2022-04-29 | J20: 24999176.17 | K20: -25106189.73 | L20: -107013.557
B21: CRI Pátio Malzoni Virgo 329S 4E | C21: 21I0931497 | D21: CDI | E21: 0.009 | F21: 0.5 | G21: 2022-03-23 | H21: 2022-09-14 | I21: 2022-04-29 | J21: 10003778.01 | K21: -10032556.8 | L21: -28778.79377
B22: CRI HBR Habitasec 148S 1E | C22: 19G0228153 | D22: CDI | E22: 0.0097 | F22: 0.5 | G22: 2022-03-29 | H22: 2022-09-29 | I22: 2022-04-29 | J22: 20128533.43 | K22: -20148460.74 | L22: -19927.30941
B23: Total | C23: - | D23: - | E23: =SUMPRODUCT(E7:E22,K7:K22)/K23 -> 0.007787945381 | F23: - | G23: - | H23: - | I23: - | J23: =SUM(J7:J22) -> 450785064.4 | K23: =SUM(K7:K22) -> -462476288.9 | L23: =SUM(L7:L22) -> -11691224.48

Sheet Resultado Caixa
B2: Planilha de fundamentos - CPTS11
B3: =Data -> Março/2022
A4: Capa
B5: DRE - Capitânia Securities ll FII | C5: 2020-01-31 | D5: 2020-02-28 | E5: 2020-03-31 | F5: 2020-04-30 | G5: 2020-05-29 | H5: 2020-06-30 | I5: 2020-07-31 | J5: 2020-08-31 | K5: 2020-09-30 | L5: 2020-10-30 | M5: 2020-11-30 | N5: 2020-12-30 | O5: 2021-01-29 | P5: 2021-02-26 | Q5: 2021-03-31 | R5: 2021-04-30 | S5: 2021-05-31 | T5: 2021-06-30 | U5: 2021-07-30 | V5: 2021-08-31 | W5: 2021-09-30 | X5: 2021-10-29 | Y5: 2021-11-30 | Z5: 2021-12-30 | AA5: 2022-01-31 | AB5: 2022-02-25 | AC5: 2022-03-31 | AD5: Acumulado
B6: Receitas | C6: 2809987.04 | D6: 2891800.43 | E6: 2470513.04 | F6: 2218156.62 | G6: 1888823.33 | H6: 3064448.24 | I6: 6182500.48 | J6: 6948172.444 | K6: 7153931.452 | L6: 9486187.26 | M6: 10430329.92 | N6: 9277497.609 | O6: 15615052.6 | P6: 15736325.16 | Q6: 16430582.19 | R6: 21274288.53 | S6: 20509672.84 | T6: 23810035.63 | U6: 28832704.33 | V6: 26035039.45 | W6: 30522226.53 | X6: 30579643.16 | Y6: 29588655.52 | Z6: 36169771.77 | AA6: 32614343.91 | AB6: 34074962.69 | AC6: 37679941.01 | AD6: 464295593.2
B7: Renda fixa | C7: 37942.77 | D7: 48.77 | E7: 119511.96 | F7: 8764.8 | G7: 7865.17 | H7: 87012.24 | I7: 98583.59 | J7: 75733.99 | K7: -28691.73 | L7: -26336 | M7: 36148.16 | N7: 78637.93 | O7: 43021.71 | P7: 27309.42 | Q7: 246756.55 | R7: 92298.76 | S7: 198654.5 | T7: 767622.97 | U7: 774789.2 | V7: 757283.82 | W7: 698224.35 | X7: 286471.85 | Y7: 174588.95 | Z7: 170419.45 | AA7: 83277.51 | AB7: 171058.82 | AC7: 149050.47 | AD7: 5136049.98
B8: Rendimento de CRIs | C8: 1427526.95 | D8: 1466043.33 | E8: 1522638.58 | F8: 1345613.76 | G8: 1268375.63 | H8: 1534984.6 | I8: 1965295.18 | J8: 2011357.489 | K8: 2703345.823 | L8: 2838364.9 | M8: 3111386.01 | N8: 3856609.9 | O8: 6328918.249 | P8: 7350878.904 | Q8: 6626827.89 | R8: 8216576.93 | S8: 7779370.08 | T8: 10362186.89 | U8: 8013669.29 | V8: 7228961.978 | W8: 8019734.539 | X8: 6726628.992 | Y8: 8510959.278 | Z8: 9581042.33 | AA8: 12173689.92 | AB8: 10002371.92 | AC8: 12674727.83 | AD8: 154648087.2
B9: Ganhos de capital CRIs | C9: 17530.94 | D9: 1031048.12 | E9: -556391.81 | F9: 44968.9 | G9: 2309.93 | H9: 406844.03 | I9: 2485854.64 | J9: 3108873.664 | K9: 1702217.638 | L9: 3916317.92 | M9: 4794590.58 | N9: 3712514.959 | O9: 3423995.41 | P9: 268150.5 | Q9: 2958727.483 | R9: 6947011.342 | S9: 6191938.586 | T9: 7544960.558 | U9: 11892312.68 | V9: 10085486.24 | W9: 4079699.577 | X9: 6692872.05 | Y9: 10377668.11 | Z9: 17897469.83 | AA9: 11144827.62 | AB9: 15752490.98 | AC9: 16663087.17 | AD9: 152587377.7
B10: Rendimento de FII | C10: 291178.59 | D10: 394660.21 | E10: 242865.42 | F10: 480696.22 | G10: 374045.83 | H10: 318995.64 | I10: 714697.73 | J10: 744623.91 | K10: 1035177.88 | L10: 1474162.06 | M10: 1506650.13 | N10: 1560094.12 | O10: 2873272.56 | P10: 4932965.93 | Q10: 3268832.07 | R10: 4047953.44 | S10: 4672795.06 | T10: 5309829.88 | U10: 6487742.74 | V10: 6204728.07 | W10: 6125398.45 | X10: 6582195.87 | Y10: 8036879.69 | Z10: 8902703.12 | AA10: 9524348.86 | AB10: 8689054.72 | AC10: 8300925.79 | AD10: 103097474
B11: Ganhos de capital FII | C11: 1035807.79 | D11: 0 | E11: 1141888.89 | F11: 338112.94 | G11: 236226.77 | H11: 716611.73 | I11: 918069.34 | J11: 1007583.39 | K11: 1741881.84 | L11: 1283678.38 | M11: 981555.04 | N11: 69640.7 | O11: 2945844.67 | P11: 3157020.41 | Q11: 3329438.2 | R11: 1970448.06 | S11: 1666914.61 | T11: -174564.67 | U11: 1664190.42 | V11: 1758579.34 | W11: 11599169.61 | X11: 10291474.4 | Y11: 2488559.49 | Z11: -381862.96 | AA11: -311800 | AB11: -540013.75 | AC11: -107850.25 | AD11: 48826604.39
B12: Despesas | C12: -602942.83 | D12: -314344.33 | E12: -490938.22 | F12: -328671.83 | G12: -319703.45 | H12: -527396.44 | I12: -899409.29 | J12: -913614.1 | K12: -1091217.15 | L12: -1003253.2 | M12: -932326.42 | N12: -1032191.65 | O12: -2056512.16 | P12: -1886877.17 | Q12: -2228100.11 | R12: -2075507.85 | S12: -2036877.2 | T12: -2180413.14 | U12: -2591347.57 | V12: -2611611.38 | W12: -4566256.27 | X12: -4523338.15 | Y12: -3459838.39 | Z12: -2391949.17 | AA12: -3419593.19 | AB12: -4316764.15 | AC12: -6982822.82 | AD12: -55783817.63
B13: Taxa de Administração | C13: -39301.63 | D13: -35419.47 | E13: -33801.49 | F13: -33602.68 | G13: -35224.44 | H13: -48610.1 | I13: -77499.35 | J13: -77744.28 | K13: -81139.53 | L13: -83264.09 | M13: -82171.67 | N13: -102576.17 | O13: -125475.98 | P13: -124836.86 | Q13: -153113.36 | R13: -172682.74 | S13: -175722.61 | T13: -225143.9025 | U13: -237143.9025 | V13: -233529.31 | W13: -232192.92 | X13: -232835.68 | Y13: -235990.3022 | Z13: -246182.904 | AA13: -248923.54 | AB13: -247661.19 | AC13: -244118.3 | AD13: -3811334.341
B14: Taxa de Gestão | C14: -259167.97 | D14: -254948.23 | E14: -219709.68 | F14: -218417.45 | G14: -228958.89 | H14: -315965.65 | I14: -600619.94 | J14: -602518.13 | K14: -628435.96 | L14: -645296.77 | M14: -636830.45 | N14: -876559.98 | O14: -1072249.34 | P14: -1066787.71 | Q14: -1308423.23 | R14: -1475652.55 | S14: -1501629.52 | T14: -1923956.985 | U14: -2024866.049 | V14: -1995614.12 | W14: -1984194.07 | X14: -1989686.76 | Y14: -2022390.6 | Z14: -2103744.816 | AA14: -2127164.81 | AB14: -2116377.46 | AC14: -2086101.83 | AD14: -32292404.77
B15: Imposto sobre ganho de capital | C15: -207161.56 | D15: 0 | E15: -228377.78 | F15: -67622.59 | G15: -47245.35 | H15: -143322.35 | I15: -183613.87 | J15: -201516.68 | K15: -348376.37 | L15: -257823.67 | M15: -196311.01 | N15: -13928.15 | O15: -589168.93 | P15: -631404.08 | Q15: -665887.64 | R15: -398599.75 | S15: -333382.93 | T15: 0 | U15: -299486.91 | V15: -351715.87 | W15: -2319833.92 | X15: -1950599.27 | Y15: -497711.9 | Z15: 0 | AA15: 0 | AB15: 0 | AC15: 0 | AD15: -9933090.58
B16: Desp. Fin. com alavancagem c/ CRI | C16: 0 | D16: 0 | E16: 0 | F16: 0 | G16: 0 | H16: 0 | I16: 0 | J16: 0 | K16: 0 | L16: 0 | M16: 0 | N16: 0 | O16: 0 | P16: 0 | Q16: 0 | R16: 0 | S16: 0 | T16: 0 | U16: 0 | V16: 0 | W16: 0 | X16: -294906.7405 | Y16: -590484.9195 | Z16: 0 | AA16: -978251.32 | AB16: -1915877.77 | AC16: -4583642.92 | AD16: -8363163.67
B17: Outras despesas | C17: -97311.67 | D17: -23976.63 | E17: -9049.27 | F17: -9029.11 | G17: -8274.77 | H17: -19498.34 | I17: -37676.13 | J17: -31835.01 | K17: -33265.29 | L17: -16868.67 | M17: -17013.29 | N17: -39127.35 | O17: -269617.91 | P17: -63848.52 | Q17: -100675.88 | R17: -28572.81 | S17: -26142.14 | T17: -31312.25212 | U17: -29850.70854 | V17: -30752.08 | W17: -30035.36 | X17: -55309.7 | Y17: -113260.6678 | Z17: -42021.45 | AA17: -65253.52 | AB17: -36847.73 | AC17: -68959.77 | AD17: -1383824.273
B18: Resultado | C18: 2207044.21 | D18: 2577456.1 | E18: 1979574.82 | F18: 1889484.79 | G18: 1569119.88 | H18: 2537051.8 | I18: 5283091.19 | J18: 6034558.344 | K18: 6062714.302 | L18: 8482934.06 | M18: 9498003.5 | N18: 8245305.959 | O18: 13558540.44 | P18: 13849447.99 | Q18: 14202482.08 | R18: 19198780.68 | S18: 18472795.64 | T18: 21629622.49 | U18: 26241356.76 | V18: 23423428.07 | W18: 25955970.26 | X18: 26056305.01 | Y18: 26128817.13 | Z18: 33777822.6 | AA18: 29194750.72 | AB18: 29758198.54 | AC18: 30697118.19 | AD18: 408511775.6
B19: Resultado / Cota | C19: 0.7085157294 | D19: 0.8274270993 | E19: 0.6354924343 | F19: 0.6065713084 | G19: 0.5037262558 | H19: 0.7783318753 | I19: 0.6813499175 | J19: 0.7631595656 | K19: 0.7181517957 | L19: 1.004836122 | M19: 1.125074996 | N19: 0.9766881608 | O19: 1.007683255 | P19: 1.029303774 | Q19: 1.055541593 | R19: 1.044618926 | S19: 1.005117578 | T19: 1.176882709 | U19: 1.017839262 | V19: 0.9085385694 | W19: 1.006769804 | X19: 1.010661548 | Y19: 1.013474119 | Z19: 1.207531212 | AA19: 1.043689913 | AB19: 1.063832739 | AC19: 1.097398396 | AD19: 25.01820866
B20: Distribuição | C20: 2024766.25 | D20: 2024766.25 | E20: 2024766.25 | F20: 2024766.25 | G20: 2024766.25 | H20: 2199595.304 | I20: 5582778.48 | J20: 6118411.12 | K20: 6078317.04 | L20: 7597896.3 | M20: 8864212.35 | N20: 8903446.333 | O20: 14127919.05 | P20: 14127919.05 | Q20: 13973729.78 | R20: 19297678.05 | S20: 18378741 | T20: 19753440.01 | U20: 26039249.35 | V20: 25755653.57 | W20: 25781435 | X20: 26039249.35 | Y20: 26177409.13 | Z20: 30769891.9 | AA20: 30769891.9 | AB20: 30769891.9 | AC20: 30769891.9 | AD20: 408000479.1
B21: Distribuição / Cota | C21: 0.65 | D21: 0.65 | E21: 0.65 | F21: 0.65 | G21: 0.65 | H21: 0.67 | I21: 0.72 | J21: 0.75 | K21: 0.72 | L21: 0.9 | M21: 1.05 | N21: 1 | O21: 1.05 | P21: 1.05 | Q21: 1.01 | R21: 1.05 | S21: 1 | T21: 1 | U21: 1.01 | V21: 1 | W21: 1 | X21: 1.01 | Y21: 1 | Z21: 1.1 | AA21: 1.1 | AB21: 1.1 | AC21: 1.1 | AD21: 24.639
B22: Dividend Yield a.a. (cota de mercado) | C22: 0.07238979118 | D22: 0.07494955319 | E22: 0.08715083799 | F22: 0.07975460123 | G22: 0.08219178082 | H22: 0.07731512645 | I22: 0.08916408669 | J22: 0.09406354515 | K22: 0.08925619835 | L22: 0.11251172 | M22: 0.1300980898 | N22: 0.1152184349 | O22: 0.1235294118 | P22: 0.1260504202 | Q22: 0.119408867 | R22: 0.1235294118 | S22: 0.120240481 | T22: 0.1197365795 | U22: 0.1215768884 | V22: 0.1219512195 | W22: 0.122324159 | X22: 0.1237366003 | Y22: 0.1252609603 | Z22: 0.1375573155 | AA22: 0.1365046536 | AB22: 0.1382198953 | AC22: 0.1389473684
B23: Dividend Yield a.a. (cota de emissão) | C23: 0.078 | D23: 0.078 | E23: 0.078 | F23: 0.078 | G23: 0.078 | H23: 0.0804 | I23: 0.0864 | J23: 0.09 | K23: 0.0864 | L23: 0.108 | M23: 0.126 | N23: 0.12 | O23: 0.126 | P23: 0.126 | Q23: 0.1212 | R23: 0.126 | S23: 0.12 | T23: 0.12 | U23: 0.1212 | V23: 0.12 | W23: 0.12 | X23: 0.1212 | Y23: 0.12 | Z23: 0.132 | AA23: 0.132 | AB23: 0.132 | AC23: 0.132
B24: Resultado Acumulado | C24: 182277.96 | D24: 734967.81 | E24: 689776.38 | F24: 554494.92 | G24: 98848.55 | H24: 436305.05 | I24: 136617.76 | J24: 52764.98364 | K24: 37162.24535 | L24: 922200.0053 | M24: 1555991.156 | N24: 897850.782 | O24: 328472.1703 | P24: 50001.114 | Q24: 278753.4167 | R24: 179856.0483 | S24: 273910.6846 | T24: 2150093.163 | U24: 2352200.576 | V24: 19975.08327 | W24: 194510.3389 | X24: 211565.9968 | Y24: 162973.9839 | Z24: 3170904.681 | AA24: 1595763.499 | AB24: 584070.1352 | AC24: 511296.4291 | AD24: 511296.4291
B25: Resultado Acumulado / Cota | C25: 0.05851572941 | D25: 0.2359428287 | E25: 0.221435263 | F25: 0.1780065714 | G25: 0.03173282718 | H25: 0.1400647025 | I25: 0.01761932478 | J25: 0.006672916177 | K25: 0.0044020107 | L25: 0.1092381328 | M25: 0.1843131289 | N25: 0.1063538737 | O25: 0.02441235525 | P25: 0.003716129001 | Q25: 0.02071721154 | R25: 0.009786091894 | S25: 0.01490366966 | T25: 0.08339695455 | U25: 0.09123621613 | V25: 0.000774785549 | W25: 0.007544589309 | X25: 0.008206137356 | Y25: 0.006321369771 | Z25: 0.1133574067 | AA25: 0.05704731932 | AB25: 0.02088005869 | AC25: 0.01827845459 | AD25: 0.01827845459
B27: Por cota | C27: 2020-01-31 | D27: 2020-02-28 | E27: 2020-03-31 | F27: 2020-04-30 | G27: 2020-05-29 | H27: 2020-06-30 | I27: 2020-07-31 | J27: 2020-08-31 | K27: 2020-09-30 | L27: 2020-10-30 | M27: 2020-11-30 | N27: 2020-12-30 | O27: 2021-01-29 | P27: 2021-02-26 | Q27: 2021-03-31 | R27: 2021-04-30 | S27: 2021-05-31 | T27: =T5 -> 2021-06-30 | U27: =U5 -> 2021-07-30 | V27: =V5 -> 2021-08-31 | W27: 2021-09-30 | X27: 2021-10-29 | Y27: 2021-11-30 | Z27: 2021-12-30 | AA27: 2022-01-31 | AB27: 2022-02-25 | AC27: 2022-03-31 | AD27: Acumulado
B28: Receitas | C28: 0.9020752771 | D28: 0.928339397 | E28: 0.7930957344 | F28: 0.7120830876 | G28: 0.6063589634 | H28: 0.9837636102 | I28: 0.7973449711 | J28: 0.8786996433 | K28: 0.8474106585 | L28: 1.123675317 | M28: 1.235512642 | N28: 1.098955226 | O28: 1.16052514 | P28: 1.169538229 | Q28: 1.221136053 | R28: 1.157548742 | S28: 1.115945474 | T28: 1.295520495 | U28: 1.118351416 | V28: 1.009836708 | W28: 1.183883928 | X28: 1.186110981 | Y28: 1.147672948 | Z28: 1.293041557 | AA28: 1.165937742 | AB28: 1.218153742 | AC28: 1.347028948 | AD28: 28.69754663
B29: Renda fixa | C29: 0.01218056677 | D29: 1.565637515e-05 | E29: 0.03836629241 | F29: 0.002813717386 | G29: 0.002524913925 | H29: 0.02793307919 | I29: 0.01271413241 | J29: 0.009577688311 | K29: -0.003398645622 | L29: -0.003119600356 | M29: 0.004281888396 | N29: 0.009314964854 | O29: 0.003197413245 | P29: 0.002029661332 | Q29: 0.01833917483 | R29: 0.005022039322 | S29: 0.01080892864 | T29: 0.04176689633 | U29: 0.03005221393 | V29: 0.02937322224 | W29: 0.02708244712 | X29: 0.01111155566 | Y29: 0.006771886437 | Z29: 0.006092364432 | AA29: 0.002977107014 | AB29: 0.006115221419 | AC29: 0.005328439812 | AD29: 0.3192732258
B30: Rendimento de CRIs | C30: 0.4582714264 | D30: 0.4706361361 | E30: 0.4888046099 | F30: 0.4319752683 | G30: 0.4071799199 | H30: 0.4927679874 | I30: 0.253460268 | J30: 0.2543660398 | K30: 0.3202216962 | L30: 0.3362152245 | M30: 0.3685556236 | N30: 0.4568302558 | O30: 0.4703710531 | P30: 0.5463241134 | Q30: 0.4925119729 | R30: 0.4470696295 | S30: 0.4232809026 | T30: 0.5638137506 | U30: 0.3108310026 | V30: 0.2803940889 | W30: 0.3110662591 | X30: 0.2609097978 | Y30: 0.330119688 | Z30: 0.3425149038 | AA30: 0.4352000635 | AB30: 0.357577113 | AC30: 0.453111784 | AD30: 10.76438058
B31: Ganhos de Capital CRIs | C31: 0.005627864945 | D31: 0.3309919246 | E31: -0.1786155199 | F31: 0.01443612812 | G31: 0.0007415446104 | H31: 0.1306069871 | I31: 0.3205958014 | J31: 0.3931632673 | K31: 0.2016342174 | L31: 0.4639029001 | M31: 0.5679376701 | N31: 0.4397616565 | O31: 0.2544745031 | P31: 0.01992919297 | Q31: 0.2198953608 | R31: 0.3779916884 | S31: 0.3369076579 | T31: 0.4105265186 | U31: 0.4612742729 | V31: 0.3911918109 | W31: 0.1582417572 | X31: 0.259600447 | Y31: 0.4025248443 | Z31: 0.6398207986 | AA31: 0.3984190267 | AB31: 0.5631394524 | AC31: 0.595692567 | AD31: 8.180414341
B32: Rendimento de FII | C32: 0.09347552267 | D32: 0.1266956798 | E32: 0.07796580124 | F32: 0.154315365 | G32: 0.1200779544 | H32: 0.1024054831 | I32: 0.09217316565 | J32: 0.09416875724 | K32: 0.122620796 | L32: 0.1746201582 | M32: 0.1784684949 | N32: 0.1847991408 | O32: 0.213544272 | P32: 0.3666225867 | Q32: 0.2429426203 | R32: 0.2202519444 | S32: 0.2542500087 | T32: 0.2889115136 | U32: 0.2516439733 | V32: 0.2406665133 | W32: 0.2375895077 | X32: 0.2553075835 | Y32: 0.3117312783 | Z32: 0.3182647981 | AA32: 0.3404881558 | AB32: 0.3106270319 | AC32: 0.2967517208 | AD32: 5.671379827
B33: Ganhos de Capital FII | C33: 0.3325198963 | D33: 0 | E33: 0.3665745508 | F33: 0.1085426088 | G33: 0.07583463054 | H33: 0.2300500734 | I33: 0.1184016036 | J33: 0.1274238906 | K33: 0.2063325945 | L33: 0.1520566347 | M33: 0.1162689646 | N33: 0.008249208403 | O33: 0.2189378983 | P33: 0.2346326744 | Q33: 0.2474469239 | R33: 0.1072134408 | S33: 0.09069797599 | T33: -0.009498184342 | U33: 0.0645499531 | V33: 0.06821107281 | W33: 0.4499039565 | X33: 0.3991815971 | Y33: 0.09652525121 | Z33: -0.0136513075 | AA33: -0.0111466105 | AB33: -0.01930507676 | AC33: -0.003855563594 | AD33: 3.762098658
B34: Despesas | C34: -0.1935595477 | D34: -0.1009122977 | E34: -0.1576033001 | F34: -0.1055117792 | G34: -0.1026327076 | H34: -0.1693072897 | I34: -0.1159950536 | J34: -0.1155400777 | K34: -0.1292588627 | L34: -0.118839195 | M34: -0.1104376455 | N34: -0.1222670656 | O34: -0.1528418842 | P34: -0.140234455 | Q34: -0.1655944593 | R34: -0.1129298166 | S34: -0.1108278962 | T34: -0.1186377859 | U34: -0.1005121542 | V34: -0.1012981388 | W34: -0.1771141238 | X34: -0.1754494329 | Y34: -0.1341988291 | Z34: -0.08551034549 | AA34: -0.1222478298 | AB34: -0.1543210025 | AC34: -0.2496305521 | AD34: -3.643213528
B35: Resultado | C35: 0.7085157294 | D35: 0.8274270993 | E35: 0.6354924343 | F35: 0.6065713084 | G35: 0.5037262558 | H35: 0.7783318753 | I35: 0.6813499175 | J35: 0.7631595656 | K35: 0.7181517957 | L35: 1.004836122 | M35: 1.125074996 | N35: 0.9766881608 | O35: 1.007683255 | P35: 1.029303774 | Q35: 1.055541593 | R35: 1.044618926 | S35: 1.005117578 | T35: 1.176882709 | U35: 1.017839262 | V35: 0.9085385694 | W35: 1.006769804 | X35: 1.010661548 | Y35: 1.013474119 | Z35: 1.207531212 | AA35: 1.043689913 | AB35: 1.063832739 | AC35: 1.097398396 | AD35: 25.01820866
B38: Resultado / Cota | C38: 0.7085157294 | D38: 0.8274270993 | E38: 0.6354924343 | F38: 0.6065713084 | G38: 0.5037262558 | H38: 0.7783318753 | I38: 0.6813499175 | J38: 0.7631595656 | K38: 0.7181517957 | L38: 1.004836122 | M38: 1.125074996 | N38: 0.9766881608 | O38: 1.007683255 | P38: 1.029303774 | Q38: 1.055541593 | R38: 1.044618926 | S38: 1.005117578 | T38: 1.176882709 | U38: 1.017839262 | V38: 0.9085385694 | W38: 1.006769804 | X38: 1.010661548 | Y38: 1.013474119 | Z38: 1.207531212 | AA38: 1.043689913 | AB38: 1.063832739 | AC38: 1.097398396 | AD38: 25.01820866
B39: Distribuição / Cota | C39: 0.65 | D39: 0.65 | E39: 0.65 | F39: 0.65 | G39: 0.65 | H39: 0.67 | I39: 0.72 | J39: 0.75 | K39: 0.72 | L39: 0.9 | M39: 1.05 | N39: 1 | O39: 1.05 | P39: 1.05 | Q39: 1.01 | R39: 1.05 | S39: 1 | T39: 1 | U39: 1.01 | V39: 1 | W39: 1 | X39: 1.01 | Y39: 1 | Z39: 1.1 | AA39: 1.1 | AB39: 1.1 | AC39: 1.1 | AD39: 24.639

Sheet Dividendos
B2: Planilha de fundamentos - CPTS11
B3: =Data -> Março/2022
A4: Capa
B5: CPTS11 - Ofertas | C5: 1ª Emissão | D5: 3ª Emissão | E5: 4ª Emissão | F5: 5ª Emissão | G5: 6ª Emissão | H5: 7ª Emissão | I5: 8ª Emissão | J5: 9ª Emissão | K5: 10ª Emissão | L5: 11ª Emissão | M5: Consolidado | O5: Data | P5: Dividendo (R$/Cota)¹ | Q5: Cota Patrimonial média (R$)¹ | R5: Preço Mercado médio (R$)¹ | S5: CDI¹ | T5: 1ª Emissão (R$ 100) | U5: 3ª Emissão (R$ 100) | V5: 4ª Emissão (R$ 101.55) | W5: 5ª Emissão (R$ 98.47) | X5: 6ª Emissão (R$ 94.10) | Y5: 7ª Emissão (R$ 97.32) | Z5: 8ª Emissão (R$ 95.75) | AA5: 9ª Emissão (R$ 97.49) | AB5: 10ª Emissão (R$ 98.35) | AC5: 11ª Emissão (R$ 97.34) | AD5: Preço de Mercado | AF5: DATA | AG5: Dividendo (R$/Cota) | AH5: Equivalente CDI | AK5: Acumulado por ano | AL5: 2014 | AM5: 2015 | AN5: 2016 | AO5: 2017 | AP5: 2018 | AQ5: 2019 | AR5: 2020 | AS5: 2021 | AT5: 2022 | AW5: Equivalente CDI | AX5: 2014 | AY5: 2015 | AZ5: 2016 | BA5: 2017 | BB5: 2018 | BC5: 2019 | BD5: 2020 | BE5: 2021 | BF5: 2022
B6: Preço da Oferta (R$) | C6: 100 | D6: 100 | E6: 98.6 | F6: 97.58 | G6: 90.54 | H6: 93.96 | I6: 93.47 | J6: 94.26 | K6: 95.11 | L6: 94.13 | M6: 94.18619391 | T6: DY² (% CDI Líq.) | U6: DY² (% CDI Líq.) | V6: DY² (% CDI Líq.) | W6: DY² (% CDI Líq.) | X6: DY² (% CDI Líq.) | Y6: DY² (% CDI Líq.) | Z6: DY² (% CDI Líq.) | AA6: DY² (% CDI Líq.) | AB6: DY² (% CDI Líq.) | AC6: DY² (% CDI Líq.) | AD6: DY² (% CDI Líq.) | AK6: Jan | AL6: 0 | AM6: 0.63 | AN6: 2 | AO6: 1 | AP6: 0.72 | AQ6: 0.65 | AR6: 0.65 | AS6: 1.05 | AT6: 1.1 | AW6: Jan | AX6: 0 | AY6: 0.8038421127 | AZ6: 0.9154002516 | BA6: 0.9692860703 | BB6: 0.4667324553 | BC6: 0.426043773 | BD6: 0.3127264585 | BE6: 0.1201004385 | BF6: 0.5846810258
B7: Data da liquidação | C7: 2014-08-29 | D7: 2016-10-31 | E7: 2018-11-30 | F7: 2019-09-30 | G7: 2020-06-30 | H7: 2020-08-31 | I7: 2020-12-31 | J7: 2021-02-26 | K7: 2021-05-02 | L7: 2021-11-05 | M7: Aug-14-Nov-21 | O7: 2014 | P7: 5.47756131 | Q7: 100.6424039 | R7: 101.025 | S7: 0.04452554289 | T7: 5.48% (145%) | AD7: 5.42% (143%) | AF7: 2014-09-30 | AG7: 0.68637903 | AH7: 0.7695762738 | AK7: Fev | AL7: 0 | AM7: 1 | AN7: 1.3 | AO7: 1.05 | AP7: 0.7 | AQ7: 0.65 | AR7: 0.65 | AS7: 1.05 | AT7: 1.1 | AW7: Fev | AX7: 0 | AY7: 0.7093149538 | AZ7: 0.8699958167 | BA7: 0.7416167565 | BB7: 0.3936086727 | BC7: 0.4050378873 | BD7: 0.2448453101 | BE7: 0.108938466 | BF7: 0.5893927857
B8: Tipo Oferta | C8: ICVM 400 | D8: ICVM 476 | E8: ICVM 400 | F8: ICVM 476 | G8: ICVM 400 | H8: ICVM 476 | I8: ICVM 400 | J8: ICVM 476 | K8: ICVM 476 | L8: ICVM 476 | M8: - | O8: 2015 | P8: 13.89852348 | Q8: 102.4218431 | R8: 102.7558333 | S8: 0.132391938 | T8: 13.90% (124%) | AD8: 13.53% (120%) | AF8: 2014-10-31 | AG8: 0.74334432 | AH8: 0.8028636102 | AK8: Mar | AL8: 0 | AM8: 0.96 | AN8: 1.2 | AO8: 1.1 | AP8: 0.75 | AQ8: 0.65 | AR8: 0.65 | AS8: 1.01 | AT8: 1.1 | AW8: Mar | AX8: 0 | AY8: 0.8953119703 | AZ8: 1.001016357 | BA8: 0.8990329859 | BB8: 0.4486714665 | BC8: 0.3872786703 | BD8: 0.2744204648 | BE8: 0.1602146284 | BF8: 0.733019875
B9: Coordenador Líder | C9: BNYM | D9: CM | E9: CM | F9: XP | G9: XP | H9: XP | I9: XP | J9: XP | K9: XP | L9: XP | M9: - | O9: 2016 | P9: 14.91 | Q9: 101.619946 | R9: 102.2916667 | S9: 0.139991775 | T9: 14.91% (125%) | U9: 2.56% (93%) | AD9: 14.58% (122%) | AF9: 2014-11-28 | AG9: 1.6 | AH9: 0.7194391373 | AK9: Abr | AL9: 0 | AM9: 0.7111971 | AN9: 1.3 | AO9: 1 | AP9: 0.8 | AQ9: 0.67 | AR9: 0.65 | AS9: 1.05 | AW9: Abr | AX9: 0 | AY9: 0.8234243589 | AZ9: 0.9131343082 | BA9: 0.676279235 | BB9: 0.4389190584 | BC9: 0.4267314469 | BD9: 0.2310772681 | BE9: 0.1681080974
B10: Custo Unitário de Distribuição | C10: 0 | D10: 0 | E10: 2.95 | F10: 0.89 | G10: 3.56 | H10: 3.36 | I10: 2.28 | J10: 3.23 | K10: 3.24 | L10: 3.21 | M10: 2.868905954 | O10: 2017 | P10: 10.26 | Q10: 100.4272594 | R10: 99.21166667 | S10: 0.09925473997 | T10: 10.26% (121%) | U10: 10.26% (121%) | AD10: 10.34% (122%) | AF10: 2014-12-31 | AG10: 2.44783796 | AH10: 0.8185930069 | AK10: Mai | AL10: 0 | AM10: 0.76732638 | AN10: 1.4 | AO10: 0.7 | AP10: 0.7 | AQ10: 0.75 | AR10: 0.65 | AS10: 1 | AW10: Mai | AX10: 0 | AY10: 0.8632331937 | AZ10: 0.9649567397 | BA10: 0.787511337 | BB10: 0.4252426386 | BC10: 0.4491258875 | BD10: 0.1924791648 | BE10: 0.2160731063
B11: Preço total (R$) | C11: 100 | D11: 100 | E11: 101.55 | F11: 98.47 | G11: 94.1 | H11: 97.32 | I11: 95.75 | J11: 97.49 | K11: 98.35 | L11: 97.34 | M11: 97.05509986 | O11: 2018 | P11: 9.65 | Q11: 97.80884 | R11: 100.0516667 | S11: 0.06421354794 | T11: 9.65% (177%) | U11: 9.65% (177%) | V11: 1.92% (108%) | AD11: 9.65% (177%) | AF11: 2015-01-30 | AG11: 0.63 | AH11: 0.8038421127 | AK11: Jun | AL11: 0 | AM11: 0.83 | AN11: 1.3 | AO11: 0.8 | AP11: 0.8 | AQ11: 0.8 | AR11: 0.67 | AS11: 1 | AW11: Jun | AX11: 0 | AY11: 0.9380667117 | AZ11: 1.010944183 | BA11: 0.6865739956 | BB11: 0.4262648431 | BC11: 0.3882933628 | BD11: 0.169555693 | BE11: 0.2471127087
B12: Nº de cotas | C12: 500000 | D12: 500000 | E12: 577825 | F12: 1537200 | G12: 4638834 | H12: 688248 | I12: 5013054 | J12: 4923580 | K12: 7402694 | L12: 2191194 | M12: 27972629 | O12: 2019 | P12: 8.3 | Q12: 97.56744913 | R12: 104.8133333 | S12: 0.05959882799 | T12: 8.30% (164%) | U12: 8.30% (164%) | V12: 8.17% (161%) | W12: 2.67% (183%) | AD12: 7.92% (156%) | AF12: 2015-02-27 | AG12: 1 | AH12: 0.7093149538 | AK12: Jul | AL12: 0 | AM12: 3 | AN12: 1.3 | AO12: 0.85 | AP12: 0.85 | AQ12: 0.75 | AR12: 0.72 | AS12: 1.01 | AW12: Jul | AX12: 0 | AY12: 1.021669515 | AZ12: 0.9672430273 | BA12: 0.6859897053 | BB12: 0.4292453082 | BC12: 0.4540231405 | BD12: 0.156857442 | BE12: 0.288298271
B13: Volume Bruto de captação (R$) | C13: 50000000 | D13: 50000000 | E13: 58678128.75 | F13: 151368084 | G13: 436514279.4 | H13: 66980295.36 | I13: 479999920.5 | J13: 479999814.2 | K13: 728054954.9 | L13: 213290824 | M13: 2714886301 | O13: 2020 | P13: 9.06 | Q13: 95.07215867 | R13: 98.69833333 | S13: 0.02767699432 | T13: 9.06% (385%) | U13: 9.06% (385%) | V13: 8.92% (379%) | W13: 9.20% (391%) | AD13: 9.18% (390%) | AF13: 2015-03-31 | AG13: 0.96 | AH13: 0.8953119703 | AK13: Ago | AL13: 0 | AM13: 0 | AN13: 1.3 | AO13: 0.72 | AP13: 0.8 | AQ13: 0.75 | AR13: 0.75 | AS13: 0.999 | AW13: Ago | AX13: 0 | AY13: 0 | AZ13: 1.041920885 | BA13: 0.6841102531 | BB13: 0.4684032731 | BC13: 0.4158632196 | BD13: 0.1284162454 | BE13: 0.3422026016
B14: Volume Líquido de captação (R$) | C14: 50000000 | D14: 50000000 | E14: 56973545 | F14: 149999976 | G14: 420000030.4 | H14: 64667782.08 | I14: 468570157.4 | J14: 464096650.8 | K14: 704070226.3 | L14: 206257091.2 | M14: 2634635459 | O14: 2021-01-31 | P14: 1.05 | Q14: 94.51738578 | R14: 102 | S14: 0.001494906279 | T14: 1.05% (826%) | U14: 1.05% (826%) | V14: 1.03% (814%) | W14: 1.07% (839%) | X14: 1.12% (878%) | Y14: 1.08% (849%) | Z14: 1.10% (863%) | AD14: 1.03% (810%) | AF14: 2015-04-30 | AG14: 0.7111971 | AH14: 0.8234243589 | AK14: Set | AL14: 0.68637903 | AM14: 2.4 | AN14: 1.25 | AO14: 0.72 | AP14: 0.78 | AQ14: 0.7 | AR14: 0.72 | AS14: 1 | AW14: Set | AX14: 0.7695762738 | AY14: 1.919622808 | AZ14: 0.9611496321 | BA14: 0.5474594316 | BB14: 0.3803086812 | BC14: 0.3839252996 | BD14: 0.1247154912 | BE14: 0.3506520007
O15: 2021-02-26 | P15: 1.05 | Q15: 95.26608089 | R15: 99.96 | S15: 0.001345315143 | T15: 1.05% (918%) | U15: 1.05% (918%) | V15: 1.03% (904%) | W15: 1.07% (932%) | X15: 1.12% (976%) | Y15: 1.08% (944%) | Z15: 1.10% (959%) | AD15: 1.05% (919%) | AF15: 2015-05-29 | AG15: 0.76732638 | AH15: 0.8632331937 | AK15: Out | AL15: 0.74334432 | AM15: 1.2 | AN15: 0.81 | AO15: 0.75 | AP15: 0.8 | AQ15: 0.65 | AR15: 0.9 | AS15: 1.01 | AW15: Out | AX15: 0.8028636102 | AY15: 0.9752390711 | AZ15: 0.8952950734 | BA15: 0.553044706 | BB15: 0.4503623194 | BC15: 0.4014418028 | BD15: 0.1246817486 | BE15: 0.3825600587
O16: 2021-03-17 | P16: 1.01 | Q16: 95.11325063 | R16: 101.5 | S16: 0.001981719654 | T16: 1.01% (600%) | U16: 1.01% (600%) | V16: 0.99% (590%) | W16: 1.03% (609%) | X16: 1.07% (637%) | Y16: 1.04% (616%) | Z16: 1.05% (626%) | AD16: 1.00% (591%) | AF16: 2015-06-30 | AG16: 0.83 | AH16: 0.9380667117 | AK16: Nov | AL16: 1.6 | AM16: 1.2 | AN16: 0.9 | AO16: 0.85 | AP16: 0.8 | AQ16: 0.65 | AR16: 1.05 | AS16: 1 | AW16: Nov | AX16: 0.7194391373 | AY16: 0.9131567947 | AZ16: 0.8853646321 | BA16: 0.4605557459 | BB16: 0.3881153584 | BC16: 0.2991765047 | BD16: 0.1197687242 | BE16: 0.4725314753
O17: 2021-04-20 | P17: 1.05 | Q17: 95.17774345 | R17: 102 | S17: 0.00207794622 | T17: 1.05% (594%) | U17: 1.05% (594%) | V17: 1.03% (585%) | W17: 1.07% (604%) | X17: 1.12% (632%) | Y17: 1.08% (611%) | Z17: 1.10% (621%) | AA17: 1.08% (610%) | AD17: 1.03% (583%) | AF17: 2015-07-31 | AG17: 3 | AH17: 1.021669515 | AK17: Dez | AL17: 2.44783796 | AM17: 1.2 | AN17: 0.85 | AO17: 0.72 | AP17: 1.15 | AQ17: 0.63 | AR17: 1 | AS17: 1.1 | AW17: Dez | AX17: 0.8185930069 | AY17: 1.011387785 | AZ17: 0.9109238798 | BA17: 0.4512341947 | BB17: 0.3678072888 | BC17: 0.2862623488 | BD17: 0.1317608875 | BE17: 0.614004436
O18: 2021-05-19 | P18: 1 | Q18: 95.05612218 | R18: 99.8 | S18: 0.002674248103 | T18: 1.00% (440%) | U18: 1.00% (440%) | V18: 0.98% (433%) | W18: 1.02% (447%) | X18: 1.06% (468%) | Y18: 1.03% (452%) | Z18: 1.04% (459%) | AA18: 1.03% (451%) | AD18: 1.00% (441%) | AF18: 2015-09-01 | AG18: 1.2 | AH18: 1.006354118
O19: 2021-06-18 | P19: 1 | Q19: 95.35005134 | R19: 100.22 | S19: 0.003048984554 | T19: 1.00% (386%) | U19: 1.00% (386%) | V19: 0.98% (380%) | W19: 1.02% (392%) | X19: 1.06% (410%) | Y19: 1.03% (396%) | Z19: 1.04% (403%) | AA19: 1.03% (396%) | AB19: 1.02% (392%) | AD19: 1.00% (385%) | AF19: 2015-09-30 | AG19: 1.2 | AH19: 0.9132686901 | AK19: Total/ano | AL19: 2014 | AM19: 2015 | AN19: 2016 | AO19: 2017 | AP19: 2018 | AQ19: 2019 | AR19: 2020 | AS19: 2021 | AT19: 2022 | AU19: LTM
O20: 2021-07-20 | P20: 1.01 | Q20: 95.37649577 | R20: 99.69 | S20: 0.003556163746 | T20: 1.01% (334%) | U20: 1.01% (334%) | V20: 0.99% (329%) | W20: 1.03% (339%) | X20: 1.07% (355%) | Y20: 1.04% (343%) | Z20: 1.05% (349%) | AA20: 1.04% (343%) | AB20: 1.03% (340%) | AD20: 1.01% (335%) | AF20: 2015-10-30 | AG20: 1.2 | AH20: 0.9752390711 | AK20: CPTS | AL20: 5.47756131 | AM20: 13.89852348 | AN20: 14.91 | AO20: 10.26 | AP20: 9.65 | AQ20: 8.3 | AR20: 9.06 | AS20: 12.279 | AT20: 3.3 | AU20: 12.469
O21: 2021-08-18 | P21: 0.999 | Q21: 94.91994415 | R21: 98.4 | S21: 0.004241377295 | T21: 1.00% (277%) | U21: 1.00% (277%) | V21: 0.98% (273%) | W21: 1.01% (281%) | X21: 1.06% (294%) | Y21: 1.03% (285%) | Z21: 1.04% (289%) | AA21: 1.02% (284%) | AB21: 1.02% (282%) | AD21: 1.02% (282%) | AF21: 2015-11-30 | AG21: 1.2 | AH21: 0.9131567947 | AK21: CDI | AL21: 3.110472028 | AM21: 10.87426928 | AN21: 11.33734479 | AO21: 8.142694417 | AP21: 5.083681364 | AQ21: 4.723203344 | AR21: 2.211304898 | AS21: 3.470796289 | AT21: 1.907093686 | AU21: 4.988636442
O22: 2021-09-20 | P22: 1 | Q22: 94.13833432 | R22: 98.1 | S22: 0.004382186795 | T22: 1.00% (268%) | U22: 1.00% (268%) | V22: 0.98% (264%) | W22: 1.02% (273%) | X22: 1.06% (285%) | Y22: 1.03% (276%) | Z22: 1.04% (280%) | AA22: 1.03% (275%) | AB22: 1.02% (273%) | AD22: 1.02% (274%) | AF22: 2015-12-31 | AG22: 1.2 | AH22: 1.011387785
O23: 2021-10-19 | P23: 1.01 | Q23: 93.68799491 | R23: 97.95 | S23: 0.004803930939 | T23: 1.01% (247%) | U23: 1.01% (247%) | V23: 0.99% (244%) | W23: 1.03% (251%) | X23: 1.07% (263%) | Y23: 1.04% (254%) | Z23: 1.05% (258%) | AA23: 1.04% (254%) | AB23: 1.03% (251%) | AD23: 1.03% (253%) | AF23: 2016-01-29 | AG23: 2 | AH23: 0.9154002516
O24: 2021-11-19 | P24: 1 | Q24: 94.7447712 | R24: 95.8 | S24: 0.005867546839 | T24: 1.00% (201%) | U24: 1.00% (201%) | V24: 0.98% (197%) | W24: 1.02% (204%) | X24: 1.06% (213%) | Y24: 1.03% (206%) | Z24: 1.04% (209%) | AA24: 1.03% (206%) | AB24: 1.02% (204%) | AD24: 1.04% (209.3%) | AF24: 2016-02-29 | AG24: 1.3 | AH24: 0.8699958167
O25: 2021-12-17 | P25: 1.1 | Q25: 94.60450966 | R25: 95.96 | S25: 0.007635557359 | T25: 1.10% (169%) | U25: 1.10% (169%) | V25: 1.08% (167%) | W25: 1.12% (172%) | X25: 1.17% (180%) | Y25: 1.13% (174%) | Z25: 1.15% (177%) | AA25: 1.13% (174%) | AB25: 1.12% (172%) | AC25: 1.13% (174%) | AD25: 1.15% (176.6%) | AF25: 2016-03-31 | AG25: 1.2 | AH25: 1.001016357 | AR25: CPTS | AS25: CDI
O26: 2022-01-19 | P26: 1.1 | Q26: 93.93458346 | R26: 96.7 | S26: 0.007322755954 | T26: 1.10% (177%) | U26: 1.10% (177%) | V26: 1.08% (174%) | W26: 1.12% (179%) | X26: 1.17% (188%) | Y26: 1.13% (182%) | Z26: 1.15% (185%) | AA26: 1.13% (181%) | AB26: 1.12% (180%) | AC26: 1.13% (182%) | AD26: 1.14% (182.8%) | AF26: 2016-04-29 | AG26: 1.3 | AH26: 0.9131343082
O27: 2022-02-17 | P27: 1.1 | Q27: 92.5059897 | R27: 95.5 | S27: 0.007495766269 | T27: 1.10% (173%) | U27: 1.10% (173%) | V27: 1.08% (170%) | W27: 1.12% (175%) | X27: 1.17% (183%) | Y27: 1.13% (177%) | Z27: 1.15% (180%) | AA27: 1.13% (177%) | AB27: 1.12% (176%) | AC27: 1.13% (177%) | AD27: 1.15% (180.8%) | AF27: 2016-05-31 | AG27: 1.4 | AH27: 0.9649567397
O28: 2022-03-18 | P28: 1.1 | Q28: 93.38653747 | R28: 95 | S28: 0.009234482259 | T28: 1.10% (140%) | U28: 1.10% (140%) | V28: 1.08% (138%) | W28: 1.12% (142%) | X28: 1.17% (149%) | Y28: 1.13% (144%) | Z28: 1.15% (146%) | AA28: 1.13% (144%) | AB28: 1.12% (142%) | AC28: 1.13% (144%) | AD28: 1.16% (147.5%) | AF28: 2016-06-30 | AG28: 1.3 | AH28: 1.010944183
AF29: 2016-07-29 | AG29: 1.3 | AH29: 0.9672430273
O30: ¹ Desde 05/08/2014 | AF30: 2016-08-31 | AG30: 1.3 | AH30: 1.041920885
O31: ² Dividend Yield | AF31: 2016-09-30 | AG31: 1.25 | AH31: 0.9611496321
AF32: 2016-10-31 | AG32: 0.81 | AH32: 0.8952950734
AF33: 2016-11-30 | AG33: 0.9 | AH33: 0.8853646321
AF34: 2016-12-29 | AG34: 0.85 | AH34: 0.9109238798
AF35: 2017-01-31 | AG35: 1 | AH35: 0.9692860703
AF36: 2017-02-24 | AG36: 1.05 | AH36: 0.7416167565
AF37: 2017-03-31 | AG37: 1.1 | AH37: 0.8990329859
AF38: 2017-04-28 | AG38: 1 | AH38: 0.676279235
AF39: 2017-05-31 | AG39: 0.7 | AH39: 0.787511337
AF40: 2017-06-30 | AG40: 0.8 | AH40: 0.6865739956
AF41: 2017-07-31 | AG41: 0.85 | AH41: 0.6859897053
AF42: 2017-08-31 | AG42: 0.72 | AH42: 0.6841102531
AF43: 2017-09-29 | AG43: 0.72 | AH43: 0.5474594316
AF44: 2017-10-31 | AG44: 0.75 | AH44: 0.553044706
AF45: 2017-11-30 | AG45: 0.85 | AH45: 0.4605557459
AF46: 2017-12-29 | AG46: 0.72 | AH46: 0.4512341947
AF47: 2018-01-31 | AG47: 0.72 | AH47: 0.4667324553
AF48: 2018-02-28 | AG48: 0.7 | AH48: 0.3936086727
AF49: 2018-03-29 | AG49: 0.75 | AH49: 0.4486714665
AF50: 2018-04-30 | AG50: 0.8 | AH50: 0.4389190584
AF51: 2018-05-30 | AG51: 0.7 | AH51: 0.4252426386
AF52: 2018-06-29 | AG52: 0.8 | AH52: 0.4262648431
AF53: 2018-07-31 | AG53: 0.85 | AH53: 0.4292453082
AF54: 2018-08-31 | AG54: 0.8 | AH54: 0.4684032731
AF55: 2018-09-28 | AG55: 0.78 | AH55: 0.3803086812
AF56: 2018-10-31 | AG56: 0.8 | AH56: 0.4503623194
AF57: 2018-11-30 | AG57: 0.8 | AH57: 0.3881153584
AF58: 2018-12-28 | AG58: 1.15 | AH58: 0.3678072888
AF59: 2019-01-31 | AG59: 0.65 | AH59: 0.426043773
AF60: 2019-02-28 | AG60: 0.65 | AH60: 0.4050378873
AF61: 2019-03-29 | AG61: 0.65 | AH61: 0.3872786703
AF62: 2019-04-30 | AG62: 0.67 | AH62: 0.4267314469
AF63: 2019-05-31 | AG63: 0.75 | AH63: 0.4491258875
AF64: 2019-06-28 | AG64: 0.8 | AH64: 0.3882933628
AF65: 2019-07-31 | AG65: 0.75 | AH65: 0.4540231405
AF66: 2019-08-30 | AG66: 0.75 | AH66: 0.4158632196
AF67: 2019-09-30 | AG67: 0.7 | AH67: 0.3839252996
AF68: 2019-10-31 | AG68: 0.65 | AH68: 0.4014418028
AF69: 2019-11-29 | AG69: 0.65 | AH69: 0.2991765047
AF70: 2019-12-30 | AG70: 0.63 | AH70: 0.2862623488
AF71: 2020-01-31 | AG71: 0.65 | AH71: 0.3127264585
AF72: 2020-02-28 | AG72: 0.65 | AH72: 0.2448453101
AF73: 2020-03-31 | AG73: 0.65 | AH73: 0.2744204648
AF74: 2020-04-30 | AG74: 0.65 | AH74: 0.2310772681
AF75: 2020-05-29 | AG75: 0.65 | AH75: 0.1924791648
AF76: 2020-06-30 | AG76: 0.67 | AH76: 0.169555693
AF77: 2020-07-31 | AG77: 0.72 | AH77: 0.156857442
AF78: 2020-08-31 | AG78: 0.75 | AH78: 0.1284162454
AF79: 2020-09-30 | AG79: 0.72 | AH79: 0.1247154912
AF80: 2020-10-19 | AG80: 0.9 | AH80: 0.1246817486
AF81: 2020-11-30 | AG81: 1.05 | AH81: 0.1197687242
AF82: 2020-12-30 | AG82: 1 | AH82: 0.1317608875
AF83: 2021-01-31 | AG83: 1.05 | AH83: 0.1201004385
AF84: 2021-02-26 | AG84: 1.05 | AH84: 0.108938466
AF85: 2021-03-17 | AG85: 1.01 | AH85: 0.1602146284
AF86: 2021-04-20 | AG86: 1.05 | AH86: 0.1681080974
AF87: 2021-05-19 | AG87: 1 | AH87: 0.2160731063
AF88: 2021-06-18 | AG88: 1 | AH88: 0.2471127087
AF89: 2021-07-20 | AG89: 1.01 | AH89: 0.288298271
AF90: 2021-08-18 | AG90: 0.999 | AH90: 0.3422026016
AF91: 2021-09-20 | AG91: 1 | AH91: 0.3506520007
AF92: 2021-10-19 | AG92: 1.01 | AH92: 0.3825600587
AF93: 2021-11-19 | AG93: 1 | AH93: 0.4725314753
AF94: 2021-12-17 | AG94: 1.1 | AH94: 0.614004436
AF95: 2022-01-19 | AG95: 1.1 | AH95: 0.5846810258
AF96: 2022-02-17 | AG96: 1.1 | AH96: 0.5893927857
AF97: 2022-03-18 | AG97: 1.1 | AH97: 0.733019875

Sheet Rentabilidade
B2: Planilha de fundamentos - CPTS11
B3: =Data -> Março/2022
A4: Capa
B5: Data | C5: CPTS11 | D5: CDI | E5: IFIX | F5: CPTS11 (Cotas não ajustadas) | H5: Data | I5: CPTS11 | J5: CDI | K5: IFIX | M5: Informações Gerais | N5: 2021-10-29 | O5: 2021-11-30 | P5: 2021-12-31 | Q5: 2022-01-31 | R5: 2022-02-25 | S5: 2022-03-31 | T5: LTM | U5: Acumulado
B6: Código | C6: CPTS11 | D6: CDI | E6: IFIX | F6: CPTS não ajust. | H6: Código | I6: CPTS11 | J6: CDI | K6: IFIX | M6: Patrimônio Líquido | N6: 2415410951 | O6: 2650260334 | P6: 2646336851 | Q6: 2627597254 | R6: 2587635730 | S6: 2612266966 | T6: 2426175998 | U6: -
B7: 2014-08-05 | C7: 36.42557471 | D7: 1355.904151 | E7: 1397.56 | F7: 100 | H7: 2014-08-05 | I7: 0 | J7: 0 | K7: 0 | M7: Valor de Mercado | N7: 2525291558 | O7: 2679777858 | P7: 2684253479 | Q7: 2704953224 | R7: 2671386070 | S7: 2657399755 | T7: 2512764840 | U7: -
B8: 2014-08-06 | C8: 36.39528122 | D8: 1356.456562 | E8: 1393.9 | F8: 99.91683455 | H8: 2014-08-06 | I8: -0.0008316545 | J8: 0.0004074116877 | K8: -0.002618849996 | M8: Fundo no Período (Mercado) % | N8: 0.008702843888 | O8: -0.01182103884 | P8: 0.01221848382 | Q8: 0.01917702746 | R8: -0.001132138951 | S8: 0.00634366603 | T8: 0.05560012785 | U8: 1.698906317
B9: 2014-08-07 | C9: 36.36498772 | D9: 1357.009198 | E9: 1392.72 | F9: 99.83366909 | H9: 2014-08-07 | I9: -0.0016633091 | J9: 0.0008149893597 | K9: -0.003463178683 | M9: IFIX no Período % | N9: -0.01472564781 | O9: -0.03635711296 | P9: 0.08780251319 | Q9: -0.009936572792 | R9: -0.01288117771 | S9: 0.01416193933 | T9: -0.02837320658 | U9: 0.9891596783
B10: 2014-08-08 | C10: 36.33469423 | D10: 1357.562059 | E10: 1390.25 | F10: 99.75050364 | H10: 2014-08-08 | I10: -0.0024949636 | J10: 0.001222733084 | K10: -0.005230544664 | M10: CDI no Período % | N10: 0.004803930939 | O10: 0.005867546839 | P10: 0.007635557359 | Q10: 0.007322755954 | R10: 0.007495766269 | S10: 0.009234482259 | T10: 0.06191648062 | U10: 0.837087137
B11: 2014-08-11 | C11: 36.30440073 | D11: 1358.115146 | E11: 1391.82 | F11: 99.66733818 | H11: 2014-08-11 | I11: -0.0033266182 | J11: 0.001630642927 | K11: -0.00410715819
B12: 2014-08-12 | C12: 36.27410724 | D12: 1358.668458 | E12: 1389.8 | F12: 99.58417273 | H12: 2014-08-12 | I12: -0.0041582727 | J12: 0.002038718958 | K12: -0.005552534417
B13: 2014-08-13 | C13: 36.25731968 | D13: 1359.221995 | E13: 1392.7 | F13: 99.53808545 | H13: 2014-08-13 | I13: -0.0046191455 | J13: 0.002446961243 | K13: -0.003477489339 | M13: Rentabilidade
B14: 2014-08-14 | C14: 36.25634763 | D14: 1359.775758 | E14: 1391.48 | F14: 99.53541685 | H14: 2014-08-14 | I14: -0.0046458315 | J14: 0.002855369852 | K14: -0.004350439337
B15: 2014-08-15 | C15: 36.26725867 | D15: 1360.329747 | E15: 1397.15 | F15: 99.56537119 | H15: 2014-08-15 | I15: -0.00434628806 | J15: 0.00326394485 | K15: -0.0002933684421
B16: 2014-08-18 | C16: 36.27505574 | D16: 1360.884449 | E16: 1394.97 | F16: 99.58677666 | H16: 2014-08-18 | I16: -0.004132233391 | J16: 0.00367304572 | K16: -0.001853229915
B17: 2014-08-19 | C17: 36.28441549 | D17: 1361.438889 | E17: 1396.9 | F17: 99.6124722 | H17: 2014-08-19 | I17: -0.003875278002 | J17: 0.004081953849 | K17: -0.0004722516386
B18: 2014-08-20 | C18: 36.45992135 | D18: 1361.993555 | E18: 1393.05 | F18: 100.0942927 | H18: 2014-08-20 | I18: 0.000942926504 | J18: 0.004491028573 | K18: -0.003227052864
B19: 2014-08-21 | C19: 36.46933476 | D19: 1362.549911 | E19: 1399.34 | F19: 100.1201355 | H19: 2014-08-21 | I19: 0.001201355127 | J19: 0.004901349417 | K19: 0.001273648359
B20: 2014-08-22 | C20: 36.47874503 | D20: 1363.105517 | E20: 1398.1 | F20: 100.1459697 | H20: 2014-08-22 | I20: 0.001459697458 | J20: 0.005311117971 | K20: 0.0003863877043
B21: 2014-08-25 | C21: 36.48816718 | D21: 1363.660863 | E21: 1396.11 | F21: 100.1718366 | H21: 2014-08-25 | I21: 0.001718365981 | J21: 0.00572069347 | K21: -0.001037522539
B22: 2014-08-26 | C22: 36.49759369 | D22: 1364.217899 | E22: 1394.49 | F22: 100.1977154 | H22: 2014-08-26 | I22: 0.001977154184 | J22: 0.006131516616 | K22: -0.002196685652
B23: 2014-08-27 | C23: 36.41017047 | D23: 1364.775164 | E23: 1400.58 | F23: 99.95771037 | H23: 2014-08-27 | I23: -0.0004228962963 | J23: 0.006542507577 | K23: 0.002160909013
B24: 2014-08-28 | C24: 36.40599743 | D24: 1365.331189 | E24: 1405.66 | F24: 99.94625402 | H24: 2014-08-28 | I24: -0.000537459808 | J24: 0.006952584759 | K24: 0.005795815564
B25: 2014-08-29 | C25: 36.49010364 | D25: 1365.888908 | E25: 1413.1 | F25: 100.1771528 | H25: 2014-08-29 | I25: 0.001771528121 | J25: 0.007363911115 | K25: 0.01111937949
B26: 2014-09-01 | C26: 36.42557471 | D26: 1366.445387 | E26: 1413.51 | F26: 100 | H26: 2014-09-01 | I26: 0 | J26: 0.007774322946 | K26: 0.01141274793
B27: 2014-09-02 | C27: 36.42557471 | D27: 1367.002093 | E27: 1418.07 | F27: 100 | H27: 2014-09-02 | I27: 0 | J27: 0.008184901984 | K27: 0.01467557743
B28: 2014-09-03 | C28: 36.42557471 | D28: 1367.559026 | E28: 1418.18 | F28: 100 | H28: 2014-09-03 | I28: 0 | J28: 0.008595648296 | K28: 0.01475428604
B29: 2014-09-04 | C29: 36.42557471 | D29: 1368.116185 | E29: 1420.67 | F29: 100 | H29: 2014-09-04 | I29: 0 | J29: 0.009006561951 | K29: 0.01653596268
B30: 2014-09-05 | C30: 36.42557471 | D30: 1368.673572 | E30: 1415.76 | F30: 100 | H30: 2014-09-05 | I30: 0 | J30: 0.009417643018 | K30: 0.0130226967
B31: 2014-09-08 | C31: 36.42557471 | D31: 1369.231185 | E31: 1412.31 | F31: 100 | H31: 2014-09-08 | I31: 0 | J31: 0.009828891563 | K31: 0.01055410859
B32: 2014-09-09 | C32: 36.42557471 | D32: 1369.789026 | E32: 1413.96 | F32: 100 | H32: 2014-09-09 | I32: 0 | J32: 0.01024030766 | K32: 0.01173473769
B33: 2014-09-10 | C33: 36.42557471 | D33: 1370.347094 | E33: 1412.52 | F33: 100 | H33: 2014-09-10 | I33: 0 | J33: 0.01065189137 | K33: 0.01070437047
B34: 2014-09-11 | C34: 36.53485144 | D34: 1370.906862 | E34: 1414.92 | F34: 100.3 | H34: 2014-09-11 | I34: 0.003 | J34: 0.01106472884 | K34: 0.01242164916
B35: 2014-09-12 | C35: 36.55306423 | D35: 1371.465386 | E35: 1414.03 | F35: 100.35 | H35: 2014-09-12 | I35: 0.0035 | J35: 0.01147664843 | K35: 0.01178482498
B36: 2014-09-15 | C36: 36.57127701 | D36: 1372.024137 | E36: 1417.65 | F36: 100.4 | H36: 2014-09-15 | I36: 0.004 | J36: 0.01188873583 | K36: 0.01437505366
B37: 2014-09-16 | C37: 36.57127701 | D37: 1372.583116 | E37: 1418.49 | F37: 100.4 | H37: 2014-09-16 | I37: 0.004 | J37: 0.01230099113 | K37: 0.0149761012
B38: 2014-09-17 | C38: 36.57127701 | D38: 1373.142322 | E38: 1422.02 | F38: 100.4 | H38: 2014-09-17 | I38: 0.004 | J38: 0.01271341439 | K38: 0.01750193194
B39: 2014-09-18 | C39: 36.62591537 | D39: 1373.701756 | E39: 1424.14 | F39: 100.55 | H39: 2014-09-18 | I39: 0.0055 | J39: 0.01312600567 | K39: 0.01901886144
B40: 2014-09-19 | C40: 36.64412816 | D40: 1374.261418 | E40: 1418.66 | F40: 100.6 | H40: 2014-09-19 | I40: 0.006 | J40: 0.01353876504 | K40: 0.01509774178
B41: 2014-09-22 | C41: 36.64412816 | D41: 1374.821308 | E41: 1416.89 | F41: 100.6 | H41: 2014-09-22 | I41: 0.006 | J41: 0.01395169258 | K41: 0.01383124875
B42: 2014-09-23 | C42: 36.68055374 | D42: 1375.381427 | E42: 1418.96 | F42: 100.7 | H42: 2014-09-23 | I42: 0.007 | J42: 0.01436478835 | K42: 0.01531240161
B43: 2014-09-24 | C43: 36.69876652 | D43: 1375.943251 | E43: 1419.42 | F43: 100.75 | H43: 2014-09-24 | I43: 0.0075 | J43: 0.01477914249 | K43: 0.0156415467
B44: 2014-09-25 | C44: 36.71697931 | D44: 1376.505305 | E44: 1420.41 | F44: 100.8 | H44: 2014-09-25 | I44: 0.008 | J44: 0.01519366589 | K44: 0.01634992415
B45: 2014-09-26 | C45: 36.7351921 | D45: 1377.067589 | E45: 1424.1 | F45: 100.85 | H45: 2014-09-26 | I45: 0.0085 | J45: 0.01560835862 | K45: 0.01899024013
B46: 2014-09-29 | C46: 36.7351921 | D46: 1377.628622 | E46: 1418.12 | F46: 100.85 | H46: 2014-09-29 | I46: 0.0085 | J46: 0.01602212933 | K46: 0.01471135407
B47: 2014-09-30 | C47: 36.75340489 | D47: 1378.189884 | E47: 1421.44 | F47: 100.9 | H47: 2014-09-30 | I47: 0.009 | J47: 0.01643606862 | K47: 0.01708692292
B48: 2014-10-01 | C48: 36.49842586 | D48: 1378.751375 | E48: 1421.51 | F48: 100.2 | H48: 2014-10-01 | I48: 0.002 | J48: 0.01685017656 | K48: 0.01713701022
B49: 2014-10-02 | C49: 36.76678092 | D49: 1379.313094 | E49: 1420.16 | F49: 100.25 | H49: 2014-10-02 | I49: 0.009367215345 | J49: 0.0172644532 | K49: 0.01617104096
B50: 2014-10-03 | C50: 36.76678092 | D50: 1379.875043 | E50: 1412.19 | F50: 100.25 | H50: 2014-10-03 | I50: 0.009367215345 | J50: 0.01767889863 | K50: 0.01046824465
B51: 2014-10-06 | C51: 36.78511846 | D51: 1380.43722 | E51: 1414.58 | F51: 100.3 | H51: 2014-10-06 | I51: 0.00987064039 | J51: 0.01809351291 | K51: 0.01217836801
B52: 2014-10-07 | C52: 36.80345601 | D52: 1380.999626 | E52: 1418.92 | F52: 100.35 | H52: 2014-10-07 | I52: 0.01037406544 | J52: 0.0185082961 | K52: 0.0152837803
B53: 2014-10-08 | C53: 36.82179356 | D53: 1381.563746 | E53: 1416.17 | F53: 100.4 | H53: 2014-10-08 | I53: 0.01087749048 | J53: 0.01892434281 | K53: 0.01331606514
B54: 2014-10-09 | C54: 36.8401311 | D54: 1382.128095 | E54: 1416.88 | F54: 100.45 | H54: 2014-10-09 | I54: 0.01138091553 | J54: 0.01934055947 | K54: 0.01382409342
B55: 2014-10-10 | C55: 36.85846865 | D55: 1382.692676 | E55: 1419.32 | F55: 100.5 | H55: 2014-10-10 | I55: 0.01188434057 | J55: 0.01975694614 | K55: 0.01556999342
B56: 2014-10-13 | C56: 36.8768062 | D56: 1383.257487 | E56: 1419.08 | F56: 100.55 | H56: 2014-10-13 | I56: 0.01238776562 | J56: 0.0201735029 | K56: 0.01539826555
B57: 2014-10-14 | C57: 36.67509318 | D57: 1383.821042 | E57: 1421.24 | F57: 100 | H57: 2014-10-14 | I57: 0.00685009012 | J57: 0.02058913351 | K57: 0.01694381637
B58: 2014-10-15 | C58: 36.91348129 | D58: 1384.386314 | E58: 1419.86 | F58: 100.65 | H58: 2014-10-15 | I58: 0.01339461571 | J58: 0.02100603021 | K58: 0.01595638112
B59: 2014-10-16 | C59: 36.93181884 | D59: 1384.950329 | E59: 1416.78 | F59: 100.7 | H59: 2014-10-16 | I59: 0.01389804075 | J59: 0.021422 | K59: 0.01375254014
B60: 2014-10-17 | C60: 36.95015638 | D60: 1385.516063 | E60: 1419.97 | F60: 100.75 | H60: 2014-10-17 | I60: 0.0144014658 | J60: 0.02183923692 | K60: 0.01603508973
B61: 2014-10-20 | C61: 36.96849393 | D61: 1386.082027 | E61: 1416.45 | F61: 100.8 | H61: 2014-10-20 | I61: 0.01490489084 | J61: 0.02225664427 | K61: 0.01351641432
B62: 2014-10-21 | C62: 36.98683148 | D62: 1386.648222 | E62: 1410.61 | F62: 100.85 | H62: 2014-10-21 | I62: 0.01540831589 | J62: 0.02267422212 | K62: 0.009337702854
B63: 2014-10-22 | C63: 37.00516902 | D63: 1387.214649 | E63: 1409.59 | F63: 100.9 | H63: 2014-10-22 | I63: 0.01591174093 | J63: 0.02309197055 | K63: 0.008607859412
B64: 2014-10-23 | C64: 37.02350657 | D64: 1387.781307 | E64: 1405.25 | F64: 100.95 | H64: 2014-10-23 | I64: 0.01641516598 | J64: 0.02350988963 | K64: 0.005502447122
B65: 2014-10-24 | C65: 37.02350657 | D65: 1388.348197 | E65: 1405.53 | F65: 100.95 | H65: 2014-10-24 | I65: 0.01641516598 | J65: 0.02392797942 | K65: 0.005702796302
B66: 2014-10-27 | C66: 37.02350657 | D66: 1388.915318 | E66: 1395.13 | F66: 100.95 | H66: 2014-10-27 | I66: 0.01641516598 | J66: 0.02434623999 | K66: -0.001738744669
B67: 2014-10-28 | C67: 37.04184412 | D67: 1389.482671 | E67: 1397.66 | F67: 101 | H67: 2014-10-28 | I67: 0.01691859102 | J67: 0.02476467141 | K67: 7.155327857e-05
B68: 2014-10-29 | C68: 37.02350657 | D68: 1390.050256 | E68: 1396.2 | F68: 100.95 | H68: 2014-10-29 | I68: 0.01641516598 | J68: 0.02518327376 | K68: -0.0009731245886
B69: 2014-10-30 | C69: 37.02350657 | D69: 1390.618073 | E69: 1400.47 | F69: 100.95 | H69: 2014-10-30 | I69: 0.01641516598 | J69: 0.02560204711 | K69: 0.002082200406
B70: 2014-10-31 | C70: 37.02350657 | D70: 1391.198559 | E70: 1402.46 | F70: 100.95 | H70: 2014-10-31 | I70: 0.01641516598 | J70: 0.02603016452 | K70: 0.00350611065
B71: 2014-11-03 | C71: 37.02350657 | D71: 1391.777796 | E71: 1398.45 | F71: 100.95 | H71: 2014-11-03 | I71: 0.01641516598 | J71: 0.02645736051 | K71: 0.0006368241793
B72: 2014-11-04 | C72: 37.03751274 | D72: 1392.357273 | E72: 1396.22 | F72: 100.25 | H72: 2014-11-04 | I72: 0.01679968079 | J72: 0.02688473437 | K72: -0.0009588139329
B73: 2014-11-05 | C73: 37.05598532 | D73: 1392.936993 | E73: 1391.95 | F73: 100.3 | H73: 2014-11-05 | I73: 0.0173068128 | J73: 0.02731228617 | K73: -0.004014138928
B74: 2014-11-06 | C74: 37.05598532 | D74: 1393.518447 | E74: 1386.47 | F74: 100.3 | H74: 2014-11-06 | I74: 0.0173068128 | J74: 0.02774111749 | K74: -0.007935258594
B75: 2014-11-07 | C75: 37.09293047 | D75: 1394.100144 | E75: 1383.83 | F75: 100.4 | H75: 2014-11-07 | I75: 0.01832107682 | J75: 0.02817012782 | K75: -0.009824265148
B76: 2014-11-10 | C76: 37.09293047 | D76: 1394.682084 | E76: 1377.18 | F76: 100.4 | H76: 2014-11-10 | I76: 0.01832107682 | J76: 0.02859931723 | K76: -0.01458255817
B77: 2014-11-11 | C77: 37.09293047 | D77: 1395.264266 | E77: 1366.53 | F77: 100.4 | H77: 2014-11-11 | I77: 0.01832107682 | J77: 0.0290286858 | K77: -0.02220298234
B78: 2014-11-12 | C78: 37.09293047 | D78: 1395.846692 | E78: 1361.4 | F78: 100.4 | H78: 2014-11-12 | I78: 0.01832107682 | J78: 0.0294582336 | K78: -0.02587366553
B79: 2014-11-13 | C79: 37.09293047 | D79: 1396.429361 | E79: 1352.21 | F79: 100.4 | H79: 2014-11-13 | I79: 0.01832107682 | J79: 0.0298879607 | K79: -0.03244941183
B80: 2014-11-14 | C80: 37.11140304 | D80: 1397.012273 | E80: 1349.87 | F80: 100.45 | H80: 2014-11-14 | I80: 0.01882820883 | J80: 0.03031786719 | K80: -0.03412375855
B81: 2014-11-17 | C81: 37.12987562 | D81: 1397.595428 | E81: 1347.11 | F81: 100.5 | H81: 2014-11-17 | I81: 0.01933534084 | J81: 0.03074795313 | K81: -0.03609862904
B82: 2014-11-18 | C82: 37.14834819 | D82: 1398.178827 | E82: 1345.11 | F82: 100.55 | H82: 2014-11-18 | I82: 0.01984247285 | J82: 0.0311782186 | K82: -0.03752969461
B83: 2014-11-19 | C83: 37.16682077 | D83: 1398.762469 | E83: 1341.43 | F83: 100.6 | H83: 2014-11-19 | I83: 0.02034960486 | J83: 0.03160866368 | K83: -0.04016285526
B84: 2014-11-20 | C84: 37.16682077 | D84: 1399.346355 | E84: 1341.43 | F84: 100.6 | H84: 2014-11-20 | I84: 0.02034960486 | J84: 0.03203928844 | K84: -0.04016285526
B85: 2014-11-21 | C85: 37.16682077 | D85: 1399.930484 | E85: 1344.02 | F85: 100.6 | H85: 2014-11-21 | I85: 0.02034960486 | J85: 0.03247009296 | K85: -0.03830962535
B86: 2014-11-24 | C86: 37.16682077 | D86: 1400.514858 | E86: 1351.52 | F86: 100.6 | H86: 2014-11-24 | I86: 0.02034960486 | J86: 0.0329010773 | K86: -0.03294312945
B87: 2014-11-25 | C87: 37.16682077 | D87: 1401.099475 | E87: 1354.24 | F87: 100.6 | H87: 2014-11-25 | I87: 0.02034960486 | J87: 0.03333224155 | K87: -0.03099688028
B88: 2014-11-26 | C88: 37.16682077 | D88: 1401.684337 | E88: 1357.08 | F88: 100.6 | H88: 2014-11-26 | I88: 0.02034960486 | J88: 0.03376358579 | K88: -0.02896476717
B89: 2014-11-27 | C89: 37.24071107 | D89: 1402.269442 | E89: 1356.64 | F89: 100.8 | H89: 2014-11-27 | I89: 0.0223781329 | J89: 0.03419511008 | K89: -0.02927960159
B90: 2014-11-28 | C90: 36.94514987 | D90: 1402.854792 | E90: 1361.51 | F90: 100 | H90: 2014-11-28 | I90: 0.01426402073 | J90: 0.0346268145 | K90: -0.02579495692
B91: 2014-12-01 | C91: 37.22223849 | D91: 1403.438882 | E91: 1354.97 | F91: 100.75 | H91: 2014-12-01 | I91: 0.02187100089 | J91: 0.03505758977 | K91: -0.03047454134
B92: 2014-12-02 | C92: 37.83212682 | D92: 1404.023215 | E92: 1351.08 | F92: 100.8 | H92: 2014-12-02 | I92: 0.03861441094 | J92: 0.03548854441 | K92: -0.03325796388
B93: 2014-12-03 | C93: 37.85089276 | D93: 1404.607792 | E93: 1343.45 | F93: 100.85 | H93: 2014-12-03 | I93: 0.03912959666 | J93: 0.03591967847 | K93: -0.03871747903
B94: 2014-12-04 | C94: 37.85089276 | D94: 1405.194118 | E94: 1341.81 | F94: 100.85 | H94: 2014-12-04 | I94: 0.03912959666 | J94: 0.03635210278 | K94: -0.0398909528
B95: 2014-12-05 | C95: 37.88842463 | D95: 1405.80574 | E95: 1343.84 | F95: 100.95 | H95: 2014-12-05 | I95: 0.0401599681 | J95: 0.03680318374 | K95: -0.03843842125
B96: 2014-12-08 | C96: 37.90719057 | D96: 1406.417629 | E96: 1336.17 | F96: 101 | H96: 2014-12-08 | I96: 0.04067515382 | J96: 0.03725446104 | K96: -0.04392655771
B97: 2014-12-09 | C97: 37.9259565 | D97: 1407.029784 | E97: 1331.27 | F97: 101.05 | H97: 2014-12-09 | I97: 0.04119033954 | J97: 0.03770593476 | K97: -0.04743266836
B98: 2014-12-10 | C98: 37.9259565 | D98: 1407.641204 | E98: 1331.18 | F98: 101.05 | H98: 2014-12-10 | I98: 0.04119033954 | J98: 0.03815686657 | K98: -0.04749706632
B99: 2014-12-11 | C99: 38.09484993 | D99: 1408.25289 | E99: 1330.02 | F99: 101.5 | H99: 2014-12-11 | I99: 0.04582701102 | J99: 0.03860799432 | K99: -0.04832708435
B100: 2014-12-12 | C100: 38.18867961 | D100: 1408.865844 | E100: 1321.8 | F100: 101.75 | H100: 2014-12-12 | I100: 0.04840293962 | J100: 0.03906005718 | K100: -0.05420876385
B101: 2014-12-15 | C101: 38.22621148 | D101: 1409.479065 | E101: 1320.72 | F101: 101.85 | H101: 2014-12-15 | I101: 0.04943331106 | J101: 0.03951231681 | K101: -0.05498153925
B102: 2014-12-16 | C102: 38.24497742 | D102: 1410.092553 | E102: 1304.15 | F102: 101.9 | H102: 2014-12-16 | I102: 0.04994849678 | J102: 0.03996477328 | K102: -0.06683791751
B103: 2014-12-17 | C103: 37.64446747 | D103: 1410.706307 | E103: 1312.56 | F103: 100.3 | H103: 2014-12-17 | I103: 0.03346255374 | J103: 0.04041742669 | K103: -0.06082028679
B104: 2014-12-18 | C104: 37.64446747 | D104: 1411.320329 | E104: 1318.2 | F104: 100.3 | H104: 2014-12-18 | I104: 0.03346255374 | J104: 0.04087027712 | K104: -0.05678468187
B105: 2014-12-19 | C105: 38.30127522 | D105: 1411.934618 | E105: 1323.46 | F105: 102.05 | H105: 2014-12-19 | I105: 0.05149405393 | J105: 0.04132332465 | K105: -0.05302097942
B106: 2014-12-22 | C106: 38.30127522 | D106: 1412.549174 | E106: 1319.55 | F106: 102.05 | H106: 2014-12-22 | I106: 0.05149405393 | J106: 0.04177656938 | K106: -0.05581871261
B107: 2014-12-23 | C107: 38.32004116 | D107: 1413.163998 | E107: 1324.39 | F107: 102.1 | H107: 2014-12-23 | I107: 0.05200923965 | J107: 0.04223001139 | K107: -0.05235553393
B108: 2014-12-24 | C108: 38.32004116 | D108: 1413.778084 | E108: 1324.39 | F108: 102.1 | H108: 2014-12-24 | I108: 0.05200923965 | J108: 0.04268290912 | K108: -0.05235553393
B109: 2014-12-26 | C109: 38.33880709 | D109: 1414.392437 | E109: 1329.78 | F109: 102.15 | H109: 2014-12-26 | I109: 0.05252442537 | J109: 0.04313600365 | K109: -0.04849881222
B110: 2014-12-29 | C110: 38.35757303 | D110: 1415.007057 | E110: 1332.78 | F110: 102.2 | H110: 2014-12-29 | I110: 0.05303961109 | J110: 0.04358929507 | K110: -0.04635221386
B111: 2014-12-30 | C111: 38.37633897 | D111: 1415.62295 | E111: 1336.72 | F111: 102.25 | H111: 2014-12-30 | I111: 0.05355479681 | J111: 0.04404352609 | K111: -0.04353301468
B112: 2014-12-31 | C112: 38.37633897 | D112: 1416.238105 | E112: 1336.72 | F112: 102.25 | H112: 2014-12-31 | I112: 0.05355479681 | J112: 0.04449721187 | K112: -0.04353301468
B113: 2015-01-02 | C113: 37.71953121 | D113: 1416.853527 | E113: 1346.52 | F113: 100.5 | H113: 2015-01-02 | I113: 0.03552329662 | J113: 0.0449510948 | K113: -0.03652079338
B114: 2015-01-05 | C114: 38.73436567 | D114: 1417.469216 | E114: 1352.79 | F114: 100.75 | H114: 2015-01-05 | I114: 0.0633837893 | J114: 0.04540517497 | K114: -0.03203440282
B115: 2015-01-06 | C115: 38.77281169 | D115: 1418.085172 | E115: 1347.43 | F115: 100.85 | H115: 2015-01-06 | I115: 0.06443925708 | J115: 0.04585945246 | K115: -0.03586965855
B116: 2015-01-07 | C116: 38.81125771 | D116: 1418.701397 | E116: 1351 | F116: 100.95 | H116: 2015-01-07 | I116: 0.06549472486 | J116: 0.04631392735 | K116: -0.0333152065
B117: 2015-01-08 | C117: 38.84970373 | D117: 1419.317889 | E117: 1352.45 | F117: 101.05 | H117: 2015-01-08 | I117: 0.06655019264 | J117: 0.04676859973 | K117: -0.03227768396
B118: 2015-01-09 | C118: 38.88814975 | D118: 1419.934649 | E118: 1355.06 | F118: 101.15 | H118: 2015-01-09 | I118: 0.06760566042 | J118: 0.04722346968 | K118: -0.03041014339
B119: 2015-01-12 | C119: 38.92659577 | D119: 1420.551677 | E119: 1358.68 | F119: 101.25 | H119: 2015-01-12 | I119: 0.0686611282 | J119: 0.0476785373 | K119: -0.02781991471
B120: 2015-01-13 | C120: 38.96504179 | D120: 1421.168973 | E120: 1358.96 | F120: 101.35 | H120: 2015-01-13 | I120: 0.06971659598 | J120: 0.04813380267 | K120: -0.02761956553
B121: 2015-01-14 | C121: 39.00348781 | D121: 1421.786538 | E121: 1359.88 | F121: 101.45 | H121: 2015-01-14 | I121: 0.07077206377 | J121: 0.04858926587 | K121: -0.02696127537
B122: 2015-01-15 | C122: 39.04193383 | D122: 1422.404371 | E122: 1371.12 | F122: 101.55 | H122: 2015-01-15 | I122: 0.07182753155 | J122: 0.04904492699 | K122: -0.01891868685
B123: 2015-01-16 | C123: 39.09960286 | D123: 1423.022472 | E123: 1376.51 | F123: 101.7 | H123: 2015-01-16 | I123: 0.07341073322 | J123: 0.04950078612 | K123: -0.01506196514
B124: 2015-01-19 | C124: 39.13804888 | D124: 1423.640842 | E124: 1379.29 | F124: 101.8 | H124: 2015-01-19 | I124: 0.074466201 | J124: 0.04995684334 | K124: -0.01307278399
B125: 2015-01-20 | C125: 39.13804888 | D125: 1424.25948 | E125: 1375.68 | F125: 101.8 | H125: 2015-01-20 | I125: 0.074466201 | J125: 0.05041309874 | K125: -0.01565585735
B126: 2015-01-21 | C126: 39.21494092 | D126: 1424.878388 | E126: 1374.67 | F126: 102 | H126: 2015-01-21 | I126: 0.07657713656 | J126: 0.0508695524 | K126: -0.01637854546
B127: 2015-01-22 | C127: 39.25338694 | D127: 1425.497564 | E127: 1379.17 | F127: 102.1 | H127: 2015-01-22 | I127: 0.07763260434 | J127: 0.05132620441 | K127: -0.01315864793
B128: 2015-01-23 | C128: 39.29183296 | D128: 1426.143325 | E128: 1378.63 | F128: 102.2 | H128: 2015-01-23 | I128: 0.07868807212 | J128: 0.05180246263 | K128: -0.01354503563
B129: 2015-01-26 | C129: 39.31105597 | D129: 1426.788873 | E129: 1376.07 | F129: 102.25 | H129: 2015-01-26 | I129: 0.07921580601 | J129: 0.05227856404 | K129: -0.01537679956
B130: 2015-01-27 | C130: 39.34950199 | D130: 1427.434713 | E130: 1372.38 | F130: 102.35 | H130: 2015-01-27 | I130: 0.08027127379 | J130: 0.05275488096 | K130: -0.01801711554
B131: 2015-01-28 | C131: 39.36872501 | D131: 1428.080845 | E131: 1370.51 | F131: 102.4 | H131: 2015-01-28 | I131: 0.08079900768 | J131: 0.05323141348 | K131: -0.01935516185
B132: 2015-01-29 | C132: 39.38794802 | D132: 1428.72727 | E132: 1372.91 | F132: 102.45 | H132: 2015-01-29 | I132: 0.08132674158 | J132: 0.05370816171 | K132: -0.01763788317
B133: 2015-01-30 | C133: 39.38794802 | D133: 1429.373987 | E133: 1372.06 | F133: 102.45 | H133: 2015-01-30 | I133: 0.08132674158 | J133: 0.05418512574 | K133: -0.01824608604
B134: 2015-02-02 | C134: 39.21494092 | D134: 1430.020998 | E134: 1372.96 | F134: 102 | H134: 2015-02-02 | I134: 0.07657713656 | J134: 0.05466230567 | K134: -0.01760210653
B135: 2015-02-03 | C135: 39.47649259 | D135: 1430.668301 | E135: 1373.29 | F135: 102.05 | H135: 2015-02-03 | I135: 0.083757577 | J135: 0.0551397016 | K135: -0.01736598071
B136: 2015-02-04 | C136: 39.47649259 | D136: 1431.316404 | E136: 1370.67 | F136: 102.05 | H136: 2015-02-04 | I136: 0.083757577 | J136: 0.05561768735 | K136: -0.01924067661
B137: 2015-02-05 | C137: 39.47649259 | D137: 1431.9648 | E137: 1368.99 | F137: 102.05 | H137: 2015-02-05 | I137: 0.083757577 | J137: 0.05609588963 | K137: -0.02044277169
B138: 2015-02-06 | C138: 38.86916194 | D138: 1432.61349 | E138: 1367.75 | F138: 100.48 | H138: 2015-02-06 | I138: 0.06708438351 | J138: 0.05657430854 | K138: -0.02133003234
B139: 2015-02-09 | C139: 38.86916194 | D139: 1433.262474 | E139: 1364.09 | F139: 100.48 | H139: 2015-02-09 | I139: 0.06708438351 | J139: 0.05705294418 | K139: -0.02394888234
B140: 2015-02-10 | C140: 39.65056826 | D140: 1433.911752 | E140: 1358.3 | F140: 102.5 | H140: 2015-02-10 | I140: 0.08853651781 | J140: 0.05753179665 | K140: -0.02809181717
B141: 2015-02-11 | C141: 39.65056826 | D141: 1434.561325 | E141: 1359.19 | F141: 102.5 | H141: 2015-02-11 | I141: 0.08853651781 | J141: 0.05801086604 | K141: -0.02745499299
B142: 2015-02-12 | C142: 39.66991 | D142: 1435.211191 | E142: 1364.45 | F142: 102.55 | H142: 2015-02-12 | I142: 0.08906751124 | J142: 0.05849015245 | K142: -0.02369129053
B143: 2015-02-13 | C143: 39.45715085 | D143: 1435.861352 | E143: 1365.62 | F143: 102 | H143: 2015-02-13 | I143: 0.08322658358 | J143: 0.05896965598 | K143: -0.02285411718
B144: 2015-02-18 | C144: 39.45715085 | D144: 1436.511807 | E144: 1366.02 | F144: 102 | H144: 2015-02-18 | I144: 0.08322658358 | J144: 0.05944937672 | K144: -0.02256790406
B145: 2015-02-19 | C145: 39.72793522 | D145: 1437.162557 | E145: 1366.56 | F145: 102.7 | H145: 2015-02-19 | I145: 0.09066049151 | J145: 0.05992931479 | K145: -0.02218151636
B146: 2015-02-20 | C146: 39.72793522 | D146: 1437.813602 | E146: 1362.61 | F146: 102.7 | H146: 2015-02-20 | I146: 0.09066049151 | J146: 0.06040947027 | K146: -0.02500787086
B147: 2015-02-23 | C147: 39.72793522 | D147: 1438.464942 | E147: 1364.05 | F147: 102.7 | H147: 2015-02-23 | I147: 0.09066049151 | J147: 0.06088984326 | K147: -0.02397750365
B148: 2015-02-24 | C148: 39.74727696 | D148: 1439.116577 | E148: 1367.98 | F148: 102.75 | H148: 2015-02-24 | I148: 0.09119148493 | J148: 0.06137043387 | K148: -0.0211654598
B149: 2015-02-25 | C149: 39.74727696 | D149: 1439.768507 | E149: 1363.37 | F149: 102.75 | H149: 2015-02-25 | I149: 0.09119148493 | J149: 0.06185124219 | K149: -0.02446406594
B150: 2015-02-26 | C150: 39.7666187 | D150: 1440.420732 | E150: 1368.39 | F150: 102.8 | H150: 2015-02-26 | I150: 0.09172247835 | J150: 0.06233226832 | K150: -0.02087209136
B151: 2015-02-27 | C151: 39.78596044 | D151: 1441.073253 | E151: 1369.42 | F151: 102.85 | H151: 2015-02-27 | I151: 0.09225347178 | J151: 0.06281351235 | K151: -0.02013509259
B152: 2015-03-02 | C152: 39.45715085 | D152: 1441.726069 | E152: 1364.52 | F152: 102 | H152: 2015-03-02 | I152: 0.08322658358 | J152: 0.06329497439 | K152: -0.02364120324
B153: 2015-03-03 | C153: 39.84398566 | D153: 1442.379181 | E153: 1359.53 | F153: 102 | H153: 2015-03-03 | I153: 0.09384645205 | J153: 0.06377665454 | K153: -0.02721171184
B154: 2015-03-04 | C154: 39.8830484 | D154: 1443.032589 | E154: 1355.85 | F154: 102.1 | H154: 2015-03-04 | I154: 0.09491885053 | J154: 0.0642585529 | K154: -0.02984487249
B155: 2015-03-05 | C155: 39.06273104 | D155: 1443.686293 | E155: 1354.25 | F155: 100 | H155: 2015-03-05 | I155: 0.0723984824 | J155: 0.06474066955 | K155: -0.03098972495
B156: 2015-03-06 | C156: 39.92211113 | D156: 1444.366312 | E156: 1355.19 | F156: 102.2 | H156: 2015-03-06 | I156: 0.09599124901 | J156: 0.065242194 | K156: -0.03031712413
B157: 2015-03-09 | C157: 39.92211113 | D157: 1445.046652 | E157: 1355.42 | F157: 102.2 | H157: 2015-03-09 | I157: 0.09599124901 | J157: 0.06574395467 | K157: -0.03015255159
B158: 2015-03-10 | C158: 39.96117386 | D158: 1445.727311 | E158: 1343.92 | F158: 102.3 | H158: 2015-03-10 | I158: 0.09706364749 | J158: 0.06624595169 | K158: -0.03838117863
B159: 2015-03-11 | C159: 39.96117386 | D159: 1446.408292 | E159: 1345.47 | F159: 102.3 | H159: 2015-03-11 | I159: 0.09706364749 | J159: 0.06674818517 | K159: -0.03727210281
B160: 2015-03-12 | C160: 39.96117386 | D160: 1447.089593 | E160: 1344.52 | F160: 102.3 | H160: 2015-03-12 | I160: 0.09706364749 | J160: 0.06725065522 | K160: -0.03795185895
B161: 2015-03-13 | C161: 40.00023659 | D161: 1447.771215 | E161: 1341.75 | F161: 102.4 | H161: 2015-03-13 | I161: 0.09813604598 | J161: 0.06775336194 | K161: -0.03993388477
B162: 2015-03-16 | C162: 40.01976795 | D162: 1448.453158 | E162: 1333.18 | F162: 102.45 | H162: 2015-03-16 | I162: 0.09867224522 | J162: 0.06825630545 | K162: -0.04606600074
B163: 2015-03-17 | C163: 40.03929932 | D163: 1449.135423 | E163: 1333.18 | F163: 102.5 | H163: 2015-03-17 | I163: 0.09920844446 | J163: 0.06875948586 | K163: -0.04606600074
B164: 2015-03-18 | C164: 40.05883069 | D164: 1449.818009 | E164: 1334.15 | F164: 102.55 | H164: 2015-03-18 | I164: 0.0997446437 | J164: 0.06926290329 | K164: -0.04537193394
B165: 2015-03-19 | C165: 40.07836205 | D165: 1450.500916 | E165: 1335.41 | F165: 102.6 | H165: 2015-03-19 | I165: 0.1002808429 | J165: 0.06976655784 | K165: -0.04447036263
B166: 2015-03-20 | C166: 40.07836205 | D166: 1451.184145 | E166: 1333.17 | F166: 102.6 | H166: 2015-03-20 | I166: 0.1002808429 | J166: 0.07027044963 | K166: -0.04607315607
B167: 2015-03-23 | C167: 40.07836205 | D167: 1451.867696 | E167: 1331.98 | F167: 102.6 | H167: 2015-03-23 | I167: 0.1002808429 | J167: 0.07077457876 | K167: -0.04692464009
B168: 2015-03-24 | C168: 39.17991924 | D168: 1452.55208 | E168: 1330.44 | F168: 100.3 | H168: 2015-03-24 | I168: 0.07561567785 | J168: 0.07127932288 | K168: -0.04802656058
B169: 2015-03-25 | C169: 40.13695615 | D169: 1453.236788 | E169: 1331.99 | F169: 102.75 | H169: 2015-03-25 | I169: 0.1018894407 | J169: 0.07178430493 | K169: -0.04691748476
B170: 2015-03-26 | C170: 40.15648751 | D170: 1453.921818 | E170: 1332.24 | F170: 102.8 | H170: 2015-03-26 | I170: 0.1024256399 | J170: 0.07228952501 | K170: -0.04673860156
B171: 2015-03-27 | C171: 40.15648751 | D171: 1454.607171 | E171: 1338.25 | F171: 102.8 | H171: 2015-03-27 | I171: 0.1024256399 | J171: 0.07279498325 | K171: -0.04243824952
B172: 2015-03-30 | C172: 40.19555024 | D172: 1455.292846 | E172: 1340.09 | F172: 102.9 | H172: 2015-03-30 | I172: 0.1034980384 | J172: 0.07330067975 | K172: -0.04112166919
B173: 2015-03-31 | C173: 40.21508161 | D173: 1455.978333 | E173: 1347.63 | F173: 102.95 | H173: 2015-03-31 | I173: 0.1040342376 | J173: 0.07380623621 | K173: -0.03572655199
B174: 2015-04-01 | C174: 40.21508161 | D174: 1456.664142 | E174: 1354.08 | F174: 102.95 | H174: 2015-04-01 | I174: 0.1040342376 | J174: 0.07431203081 | K174: -0.03111136552
B175: 2015-04-02 | C175: 40.21552744 | D175: 1457.350274 | E175: 1356.1 | F175: 102 | H175: 2015-04-02 | I175: 0.1040464772 | J175: 0.07481806365 | K175: -0.0296659893
B176: 2015-04-06 | C176: 39.42698769 | D176: 1458.036729 | E176: 1360.77 | F176: 100 | H176: 2015-04-06 | I176: 0.0823985071 | J176: 0.07532433485 | K176: -0.02632445119
B177: 2015-04-07 | C177: 40.27466793 | D177: 1458.723507 | E177: 1361.94 | F177: 102.15 | H177: 2015-04-07 | I177: 0.105670075 | J177: 0.07583084451 | K177: -0.02548727783
B178: 2015-04-08 | C178: 40.29438142 | D178: 1459.410609 | E178: 1364.54 | F178: 102.2 | H178: 2015-04-08 | I178: 0.1062112743 | J178: 0.07633759276 | K178: -0.02362689258
B179: 2015-04-09 | C179: 40.31409491 | D179: 1460.098035 | E179: 1364.4 | F179: 102.25 | H179: 2015-04-09 | I179: 0.1067524735 | J179: 0.0768445797 | K179: -0.02372706717
B180: 2015-04-10 | C180: 40.33380841 | D180: 1460.785785 | E180: 1365.79 | F180: 102.3 | H180: 2015-04-10 | I180: 0.1072936728 | J180: 0.07735180544 | K180: -0.0227324766
B181: 2015-04-13 | C181: 40.3535219 | D181: 1461.473858 | E181: 1365.55 | F181: 102.35 | H181: 2015-04-13 | I181: 0.107834872 | J181: 0.0778592701 | K181: -0.02290420447
B182: 2015-04-14 | C182: 40.3732354 | D182: 1462.162256 | E182: 1362.08 | F182: 102.4 | H182: 2015-04-14 | I182: 0.1083760713 | J182: 0.0783669738 | K182: -0.02538710324
B183: 2015-04-15 | C183: 40.39294889 | D183: 1462.850977 | E183: 1370.17 | F183: 102.45 | H183: 2015-04-15 | I183: 0.1089172705 | J183: 0.07887491664 | K183: -0.019598443
B184: 2015-04-16 | C184: 40.41266238 | D184: 1463.540024 | E184: 1372.27 | F184: 102.5 | H184: 2015-04-16 | I184: 0.1094584698 | J184: 0.07938309873 | K184: -0.01809582415
B185: 2015-04-17 | C185: 40.41266238 | D185: 1464.229394 | E185: 1372.39 | F185: 102.5 | H185: 2015-04-17 | I185: 0.1094584698 | J185: 0.07989152019 | K185: -0.01800996022
B186: 2015-04-20 | C186: 40.41266238 | D186: 1464.91909 | E186: 1372.52 | F186: 102.5 | H186: 2015-04-20 | I186: 0.1094584698 | J186: 0.08040018114 | K186: -0.01791694095
B187: 2015-04-22 | C187: 40.47180286 | D187: 1465.60911 | E187: 1375.39 | F187: 102.65 | H187: 2015-04-22 | I187: 0.1110820675 | J187: 0.08090908168 | K187: -0.01586336186
B188: 2015-04-23 | C188: 40.49151636 | D188: 1466.299456 | E188: 1381.31 | F188: 102.7 | H188: 2015-04-23 | I188: 0.1116232668 | J188: 0.08141822192 | K188: -0.01162740777
B189: 2015-04-24 | C189: 40.51122985 | D189: 1466.990126 | E189: 1384.53 | F189: 102.75 | H189: 2015-04-24 | I189: 0.112164466 | J189: 0.08192760199 | K189: -0.009323392198
B190: 2015-04-27 | C190: 40.53094335 | D190: 1467.681122 | E190: 1384.43 | F190: 102.8 | H190: 2015-04-27 | I190: 0.1127056653 | J190: 0.08243722199 | K190: -0.009394945476
B191: 2015-04-28 | C191: 40.53094335 | D191: 1468.372961 | E191: 1385.97 | F191: 102.8 | H191: 2015-04-28 | I191: 0.1127056653 | J191: 0.08294746367 | K191: -0.008293024986
B192: 2015-04-29 | C192: 40.53094335 | D192: 1469.065643 | E192: 1390.17 | F192: 102.8 | H192: 2015-04-29 | I192: 0.1127056653 | J192: 0.08345832765 | K192: -0.005287787286
B193: 2015-04-30 | C193: 40.59008383 | D193: 1469.758653 | E193: 1397.06 | F193: 102.95 | H193: 2015-04-30 | I193: 0.1143292631 | J193: 0.08396943263 | K193: -0.0003577663929
B194: 2015-05-04 | C194: 40.33380841 | D194: 1470.477322 | E194: 1398.93 | F194: 102.3 | H194: 2015-05-04 | I194: 0.1072936728 | J194: 0.08449946239 | K194: 0.0009802799164
B195: 2015-05-05 | C195: 39.701087 | D195: 1471.196343 | E195: 1403.05 | F195: 100 | H195: 2015-05-05 | I195: 0.08992342088 | J195: 0.08502975133 | K195: 0.003928274994
B196: 2015-05-06 | C196: 39.701087 | D196: 1471.916749 | E196: 1409.7 | F196: 100 | H196: 2015-05-06 | I196: 0.08992342088 | J196: 0.08556106119 | K196: 0.008686568019
B197: 2015-05-07 | C197: 40.67376363 | D197: 1472.637507 | E197: 1404.49 | F197: 102.45 | H197: 2015-05-07 | I197: 0.1166265447 | J197: 0.08609263122 | K197: 0.004958642205
B198: 2015-05-08 | C198: 40.67376363 | D198: 1473.358618 | E198: 1405.78 | F198: 102.45 | H198: 2015-05-08 | I198: 0.1166265447 | J198: 0.08662446154 | K198: 0.005881679499
B199: 2015-05-11 | C199: 40.67376363 | D199: 1474.080082 | E199: 1407.24 | F199: 102.45 | H199: 2015-05-11 | I199: 0.1166265447 | J199: 0.08715655229 | K199: 0.006926357366
B200: 2015-05-12 | C200: 40.67376363 | D200: 1474.801899 | E200: 1407.86 | F200: 102.45 | H200: 2015-05-12 | I200: 0.1166265447 | J200: 0.08768890359 | K200: 0.007369987693
B201: 2015-05-13 | C201: 40.75316581 | D201: 1475.52407 | E201: 1408.76 | F201: 102.65 | H201: 2015-05-13 | I201: 0.1188063915 | J201: 0.08822151557 | K201: 0.0080139672
... 1727 more rows

Sheet Movimentações
B2: Planilha de fundamentos - CPTS11
B3: =Data -> Março/2022
A4: Capa
B5: CPTS11 - Movimentações - Compras de ativos de Crédito | N5: CPTS11 - Movimentações - Vendas de ativos de Crédito
B6: Mês | C6: Código B3 | D6: Índice | E6: Ativo | F6: Volume (R$) | G6: Taxa ponderada de aquisição IPCA (%) | H6: Taxa ponderada de aquisição CDI (%) | I6: Spread ponderado de aquisição (%) | J6: Total (%) | K6: Total IPCA (%) | L6: Total CDI (%) | N6: Mês | O6: Código B3 | P6: Índice | Q6: Ativo | R6: Volume (R$) | S6: Taxa ponderada de aquisição IPCA (%) | T6: Taxa ponderada de aquisição CDI (%) | U6: Taxa ponderada de venda IPCA (%) | V6: Taxa ponderada de venda CDI (%) | W6: Spread podenrado de venda (%) | X6: Total (%) | Y6: Ganho (R$) | Z6: Total IPCA (%) | AA6: Total CDI (%)
B7: 2021-01-01 | C7: 21A0709253 | D7: IPCA + | E7: CRI BRF PE Isec 99S 4E | F7: 36000043.97 | G7: 0.05276 | I7: 0.03456929829 | J7: 0.3278895233 | K7: 0.3278895233 | N7: 2021-01-01 | O7: 20G0800227 | P7: IPCA + | Q7: CRI GSFI CRI True 236S 1E | R7: 53834298.74 | S7: 0.057491 | U7: 0.05387462716 | W7: 0.03841492673 | X7: 0.5237562225 | Y7: 2608894.538 | Z7: 0.5250927958
B8: 2021-01-01 | C8: 18L1300313 | D8: IPCA + | E8: CRI Brasil Foods ISEC 27S 4E | F8: 25007755.46 | G8: 0.059593 | I8: 0.04010280258 | J8: 0.2277714167 | K8: 0.2277714167 | N8: 2021-01-01 | O8: 18L1300313 | P8: IPCA + | Q8: CRI Brasil Foods ISEC 27S 4E | R8: 24693810.05 | S8: 0.059593 | U8: 0.061575 | W8: 0.04058949583 | X8: 0.2402471468 | Y8: -313945.4062 | Z8: 0.2408602334
B9: 2021-01-01 | C9: 20K0699593 | D9: IPCA + | E9: CRI BRF Salvador Isec | F9: 21999536.92 | G9: 0.052255 | I9: 0.04562826665 | J9: 0.2003724684 | K9: 0.2003724684 | N9: 2021-01-01 | O9: 13J0119975 | P9: IPCA + | Q9: CRI Brazilian Sec "Petrobras" 304S 1E | R9: 21665491.26 | S9: 0.05415291531 | U9: 0.04209959914 | W9: 0.02511417594 | X9: 0.2107845022 | Y9: 1619802.181 | Z9: 0.2113224031
B10: 2021-01-01 | C10: 20I0777292 | D10: IPCA + | E10: CRI Helbor ISEC 113S 4E | F10: 16593946.58 | G10: 0.055014 | I10: 0.04017995968 | J10: 0.151138183 | K10: 0.151138183 | N10: 2021-01-01 | O10: 12F0036335 | P10: IGPM + | Q10: CRI BB Mapfre | R10: 2112128.999 | S10: 0.057284 | U10: 0.04897202431 | W10: 0.005308594851 | X10: 0.02054899445 | Y10: 220930.0402 | Z10: 0.02060143342
B11: 2021-01-01 | C11: 20F0689770 | D11: IPCA + | E11: CRI GPA 82S 1E | F11: 10191929.14 | G11: 0.0555 | I11: 0.04163688468 | J11: 0.09282840854 | K11: 0.09282840854 | N11: 2021-01-01 | O11: 18E0913224 | P11: CDI + | Q11: CRI Helbor Habitasec 113S 1E | R11: 261629.4304 | T11: 0.038882 | V11: 0.03009994445 | W11: 0.0301 | X11: 0.002545404052 | Y11: 13898.66294 | AA11: 1
B12: 2021-02-01 | C12: 20G0800227 | D12: IPCA + | E12: CRI GSFI CRI True 236S 1E | F12: 78915060.67 | G12: 0.05727878394 | I12: 0.04458348399 | J12: 1 | K12: 1 | N12: 2021-01-01 | O12: 12F0028370 | P12: IPCA + | Q12: CRI Urbplan Habitasec 12S 1E | R12: 217670.95 | S12: 0.103157 | U12: 0.688753 | W12: 0.6736577464 | X12: 0.002117730094 | Y12: -708747.8913 | Z12: 0.002123134328
B13: 2021-03-01 | C13: 20G0800227 | D13: IPCA + | E13: CRI GSFI CRI True 236S 1E | F13: 100000001 | G13: 0.0575 | I13: 0.03924308297 | J13: 0.2785331843 | K13: 0.2785331843 | N13: 2021-02-01 | O13: 20G0800227 | P13: IPCA + | Q13: CRI GSFI CRI True 236S 1E | R13: 89029399.13 | S13: 0.05735731537 | U13: 0.05490044679 | W13: 0.04102183713 | X13: 0.9265019658 | Y13: 1339742.614 | Z13: 0.9313450082
B14: 2021-03-01 | C14: 20F0689770 | D14: IPCA + | E14: CRI GPA 82S 1E | F14: 44496708.76 | G14: 0.0575 | I14: 0.03987761481 | J14: 0.1239380985 | K14: 0.1239380985 | N14: 2021-02-01 | O14: 14G0401387 | P14: IGPM + | Q14: CRI Ginco SCCI 6S 1E | R14: 2184278.49 | S14: 0.356801 | U14: 0.3426920317 | W14: 0.3223756409 | X14: 0.02273112403 | Y14: 499378.9768 | Z14: 0.02284994493
B15: 2021-03-01 | C15: 19G0228153 | D15: IPCA + | E15: CRI HBR Habitasec 148S 1E | F15: 39800686.59 | G15: 0.06 | I15: 0.03954330076 | J15: 0.1108581186 | K15: 0.1108581186 | N15: 2021-02-01 | O15: 20K0699593 | P15: IPCA + | Q15: CRI BRF Salvador Isec | R15: 1096010.42 | S15: 0.0538185935 | U15: 0.047708 | W15: 0.0343482832 | X15: 0.01140584816 | Y15: 33062.98609 | Z15: 0.0114654692
B16: 2021-03-01 | C16: 20I0777292 | D16: IPCA + | E16: CRI Helbor ISEC 113S 4E | F16: 35691589.26 | G16: 0.0575 | I16: 0.04062612009 | J16: 0.09941291906 | K16: 0.09941291906 | N16: 2021-02-01 | O16: 20J0837185 | P16: IPCA + | Q16: CRI Creditas Vortx 1S 27E | R16: 999604.61 | S16: 0.065 | U16: 0.057158 | W16: 0.04017494998 | X16: 0.01040258213 | Y16: 92604.61 | Z16: 0.01045695886
B17: 2021-03-01 | C17: 14C0072810 | D17: IPCA + | E17: CRI RB Capital "BR Malls" 99S 1E | F17: 28389739.43 | G17: 0.0525 | I17: 0.03309467265 | J17: 0.07907484442 | K17: 0.07907484442 | N17: 2021-02-01 | O17: 20K0010253 | P17: IPCA + | Q17: CRI GPA EVBI RB Sec 1S 296S | R17: 874399.0168 | S17: 0.056 | U17: 0.05 | W17: 0.03425136155 | X17: 0.009099605477 | Y17: 49030.26278 | Z17: 0.009147171242
B18: 2021-03-01 | C18: 20K0571487 | D18: IPCA + | E18: CRI Via Varejo BlueMacaw Isec 1S 1E | F18: 20832761.2 | G18: 0.0534 | I18: 0.03804122705 | J18: 0.05802615254 | K18: 0.05802615254 | N18: 2021-02-01 | O18: 15H0123006 | P18: IPCA + | Q18: CRI Gran Viver Ápice 57S 1E | R18: 787073.3823 | S18: 0.1252223665 | U18: N/A | W18: N/A | X18: 0.008190834073 | Y18: -1184890.586 | Z18: 0.008233649477
B19: 2021-03-01 | C19: 20K0699593 | D19: IPCA + | E19: CRI BRF Salvador Isec | F19: 20205851.2 | G19: 0.055 | I19: 0.04966508333 | J19: 0.05628000017 | K19: 0.05628000017 | N19: 2021-02-01 | O19: 19I0330498 | P19: CDI + | Q19: CRI YOU INC Vert 2S 13E | R19: 499683.2275 | T19: 0.045 | V19: 0.040112 | W19: 0.04011177789 | X19: 0.00520005186 | Y19: 1193.818758 | AA19: 1
B20: 2021-03-01 | C20: 21C0549648 | D20: IPCA + | E20: CRI Tellus Isec 226S 4E | F20: 18594166.66 | G20: 0.0575 | I20: 0.03766870261 | J20: 0.05179092395 | K20: 0.05179092395 | N20: 2021-02-01 | O20: 14C0072810 | P20: IPCA + | Q20: CRI RB Capital "BR Malls" 99S 1E | R20: 434946.6515 | S20: 0.054405 | U20: 0.042 | W20: 0.0326407384 | X20: 0.00452635794 | Y20: 24861.18015 | Z20: 0.004550018271
B21: 2021-03-01 | C21: 17L0735098 | D21: IPCA + | E21: CRI São Carlos Cibrasec 295S 2E | F21: 17848478.41 | G21: 0.045 | I21: 0.04270623503 | J21: 0.04971393476 | K21: 0.04971393476 | N21: 2021-02-01 | O21: 12J0017777 | P21: IPCA + | Q21: CRI Urbplan Habitasec 15S 1E | R21: 186575.1 | S21: 0.09910675233 | U21: N/A | W21: N/A | X21: 0.001941630502 | Y21: -586833.3599 | Z21: 0.001951779858
B22: 2021-03-01 | C22: 19A0093844 | D22: IPCA + | E22: CRI Vinci Logística Habitasec 132S 1E | F22: 12771164.13 | G22: 0.07 | I22: 0.05573772295 | J22: 0.03557192975 | K22: 0.03557192975 | N22: 2021-03-01 | O22: 20L0456514 | P22: IPCA + | Q22: CRI iTower Isec 157S 4E | R22: 28649389.09 | S22: 0.057 | U22: 0.055 | W22: 0.03236011243 | X22: 0.415539115 | Y22: 1649389.1 | Z22: 0.415539115
B23: 2021-03-01 | C23: 19L0823309 | D23: IPCA + | E23: CRI Evolution 181S 1E | F23: 9804280.896 | G23: 0.0625 | I23: 0.03932496643 | J23: 0.02730817549 | K23: 0.02730817549 | N23: 2021-03-01 | O23: 20K0571487 | P23: IPCA + | Q23: CRI Via Varejo BlueMacaw Isec 1S 1E | R23: 11016793.01 | S23: 0.05480628486 | U23: 0.0535 | W23: 0.03228496506 | X23: 0.1597907865 | Y23: 389894.48 | Z23: 0.1597907865
B24: 2021-03-01 | C24: 13J0119975 | D24: IPCA + | E24: CRI Brazilian Sec "Petrobras" 304S 1E | F24: 6283314.835 | G24: 0.0525 | I24: 0.02691496629 | J24: 0.01750111671 | K24: 0.01750111671 | N24: 2021-03-01 | O24: 20G0800227 | P24: IPCA + | Q24: CRI GSFI CRI True 236S 1E | R24: 9833978.732 | S24: 0.0575 | U24: 0.055163 | W24: 0.03367674057 | X24: 0.1426349025 | Y24: 179257.4 | Z24: 0.1426349025
B25: 2021-03-01 | C25: 13H0098728 | D25: IPCA + | E25: CRI Brazilian Sec "Petrobras" 302S 1E | F25: 4304909.63 | G25: 0.0525 | I25: 0.03372449004 | J25: 0.01199060175 | K25: 0.01199060175 | N25: 2021-03-01 | O25: 20K0699593 | P25: IPCA + | Q25: CRI BRF Salvador Isec | R25: 8787148.113 | S25: 0.05421211937 | U25: 0.04955611681 | W25: 0.03935438064 | X25: 0.1274513651 | Y25: 157969.73 | Z25: 0.1274513651
B26: 2021-04-01 | C26: 21D0001404 | D26: IPCA + | E26: CRI Tishman Isec 240S 4E | F26: 54900000 | G26: 0.055 | I26: 0.03091357859 | J26: 0.5569021708 | K26: 0.5569021708 | N26: 2021-03-01 | O26: 13L0048356 | P26: IGPM + | Q26: CRI Cipasa Gaia 63S 4E | R26: 3622237.418 | S26: 0.1099877532 | U26: 0.095 | W26: 0.06560251546 | X26: 0.05253799046 | Y26: 977196.4 | Z26: 0.05253799046
B27: 2021-04-01 | C27: 20F0689770 | D27: IPCA + | E27: CRI GPA 82S 1E | F27: 23035594.21 | G27: 0.05880769937 | I27: 0.03457799289 | J27: 0.2336716288 | K27: 0.2336716288 | N27: 2021-03-01 | O27: 12F0036335 | P27: IGPM + | Q27: CRI BB Mapfre | R27: 3523771.978 | S27: 0.057284 | U27: 0.05 | W27: 0.01881289262 | X27: 0.05110981893 | Y27: 296913.7 | Z27: 0.05110981893
B28: 2021-04-01 | C28: 21A0709253 | D28: IPCA + | E28: CRI BRF PE Isec 99S 4E | F28: 19998362.19 | G28: 0.0525 | I28: 0.02576199826 | J28: 0.2028621369 | K28: 0.2028621369 | N28: 2021-03-01 | O28: 20J0837185 | P28: IPCA + | Q28: CRI Creditas Vortx 1S 27E | R28: 798953.58 | S28: 0.065 | U28: 0.05743880552 | W28: 0.03545193272 | X28: 0.0115882563 | Y28: 45498.01 | Z28: 0.0115882563
B29: 2021-04-01 | C29: 15C0088187 | D29: IGPDI + | E29: CRI Pillar Habitasec 52S 1E | F29: 325733.81 | G29: 0.1115911232 | I29: 0.077 | J29: 0.003304223422 | K29: 0.003304223422 | N29: 2021-03-01 | O29: 17L0735098 | P29: IPCA + | Q29: CRI São Carlos Cibrasec 295S 2E | R29: 742592.9892 | S29: 0.045 | U29: 0.04 | W29: 0.02702272829 | X29: 0.01077078581 | Y29: 17670.17 | Z29: 0.01077078581
B30: 2021-04-01 | C30: 11D0025379 | D30: IPCA + | E30: CRI GSP Gaia 27S 4E | F30: 321358.45 | G30: 0.105 | I30: 0.1588829264 | J30: 0.003259840044 | K30: 0.003259840044 | N30: 2021-03-01 | O30: 15H0123006 | P30: IPCA + | Q30: CRI Gran Viver Ápice 57S 1E | R30: 741542.2575 | S30: 0.1252223665 | U30: N/A | W30: N/A | X30: 0.01075554569 | Y30: -1070176.04 | Z30: 0.01075554569
B31: 2021-05-01 | C31: 21E0407810 | D31: IPCA + | E31: CRI Gazit True Sec 340S 1E | F31: 133266606.7 | G31: 0.05892999399 | I31: 0.03155944957 | J31: 0.4595125819 | K31: 0.4595125819 | N31: 2021-03-01 | O31: 17B0048622 | P31: IPCA + | Q31: CRI Colorado SCCI 33S 1E | R31: 466009.1492 | S31: 0.229692 | U31: 0.11 | W31: 0.1013208174 | X31: 0.006759132936 | Y31: 95008.81 | Z31: 0.006759132936
B32: 2021-05-01 | C32: 21E0514204 | D32: IPCA + | E32: CRI Hypera True Sec 392S 1E | F32: 71174000 | G32: 0.056 | I32: 0.0312728361 | J32: 0.2454129307 | K32: 0.2454129307 | N32: 2021-03-01 | O32: 15C0088187 | P32: IGPDI + | Q32: CRI Pillar Habitasec 52S 1E | R32: 325348.9705 | S32: 0.1115911232 | U32: 0.1115911232 | W32: 0.3357580478 | X32: 0.004718956583 | Y32: 89923.26 | Z32: 0.004718956583
B33: 2021-05-01 | C33: 21D0862572 | D33: IPCA + | E33: CRI Rede D'or RB Sec 324S 1E | F33: 69999429.7 | G33: 0.0534 | I33: 0.02228169747 | J33: 0.2413629301 | K33: 0.2413629301 | N33: 2021-03-01 | O33: 11D0025379 | P33: IPCA + | Q33: CRI GSP Gaia 27S 4E | R33: 321183.473 | S33: 0.08963946666 | U33: 0.105 | W33: 0.1606022981 | X33: 0.00465853899 | Y33: 113258.03 | Z33: 0.00465853899
B34: 2021-05-01 | C34: 20L0687133 | D34: IPCA + | E34: CRI GPA True 346S 1E | F34: 10520882.24 | G34: 0.056301 | I34: 0.03241907734 | J34: 0.0362767379 | K34: 0.0362767379 | N34: 2021-03-01 | O34: 20K0010253 | P34: IPCA + | Q34: CRI GPA EVBI RB Sec 1S 296S | R34: 116159.0725 | S34: 0.056 | U34: 0.05 | W34: 0.02597479435 | X34: 0.001684805147 | Y34: 8166.9 | Z34: 0.001684805147
B35: 2021-05-01 | C35: 20F0689770 | D35: IPCA + | E35: CRI GPA 82S 1E | F35: 5056399.552 | G35: 0.0523 | I35: 0.02753582144 | J35: 0.01743481936 | K35: 0.01743481936 | N35: 2021-03-01 | O35: 20F0689770 | P35: IPCA + | Q35: CRI GPA 82S 1E | R35: 51002258.9 | S35: 0.05744132061 | U35: 0.05101785651 | W35: 0.02698643204 | X35: 0.3137900056 | Y35: 2623403.272 | Z35: 0.3495239203
B36: 2021-06-01 | C36: 20G0800227 | D36: IPCA + | E36: CRI GSFI CRI True 236S 1E | F36: 248272776.5 | G36: 0.0575 | I36: 0.03484184673 | J36: 0.6155250916 | K36: 0.6155250916 | N36: 2021-03-01 | O36: 20G0800227 | P36: IPCA + | Q36: CRI GSFI CRI True 236S 1E | R36: 42780283.44 | S36: 0.0575 | U36: 0.05506100835 | W36: 0.03227020062 | X36: 0.263204526 | Y36: 957933.6352 | Z36: 0.2931778455
B37: 2021-06-01 | C37: 21F1076965 | D37: IPCA + | E37: CRI Jequitibá Plaza Shopping Habitasec 259S 1E | F37: 57000000 | G37: 0.065 | I37: 0.03760681207 | J37: 0.1413160586 | K37: 0.1413160586 | N37: 2021-04-01 | O37: 20K0010253 | P37: IPCA + | Q37: CRI GPA EVBI RB Sec 1S 296S | R37: 21265896.35 | S37: 0.056 | U37: 0.0501 | W37: 0.02474925643 | X37: 0.1308378468 | Y37: 1512970.866 | Z37: 0.145737456
B38: 2021-06-01 | C38: 21F1076305 | D38: IPCA + | E38: CRI DutraLog TrueSec 401S 1E | F38: 25000000 | G38: 0.08 | I38: 0.05344821339 | J38: 0.06198072744 | K38: 0.06198072744 | N38: 2021-04-01 | O38: 17L0735098 | P38: IPCA + | Q38: CRI São Carlos Cibrasec 295S 2E | R38: 17680836.74 | S38: 0.045 | U38: 0.039894 | W38: 0.02551227858 | X38: 0.1087808653 | Y38: 557281.1378 | Z38: 0.1211686601
B39: 2021-06-01 | C39: 20K0699593 | D39: IPCA + | E39: CRI BRF Salvador Isec | F39: 20021204.64 | G39: 0.0549 | I39: 0.04226258954 | J39: 0.04963715311 | K39: 0.04963715311 | N39: 2021-04-01 | O39: 20L0456719 | P39: CDI + | Q39: CRI iTower Isec 158S 4E | R39: 10316190.92 | T39: 0.025 | V39: 0.022577 | W39: 0.0225769127 | X39: 0.06347008301 | Y39: 316190.92 | AA39: 0.6208195317
B40: 2021-06-01 | C40: 20K0571487 | D40: IPCA + | E40: CRI Via Varejo BlueMacaw Isec 1S 1E | F40: 19048825.4 | G40: 0.05336544903 | I40: 0.0340575537 | J40: 0.04722640221 | K40: 0.04722640221 | N40: 2021-04-01 | O40: 13J0119975 | P40: IPCA + | Q40: CRI Brazilian Sec "Petrobras" 304S 1E | R40: 8473209.371 | S40: 0.05398569002 | U40: 0.04390799822 | W40: 0.01814867498 | X40: 0.05213118934 | Y40: 728418.2502 | Z40: 0.05806780761
B41: 2021-06-01 | C41: 21D0862572 | D41: IPCA + | E41: CRI Rede D'or RB Sec 324S 1E | F41: 10004420.08 | G41: 0.04995 | I41: 0.02010396293 | J41: 0.02480324936 | K41: 0.02480324936 | N41: 2021-04-01 | O41: 19I0330498 | P41: CDI + | Q41: CRI YOU INC Vert 2S 13E | R41: 4500960.68 | T41: 0.045 | V41: 0.032113 | W41: 0.0321129106 | X41: 0.02769203771 | Y41: 24606.6966 | AA41: 0.2708639577
B42: 2021-06-01 | C42: 20I0777292 | D42: IPCA + | E42: CRI Helbor Multi Renda II Isec 113S 4E | F42: 10002438.07 | G42: 0.055423 | I42: 0.02975531293 | J42: 0.0247983355 | K42: 0.0247983355 | N42: 2021-04-01 | O42: 13H0098728 | P42: IPCA + | Q42: CRI Brazilian Sec "Petrobras" 302S 1E | R42: 4468797.12 | S42: 0.0525 | U42: 0.0396 | W42: 0.01978970329 | X42: 0.02749415228 | Y42: 163887.4897 | Z42: 0.03062514332
B43: 2021-06-01 | C43: 19G0228153 | D43: IPCA + | E43: CRI HBR Habitasec 148S 1E | F43: 10002366.02 | G43: 0.059889 | I43: 0.03429189194 | J43: 0.02479815687 | K43: 0.02479815687 | N43: 2021-04-01 | O43: 15F0600033 | P43: CDI + | Q43: CRI Damha Ápice 60S 1E | R43: 1239567.731 | T43: 0.0853 | V43: 0.075569 | W43: 0.07556948743 | X43: 0.007626406624 | Y43: 14697.1794 | AA43: 0.07459612409
B44: 2021-06-01 | C44: 19H0235501 | D44: IPCA + | E44: CRI Rede D'Or TrueSec 214S 1E | F44: 3999156.568 | G44: 0.0475 | I44: 0.008375048132 | J44: 0.009914825329 | K44: 0.009914825329 | N44: 2021-04-01 | O44: 19I0329899 | P44: CDI + | Q44: CRI Vert Cia Sec. You Inc 1S 13E | R44: 560333.4417 | T44: 0.142379 | V44: 0.028998 | W44: 0.02899765445 | X44: 0.003447436203 | Y44: 43744.10777 | AA44: 0.03372038648
B45: 2021-07-01 | C45: 21G0507867 | D45: IPCA + | E45: CRI HBR ComVem Habitasec 242S 1E | F45: 120394234.8 | G45: 0.056 | I45: 0.02942102408 | J45: 0.6261409971 | K45: 0.6261409971 | N45: 2021-04-01 | O45: 20K0699593 | P45: IPCA + | Q45: CRI BRF Salvador Isec | R45: 247941.1498 | S45: 0.05421211937 | U45: 0.04793691749 | W45: 0.03240465952 | X45: 0.001525451155 | Y45: 3877.787035 | Z45: 0.001699167146
B46: 2021-07-01 | C46: 21G0093703 | D46: IPCA + | E46: CRI Vinci Renda Urbana Virgo 280S 4E | F46: 50021349.7 | G46: 0.056 | I46: 0.0306379659 | J46: 0.2601488171 | K46: 0.2601488171 | N46: 2021-05-01 | O46: 20I0777292 | P46: IPCA + | Q46: CRI Helbor Multi Renda II Isec 113S 4E | R46: 82000131.83 | S46: 0.0583087954 | U46: 0.05447855945 | W46: 0.03043632919 | X46: 0.3559890823 | Y46: 2379134.032 | Z46: 0.3562219852
B47: 2021-07-01 | C47: 19G0228153 | D47: IPCA + | E47: CRI HBR Habitasec 148S 1E | F47: 9731984.712 | G47: 0.0597 | I47: 0.03248871487 | J47: 0.05061367449 | K47: 0.05061367449 | N47: 2021-05-01 | O47: 20G0800227 | P47: IPCA + | Q47: CRI GSFI CRI True 236S 1E | R47: 31089881.44 | S47: 0.0575 | U47: 0.05616028051 | W47: 0.03397173204 | X47: 0.1349712265 | Y47: 650612.9002 | Z47: 0.1350595303
B48: 2021-07-01 | C48: 21F0569265 | D48: IPCA + | E48: CRI Grupo AIZ Isec 302S 4E | F48: 5000000 | G48: 0.055 | I48: 0.03610806906 | J48: 0.02600377826 | K48: 0.02600377826 | N48: 2021-05-01 | O48: 13J0119975 | P48: IPCA + | Q48: CRI Brazilian Sec "Petrobras" 304S 1E | R48: 30557268.06 | S48: 0.05398569002 | U48: 0.04592633598 | W48: 0.02133447837 | X48: 0.1326589796 | Y48: 2589966.764 | Z48: 0.1327457706
B49: 2021-07-01 | C49: 19H0235501 | D49: IPCA + | E49: CRI Rede D'Or TrueSec 214S 1E | F49: 4999605.92 | G49: 0.0475 | I49: 0.01876650233 | J49: 0.02600172874 | K49: 0.02600172874 | N49: 2021-05-01 | O49: 20K0571487 | P49: IPCA + | Q49: CRI Via Varejo BlueMacaw Isec 1S 1E | R49: 23998602.49 | S49: 0.05480628486 | U49: 0.05406673557 | W49: 0.035186619 | X49: 0.104185692 | Y49: 1112674.233 | Z49: 0.1042538546
B50: 2021-07-01 | C50: 21D0862572 | D50: IPCA + | E50: CRI Rede D'or RB Sec 324S 1E | F50: 2081512.229 | G50: 0.05326551358 | I50: 0.02274251877 | J50: 0.01082543649 | K50: 0.01082543649 | N50: 2021-05-01 | O50: 20F0689770 | P50: IPCA + | Q50: CRI GPA 82S 1E | R50: 20000162.98 | S50: 0.05744132061 | U50: 0.0511 | W50: 0.0263628929 | X50: 0.08682717341 | Y50: 1071083.088 | Z50: 0.08688397935
B51: 2021-07-01 | C51: 20K0571487 | D51: IPCA + | E51: CRI Via Varejo BlueMacaw Isec 1S 1E | F51: 51063.31733 | G51: 0.0534 | I51: 0.02338516737 | J51: 0.0002655678362 | K51: 0.0002655678362 | N51: 2021-05-01 | O51: 21D0862572 | P51: IPCA + | Q51: CRI Rede D'or RB Sec 324S 1E | R51: 11168959.27 | S51: 0.0534 | U51: 0.049954349 | W51: 0.02108125445 | X51: 0.04848806302 | Y51: 377300.0165 | Z51: 0.04851978592
B52: 2021-08-01 | C52: 20K0660743 | D52: IPCA + | E52: CRI Shopping Maringá Park True Sec 1E 1S | F52: 53496825.11 | G52: 0.068639206 | I52: 0.03695727626 | J52: 0.3258332983 | K52: 0.3258332983 | N52: 2021-05-01 | O52: 19L0823309 | P52: IPCA + | Q52: CRI Evolution Habitasec 181S 1E | R52: 10107029.52 | S52: 0.0625 | U52: 0.0582 | W52: 0.03379620633 | X52: 0.04387788267 | Y52: 302748.6214 | Z52: 0.0439065894
B53: 2021-08-01 | C53: 21G0864354 | D53: IPCA + | E53: CRI Via Varejo Extrema Habitasec 1E 258S | F53: 40000000 | G53: 0.085 | I53: 0.05012231376 | J53: 0.2436281387 | K53: 0.2436281387 | N53: 2021-05-01 | O53: 19G0228153 | P53: IPCA + | Q53: CRI HBR Habitasec 148S 1E | R53: 9999230.827 | S53: 0.05930781103 | U53: 0.06 | W53: 0.03687594226 | X53: 0.0434098937 | Y53: -70550.29609 | Z53: 0.04343829426
B54: 2021-08-01 | C54: 21H0862845 | D54: IPCA + | E54: CRI Plural Renda Urbana Travessia Sec 1E 82S | F54: 31048000 | G54: 0.065 | I54: 0.02871231125 | J54: 0.1891041613 | K54: 0.1891041613 | N54: 2021-05-01 | O54: 20K0699593 | P54: IPCA + | Q54: CRI BRF Salvador Isec | R54: 9273000.05 | S54: 0.05421211937 | U54: 0.05094613446 | W54: 0.0360892756 | X54: 0.04025709111 | Y54: 15842.64487 | Z54: 0.04028342897
B55: 2021-08-01 | C55: 21H0700312 | D55: IPCA + | E55: CRI Athena l Virgo 4E 335S | F55: 16500135.26 | G55: 0.0625 | I55: 0.03141944433 | J55: 0.1004974311 | K55: 0.1004974311 | N55: 2021-05-01 | O55: 20J0837185 | P55: IPCA + | Q55: CRI Creditas Vortx 1S 27E | R55: 1999644.19 | S55: 0.065 | U55: 0.0636 | W55: 0.0369 | X55: 0.0086811019 | Y55: 27159.64402 | Z55: 0.008686781437
B56: 2021-08-01 | C56: 20F0689770 | D56: IPCA + | E56: CRI GPA 82S 1E | F56: 11297515.57 | G56: 0.053486 | I56: 0.01757210666 | J56: 0.06880981727 | K56: 0.06880981727 | N56: 2021-05-01 | O56: 14K0085164 | P56: CDI + | Q56: Esser CRI Habitasec 41S 1E | R56: 150602.41 | T56: 0.06106 | U56: 0 | V56: N/A | W56: N/A | X56: 0.0006538137505 | Y56: -2264033.063 | AA56: 1
B57: 2021-08-01 | C57: 20G0800227 | D57: IPCA + | E57: CRI GSFI CRI True 236S 1E | F57: 9956093.56 | G57: 0.0526 | I57: 0.01928019547 | J57: 0.06063961358 | K57: 0.06063961358 | N57: 2021-06-01 | O57: 21D0862572 | P57: IPCA + | Q57: CRI Rede D'or RB Sec 324S 1E | R57: 43131752.99 | S57: 0.0529086706 | U57: 0.05025380811 | W57: 0.01852342795 | X57: 0.1960117809 | Y57: 1450209.658 | Z57: 0.2062757079
B58: 2021-08-01 | C58: 14E0026716 | D58: IPCA + | E58: CRI Colorado SCCI 1S 1E | F58: 1122617.368 | G58: 0.09 | I58: 0.0764 | J58: 0.006837529497 | K58: 0.006837529497 | N58: 2021-06-01 | O58: 20G0800227 | P58: IPCA + | Q58: CRI GSFI CRI True 236S 1E | R58: 33737978.11 | S58: 0.0575 | U58: 0.05498640267 | W58: 0.03113976141 | X58: 0.1533218735 | Y58: 521501.2745 | Z58: 0.1613503935
B59: 2021-08-01 | C59: 17B0048606 | D59: IPCA + | E59: CRI Colorado SCCI 32S 1E | F59: 763460.3013 | G59: 0.095 | I59: 0.0733 | J59: 0.004650010305 | K59: 0.004650010305 | N59: 2021-06-01 | O59: 20I0777292 | P59: IPCA + | Q59: CRI Helbor Multi Renda II Isec 113S 4E | R59: 32962611.99 | S59: 0.05743007102 | U59: 0.05506955001 | W59: 0.03062489725 | X59: 0.1497982306 | Y59: 761021.9796 | Z59: 0.1576422392
B60: 2021-09-01 | C60: 21I0682465 | D60: IPCA + | E60: CRI Vinci Shoppings Virgo 366S 4E | F60: 160500000 | G60: 0.0625 | I60: 0.02607504942 | J60: 0.2945597857 | K60: 0.2945597857 | N60: 2021-06-01 | O60: 20F0734290 | P60: IPCA + | Q60: CRI Boa Vista 227S 1E | R60: 27537945.12 | S60: 0.072607 | U60: 0.0666 | W60: 0.04230256575 | X60: 0.1251458912 | Y60: 2604578.24 | Z60: 0.1316990089
B61: 2021-09-01 | C61: 21I0277341 | D61: IPCA + | E61: CRI Assai TRX Barisec 93S 1E | F61: 140965272.5 | G61: 0.057 | I61: 0.02577170281 | J61: 0.2587084141 | K61: 0.2587084141 | N61: 2021-06-01 | O61: 20K0571487 | P61: IPCA + | Q61: CRI Via Varejo BlueMacaw Isec 1S 1E | R61: 27104958.71 | S61: 0.05431365442 | U61: 0.05059818391 | W61: 0.02312101311 | X61: 0.1231781892 | Y61: 1197104.482 | Z61: 0.1296282705
B62: 2021-09-01 | C62: 21E0407810 | D62: IPCA + | E62: CRI Gazit True Sec 340S 1E | F62: 100319844.2 | G62: 0.058904 | I62: 0.02239980061 | J62: 0.1841133446 | K62: 0.1841133446 | N62: 2021-06-01 | O62: 18L1299235 | P62: IPCA + | Q62: CRI Refrescos Bandeirantes Gaia 112S 4E | R62: 16384048.54 | S62: 0.06235644914 | U62: 0.05 | W62: 0.02333925297 | X62: 0.07445712985 | Y62: 114047.8469 | Z62: 0.07835599009
B63: 2021-09-01 | C63: 21G0864354 | D63: IPCA + | E63: CRI Via Varejo Extrema Habitasec 1E 258S | F63: 60104812.34 | G63: 0.085 | I63: 0.04834715656 | J63: 0.110308166 | K63: 0.110308166 | N63: 2021-06-01 | O63: 19I0739560 | P63: CDI + | Q63: CRI Vitacon ISEC 47S 4E | R63: 10949149.85 | T63: 0.02455648004 | V63: 0.0252 | W63: 0.02521459327 | X63: 0.04975829205 | Y63: 104739.4589 | AA63: 1
B64: 2021-09-01 | C64: 21E0514204 | D64: IPCA + | E64: CRI Hypera True Sec 392S 1E | F64: 29945702.81 | G64: 0.056 | I64: 0.01842542029 | J64: 0.05495825422 | K64: 0.05495825422 | N64: 2021-06-01 | O64: 20L0687133 | P64: IPCA + | Q64: CRI GPA True 346S 1E | R64: 10647655 | S64: 0.056301 | U64: 0.05598954964 | W64: 0.03117668962 | X64: 0.04838815199 | Y64: 333807.2279 | Z64: 0.05092194079
B65: 2021-09-01 | C65: 21I0277499 | D65: IPCA + | E65: CRI Verticale RB Sec 383S 1E | F65: 20600000 | G65: 0.075302 | I65: 0.0420883845 | J65: 0.03780642732 | K65: 0.03780642732 | N65: 2021-06-01 | O65: 20J0837185 | P65: IPCA + | Q65: CRI Creditas Vortx 1S 27E | R65: 10392962.01 | S65: 0.065 | U65: 0.06055293929 | W65: 0.03177111863 | X65: 0.04723070249 | Y65: 332335.1556 | Z65: 0.0497038828
B66: 2021-09-01 | C66: 21C0549648 | D66: IPCA + | E66: CRI Tellus Isec 226S 4E | F66: 19436700.97 | G66: 0.057498 | I66: 0.02309640396 | J66: 0.03567146712 | K66: 0.03567146712 | N66: 2021-06-01 | O66: 20K0699593 | P66: IPCA + | Q66: CRI BRF Salvador Isec | R66: 3728317.468 | S66: 0.05421211937 | U66: 0.04929790257 | W66: 0.02746927788 | X66: 0.01694329806 | Y66: 26860.9667 | Z66: 0.01783051399
B67: 2021-09-01 | C67: 21I0221466 | D67: IPCA + | E67: CRI Mogno Logístico Virgo 351S 4E | F67: 12008198.87 | G67: 0.065 | I67: 0.03128329144 | J67: 0.02203820863 | K67: 0.02203820863 | N67: 2021-06-01 | O67: 14C0072810 | P67: IPCA + | Q67: CRI RB Capital "BR Malls" 99S 1E | R67: 1705638.227 | S67: 0.0525 | U67: 0.04697350388 | W67: 0.02651883069 | X67: 0.007751254314 | Y67: 65254.59958 | Z67: 0.008157139651
B68: 2021-09-01 | C68: 19H0235501 | D68: IPCA + | E68: CRI Rede D'Or TrueSec 214S 1E | F68: 1000364.5 | G68: 0.0475 | I68: 0.001 | J68: 0.001835932416 | K68: 0.001835932416 | N68: 2021-06-01 | O68: 19H0235501 | P68: IPCA + | Q68: CRI Rede D'Or TrueSec 214S 1E | R68: 1373088.091 | S68: 0.0475 | U68: 0.045 | W68: 0.01395361977 | X68: 0.006239983851 | Y68: 15821.75948 | Z68: 0.006566733283
B69: 2021-10-01 | C69: 21J0043571 | D69: IPCA + | E69: CRI GTIS Habitasec 447S 1E | F69: 211501063.5 | G69: 0.0593 | I69: 0.02139769898 | J69: 0.4495233929 | K69: 0.4495233929 | N69: 2021-06-01 | O69: 20F0689770 | P69: IPCA + | Q69: CRI GPA TRX Bari 82S 1E | R69: 390631.82 | S69: 0.05622256495 | U69: 0.0521 | W69: 0.0214536141 | X69: 0.001775222045 | Y69: 17677.90874 | Z69: 0.001868179464
B70: 2021-10-01 | C70: 21I0931497 | D70: IPCA + | E70: CRI Pátio Malzoni Virgo 329S 4E | F70: 90000000 | G70: 0.059193 | I70: 0.02255942235 | J70: 0.1912855883 | K70: 0.1912855883 | N70: 2021-07-01 | O70: 20K0660743 | P70: IPCA + | Q70: CRI Shopping Maringá Park True Sec 1E 1S | R70: 53206490.35 | S70: 0.0685 | U70: 0.0685 | W70: 0.04173881381 | X70: 0.2036628252 | Y70: 3206490.36 | Z70: 0.2036628252
B71: 2021-10-01 | C71: 19A0093844 | D71: IPCA + | E71: CRI Vinci Logística Habitasec 132S 1E | F71: 66720556.11 | G71: 0.0693 | I71: 0.02533771129 | J71: 0.1418075647 | K71: 0.1418075647 | N71: 2021-07-01 | O71: 20G0800227 | P71: IPCA + | Q71: CRI GSFI CRI True 236S 1E | R71: 50029021.41 | S71: 0.0575 | U71: 0.054 | W71: 0.02665616654 | X71: 0.1915001681 | Y71: 1319324.106 | Z71: 0.1915001681
B72: 2021-10-01 | C72: 20G0800227 | D72: IPCA + | E72: CRI GSFI CRI True 236S 1E | F72: 39485329.82 | G72: 0.05729708508 | I72: 0.008853658353 | J72: 0.08392193937 | K72: 0.08392193937 | N72: 2021-07-01 | O72: 21D0001404 | P72: IPCA + | Q72: CRI Tishman Isec 240S 4E | R72: 47761350.48 | S72: 0.055 | U72: 0.052 | W72: 0.02339370525 | X72: 0.182820019 | Y72: 2022350.48 | Z72: 0.182820019
B73: 2021-10-01 | C73: 21F1076965 | D73: IPCA + | E73: CRI Jequitibá Plaza Shopping Habitasec 259S 1E | F73: 23007195.7 | G73: 0.065 | I73: 0.01894833786 | J73: 0.04889938849 | K73: 0.04889938849 | N73: 2021-07-01 | O73: 20K0571487 | P73: IPCA + | Q73: CRI Via Varejo BlueMacaw Isec 1S 1E | R73: 31239214.99 | S73: 0.05431209182 | U73: 0.05284087044 | W73: 0.02440877678 | X73: 0.1195768926 | Y73: 1382375.511 | Z73: 0.1195768926
B74: 2021-10-01 | C74: 21J0585266 | D74: IPCA + | E74: CRI Via Varejo Extrema Habitasec 1E 286S | F74: 20000000 | G74: 0.065 | I74: 0.02172461951 | J74: 0.04250790851 | K74: 0.04250790851 | N74: 2021-07-01 | O74: 21D0862572 | P74: IPCA + | Q74: CRI Rede D'or RB Sec 324S 1E | R74: 24040867.13 | S74: 0.05292351375 | U74: 0.04964450667 | W74: 0.01856499934 | X74: 0.09202318905 | Y74: 1197095.79 | Z74: 0.09202318905
B75: 2021-10-01 | C75: 20K0660743 | D75: IPCA + | E75: CRI Shopping Maringá Park True Sec 1E 1S | F75: 13312637.97 | G75: 0.0685 | I75: 0.0186 | J75: 0.02829461984 | K75: 0.02829461984 | N75: 2021-07-01 | O75: 20F0689770 | P75: IPCA + | Q75: CRI GPA 82S 1E | R75: 21917965.46 | S75: 0.05622256495 | U75: 0.05348981648 | W75: 0.02318253085 | X75: 0.08389718509 | Y75: 960498.5189 | Z75: 0.08389718509
B76: 2021-10-01 | C76: 19G0228153 | D76: IPCA + | E76: CRI HBR Habitasec 148S 1E | F76: 6473900.194 | G76: 0.054992 | I76: 0.00812583946 | J76: 0.01375959786 | K76: 0.01375959786 | N76: 2021-07-01 | O76: 20L0687133 | P76: IPCA + | Q76: CRI GPA True 346S 1E | R76: 16262034.33 | S76: 0.05612331017 | U76: 0.05289327284 | W76: 0.0245901694 | X76: 0.06224751594 | Y76: 894419.8685 | Z76: 0.06224751594
B77: 2021-11-01 | C77: 21C0549648 | D77: IPCA + | E77: CRI Tellus Isec 226S 4E | F77: 1500204.841 | G77: 0.0575 | I77: 0.009670727688 | J77: 0.004023333376 | K77: 0.004023333376 | N77: 2021-07-01 | O77: 13C0041672 | P77: IPCA + | Q77: CRI AGV Ápice 4S 1E | R77: 7979212.961 | S77: 0.08187221078 | U77: 0.0725 | W77: 0.06616670297 | X77: 0.03054268462 | Y77: 401490.7928 | Z77: 0.03054268462
B78: 2021-11-01 | C78: 20G0800227 | D78: IPCA + | E78: CRI GSFI CRI True 236S 1E | F78: 2500000.581 | G78: 0.05718 | I78: 0.009811060144 | J78: 0.006704641594 | K78: 0.006704641594 | N78: 2021-07-01 | O78: 19H0235501 | P78: IPCA + | Q78: CRI Rede D'Or TrueSec 214S 1E | R78: 4514535.786 | S78: 0.0475 | U78: 0.045 | W78: 0.01556804411 | X78: 0.01728065705 | Y78: 43787.89934 | Z78: 0.01728065705
B79: 2021-11-01 | C79: 21J0790766 | D79: IPCA + | E79: CRI XP Industrial True 446S 1E | F79: 60000000 | G79: 0.065 | I79: 0.01448940442 | J79: 0.1609113608 | K79: 0.1609113608 | N79: 2021-07-01 | O79: 13C0041677 | P79: IPCA + | Q79: CRI AGV Ápice 5S 1E | R79: 1631633.829 | S79: 0.1479685769 | U79: 0.14 | W79: 0.1356617676 | X79: 0.006245537964 | Y79: 336909.8218 | Z79: 0.006245537964
B80: 2021-11-01 | C80: 21H0865631 | D80: IPCA + | E80: CRI Plural Renda Urbana Travessia Sec 1E 83S | F80: 22052000 | G80: 0.065 | I80: 0.01761465531 | J80: 0.05914028882 | K80: 0.05914028882 | N80: 2021-07-01 | O80: 20K0699593 | P80: IPCA + | Q80: CRI BRF Salvador Isec | R80: 1198176.666 | S80: 0.054416078 | U80: 0.04999697641 | W80: 0.0305693765 | X80: 0.004586358607 | Y80: 24767.12617 | Z80: 0.004586358607
B81: 2021-11-01 | C81: 21J0585266 | D81: IPCA + | E81: CRI Via Varejo Extrema Habitasec 1E 286S | F81: 41148400.48 | G81: 0.065 | I81: 0.0189235188 | J81: 0.1103540853 | K81: 0.1103540853 | N81: 2021-07-01 | O81: 14E0026716 | P81: IPCA + | Q81: CRI Colorado SCCI 1S 1E | R81: 1160480.392 | S81: 0.08905701407 | U81: 0.09 | W81: 0.09054518276 | X81: 0.004442065501 | Y81: 91314.06583 | Z81: 0.004442065501
B82: 2021-11-01 | C82: 21J0001207 | D82: IPCA + | E82: CRI Tenda Virgo 307S 4E | F82: 40000000 | G82: 0.069809 | I82: 0.0209 | J82: 0.1072742406 | K82: 0.1072742406 | N82: 2021-07-01 | O82: 20J0837185 | P82: IPCA + | Q82: CRI Creditas Vortx 1S 27E | R82: 306940.53 | S82: 0.065 | U82: 0.06 | W82: 0.03070474095 | X82: 0.001174901316 | Y82: 11525.28418 | Z82: 0.001174901316
B83: 2021-11-01 | C83: 21G0864354 | D83: IPCA + | E83: CRI Via Varejo Extrema Habitasec 1E 258S | F83: 41899462.96 | G83: 0.085 | I83: 0.03882545544 | J83: 0.1123683267 | K83: 0.1123683267 | N83: 2021-08-01 | O83: 21E0407810 | P83: IPCA + | Q83: CRI Gazit True Sec 340S 1E | R83: 139163933.1 | S83: 0.05892999399 | U83: 0.058926 | W83: 0.02337177324 | X83: 0.494727529 | Y83: 5897326.421 | Z83: 0.494727529
B84: 2021-11-01 | C84: 21K0728271 | D84: IPCA + | E84: CRI JSL Habitasec 291S 1E | F84: 20000000 | G84: 0.085 | I84: 0.0394581923 | J84: 0.05363712028 | K84: 0.05363712028 | N84: 2021-08-01 | O84: 21E0514204 | P84: IPCA + | Q84: CRI Hypera True Sec 392S 1E | R84: 73126345.38 | S84: 0.056 | U84: 0.056 | W84: 0.02269569891 | X84: 0.2599640248 | Y84: 1952345.382 | Z84: 0.2599640248
B85: 2021-11-01 | C85: 19A0093844 | D85: IPCA + | E85: CRI Vinci Logística Habitasec 132S 1E | F85: 66635680.22 | G85: 0.06930080703 | I85: 0.02824307453 | J85: 0.1787072997 | K85: 0.1787072997 | N85: 2021-08-01 | O85: 20G0800227 | P85: IPCA + | Q85: CRI GSFI CRI True 236S 1E | R85: 19984137.94 | S85: 0.05736771036 | U85: 0.0526 | W85: 0.01928019547 | X85: 0.07104357402 | Y85: 801477.4009 | Z85: 0.07104357402
B86: 2021-11-01 | C86: 14C0072810 | D86: IPCA + | E86: CRI RB Capital "BR Malls" 99S 1E | F86: 61598742.26 | G86: 0.052913 | I86: 0.01336969233 | J86: 0.1651989574 | K86: 0.1651989574 | N86: 2021-08-01 | O86: 21C0549648 | P86: IPCA + | Q86: CRI Tellus Isec 226S 4E | R86: 19357226.45 | S86: 0.0575 | U86: 0.0575 | W86: 0.02448552658 | X86: 0.06881490481 | Y86: 763059.7891 | Z86: 0.06881490481
B87: 2021-11-01 | C87: 20L0687133 | D87: IPCA + | E87: CRI GPA True 346S 1E | F87: 15541604.43 | G87: 0.053 | I87: 0.008 | J87: 0.04168034532 | K87: 0.04168034532 | N87: 2021-08-01 | O87: 19G0228153 | P87: IPCA + | Q87: CRI HBR Habitasec 148S 1E | R87: 9722174.79 | S87: 0.0594648623 | U87: 0.0597 | W87: 0.0263 | X87: 0.03456231369 | Y87: -81312.47287 | Z87: 0.03456231369
B88: 2021-12-01 | C88: 21I0682465 | D88: IPCA + | E88: CRI Vinci Shoppings Virgo 366S 4E | F88: 167073544.6 | G88: 0.062477 | I88: 0.01357736717 | J88: 0.1432995121 | K88: 0.1456116057 | N88: 2021-08-01 | O88: 21D0001404 | P88: IPCA + | Q88: CRI Tishman Isec 240S 4E | R88: 9586843.86 | S88: 0.055 | U88: 0.052 | W88: 0.02339370525 | X88: 0.03408121248 | Y88: 425843.8597 | Z88: 0.03408121248
B89: 2021-12-01 | C89: 21I0277341 | D89: IPCA + | E89: CRI Assai TRX Barisec 93S 1E | F89: 145293855.1 | G89: 0.057 | I89: 0.01312032816 | J89: 0.124619003 | K89: 0.1266296923 | N89: 2021-08-01 | O89: 21D0862572 | P89: IPCA + | Q89: CRI Rede D'or RB Sec 324S 1E | R89: 7112885.892 | S89: 0.05292453133 | U89: 0.05158776957 | W89: 0.0141172197 | X89: 0.02528629641 | Y89: 305082.5417 | Z89: 0.02528629641
B90: 2021-12-01 | C90: 21L0736590 | D90: IPCA + | E90: CRI Madureira Shopping RBSec 470S 1E | F90: 145000000 | G90: 0.065 | I90: 0.01570442015 | J90: 0.1243669625 | K90: 0.1263735852 | N90: 2021-08-01 | O90: 19H0235501 | P90: IPCA + | Q90: CRI Rede D'Or TrueSec 214S 1E | R90: 3191408.953 | S90: 0.0475 | U90: 0.04518397893 | W90: 0.005036067579 | X90: 0.01134545302 | Y90: 20660.68647 | Z90: 0.01134545302
B91: 2021-12-01 | C91: 20G0800227 | D91: IPCA + | E91: CRI GSFI True 236S 1E | F91: 104661891 | G91: 0.05424637571 | I91: 0.006906931884 | J91: 0.08976883778 | K91: 0.09121723039 | N91: 2021-08-01 | O91: 20K0699593 | P91: IPCA + | Q91: CRI BRF Salvador Isec | R91: 49139.75579 | S91: 0.054416078 | U91: 0.050059 | W91: 0.01865595157 | X91: 0.0001746917424 | Y91: 1002.636893 | Z91: 0.0001746917424
B92: 2021-12-01 | C92: 21K0001807 | D92: IPCA + | E92: CRI Rede D'Or RBSec 397S 1E | F92: 88467981.74 | G92: 0.060803709 | I92: 0.01280070358 | J92: 0.07587927013 | K92: 0.07710355883 | N92: 2021-09-01 | O92: 19A0093844 | P92: IPCA + | Q92: CRI Vinci Logística Habitasec 132S 1E | R92: 66602405.07 | S92: 0.0693947283 | U92: 0.0693 | W92: 0.03877987834 | X92: 0.3003901392 | Y92: 1101108.398 | Z92: 0.3285452914
B93: 2021-12-01 | C93: 21E0514204 | D93: IPCA + | E93: CRI Hypera True Sec 392S 1E | F93: 72023687.43 | G93: 0.06314154041 | I93: 0.01275317013 | J93: 0.06177494645 | K93: 0.06277166622 | N93: 2021-09-01 | O93: 21F1076965 | P93: IPCA + | Q93: CRI Jequitibá Plaza Shopping Habitasec 259S 1E | R93: 58470117.89 | S93: 0.065 | U93: 0.065 | W93: 0.03058908469 | X93: 0.263711901 | Y93: 1470117.894 | Z93: 0.2884292527
B94: 2021-12-01 | C94: 21L0640489 | D94: IPCA + | E94: CRI BTLG Mauá RB Sec 466S 1E | F94: 70574361.38 | G94: 0.063 | I94: 0.01446217497 | J94: 0.06053185487 | K94: 0.06150851775 | N94: 2021-09-01 | O94: 20K0660743 | P94: IPCA + | Q94: CRI Shopping Maringá Park True Sec 1E 1S | R94: 54131540.1 | S94: 0.068639206 | U94: 0.0685 | W94: 0.03552628681 | X94: 0.2441440493 | Y94: 634715.0025 | Z94: 0.2670273333
B95: 2021-12-01 | C95: 21F1076965 | D95: IPCA + | E95: CRI Jequitibá Plaza Shopping Habitasec 259S 1E | F95: 57901802.66 | G95: 0.05865355384 | I95: 0.01171842967 | J95: 0.04966256083 | K95: 0.05046385099 | N95: 2021-09-01 | O95: 20G0000001 | P95: CDI + | Q95: CRI Apogee 84S 4E | R95: 19000580.61 | T95: 0.034 | V95: 0.028 | W95: 0.02800000003 | X95: 0.08569641062 | Y95: 405188.9355 | AA95: 1
B96: 2021-12-01 | C96: 21G0864354 | D96: IPCA + | E96: CRI Via Varejo Extrema Habitasec 1E 258S | F96: 54433814.75 | G96: 0.08291492158 | I96: 0.03441503022 | J96: 0.04668805654 | K96: 0.04744135398 | N96: 2021-09-01 | O96: 20K0699593 | P96: IPCA + | Q96: CRI BRF Salvador Isec | R96: 14907330.49 | S96: 0.054416078 | U96: 0.05214587316 | W96: 0.02464688596 | X96: 0.06723503568 | Y96: 308626.0097 | Z96: 0.07353688256
B97: 2021-12-01 | C97: 21K0665223 | D97: IPCA + | E97: CRI TRX Assaí II Bari 98S 1E | F97: 44998874.65 | G97: 0.06765110701 | I97: 0.02389266184 | J97: 0.03859567832 | K97: 0.03921840773 | N97: 2021-09-01 | O97: 21C0549648 | P97: IPCA + | Q97: CRI Tellus Isec 226S 4E | R97: 4999417.103 | S97: 0.057498 | U97: 0.054955 | W97: 0.02247964792 | X97: 0.02254836891 | Y97: 75954.61071 | Z97: 0.02466179633
B98: 2021-12-01 | C98: 21K0728271 | D98: IPCA + | E98: CRI JSL Habitasec 291S 1E | F98: 39000637.14 | G98: 0.085 | I98: 0.03757718704 | J98: 0.03345097088 | K98: 0.03399069201 | N98: 2021-09-01 | O98: 20J0837185 | P98: IPCA + | Q98: CRI Creditas Vert 1S 27E (Snr) | R98: 2548449.45 | S98: 0.065 | U98: 0.06093905987 | W98: 0.02605218616 | X98: 0.01149401563 | Y98: 76743.88426 | Z98: 0.01257133382
B99: 2021-12-01 | C99: 21L0666509 | D99: IPCA + | E99: CRI Makro RB Sec 422S 1E | F99: 32684287 | G99: 0.065 | I99: 0.01677087559 | J99: 0.02803341722 | K99: 0.02848572779 | N99: 2021-09-01 | O99: 19H0235501 | P99: IPCA + | Q99: CRI Rede D'Or TrueSec 214S 1E | R99: 962230.2862 | S99: 0.0475 | U99: 0.0465 | W99: 0 | X99: 0.004339850631 | Y99: 4984.945716 | Z99: 0.004746618827
B100: 2021-12-01 | C100: 21L0355069 | D100: IPCA + | E100: CRI Hedge Viracopos True 478S 1E | F100: 32000000 | G100: 0.0675 | I100: 0.0208137357 | J100: 0.02744650207 | K100: 0.02788934295 | N100: 2021-09-01 | O100: 21E0407810 | P100: IPCA + | Q100: CRI Gazit True Sec 340S 1E | R100: 97607.42 | S100: 0.058904 | U100: 0.057 | W100: 0.02065532473 | X100: 0.0004402289445 | Y100: 2259.896274 | Z100: 0.0004814909944
B101: 2021-12-01 | C101: 21L0355178 | D101: IPCA + | E101: CRI Hedge Viracopos True 479S 1E | F101: 32000000 | G101: 0.0675 | I101: 0.0208137357 | J101: 0.02744650207 | K101: 0.02788934295 | N101: 2021-10-01 | O101: 20K0699593 | P101: IPCA + | Q101: CRI BRF Salvador Isec | R101: 47619446.23 | S101: 0.054416078 | U101: 0.05381642243 | W101: 0.02021418863 | X101: 0.1701824453 | Y101: 252492.0752 | Z101: 0.1927079064
B102: 2021-12-01 | C102: 20G0000001 | D102: CDI + | E102: CRI Apogee 84S 4E | F102: 18512812.03 | H102: 0.027872 | I102: 0.02787200002 | J102: 0.01587849793 | L102: 1 | N102: 2021-10-01 | O102: 20G0800227 | P102: IPCA + | Q102: CRI GSFI CRI True 236S 1E | R102: 35446849.07 | S102: 0.05723597766 | U102: 0.0555 | W102: 0.01929649803 | X102: 0.1266800001 | Y102: 1407423.748 | Z102: 0.1434474487
B103: 2021-12-01 | C103: 21L0354209 | D103: IPCA + | E103: CRI Hedge Viracopos True 477S 1E | F103: 16000000 | G103: 0.0675 | I103: 0.02099357187 | J103: 0.01372325104 | K103: 0.01394467147 | N103: 2021-10-01 | O103: 20G0753911 | P103: CDI + | Q103: CRI BlueCap True 310S 1E (QA) | R103: 32707227.86 | T103: 0.045 | V103: 0.0402 | W103: 0.0402 | X103: 0.1168891379 | Y103: 707227.8573 | AA103: 1
B104: 2021-12-01 | C104: 13F0056986 | D104: IPCA + | E104: CRI Jaraguá do Sul Habitasec 32S 1E | F104: 14721912.43 | G104: 0.080141 | I104: 0.03103857707 | J104: 0.01262703125 | K104: 0.01283076452 | N104: 2021-10-01 | O104: 21E0514204 | P104: IPCA + | Q104: CRI Hypera True Sec 392S 1E | R104: 30247668.26 | S104: 0.056 | U104: 0.056 | W104: 0.01772781748 | X104: 0.1080991602 | Y104: 301965.4442 | Z104: 0.1224072366
B105: 2021-12-01 | C105: 20K0660743 | D105: IPCA + | E105: CRI Shopping Maringá Park True Sec 1E 1S | F105: 11000710.08 | G105: 0.063116 | I105: 0.01434680727 | J105: 0.00943534413 | K105: 0.009587580507 | N105: 2021-10-01 | O105: 21G0507867 | P105: IPCA + | Q105: CRI HBR ComVem Habitasec 242S 1E | R105: 26675330.01 | S105: 0.056 | U105: 0.05443795313 | W105: 0.004238468296 | X105: 0.0953323327 | Y105: 1261381.266 | Z105: 0.1079505833
B106: 2021-12-01 | C106: 21C0549648 | D106: IPCA + | E106: CRI Tellus Isec 226S 4E | F106: 10919550.38 | G106: 0.057371 | I106: 0.01340136921 | J106: 0.009365733195 | K106: 0.009516846421 | N106: 2021-10-01 | O106: 21F1076305 | P106: IPCA + | Q106: CRI DutraLog TrueSec 401S 1E | R106: 25896034.92 | S106: 0.08 | U106: 0.080226 | W106: 0.03094474787 | X106: 0.0925472868 | Y106: 896034.925 | Z106: 0.1047969069
B107: 2021-12-01 | C107: 20K0010253 | D107: IPCA + | E107: CRI GPA EVBI RB Sec 1S 296S | F107: 3533511.624 | G107: 0.0609 | I107: 0.022 | J107: 0.003030704191 | K107: 0.003079603672 | N107: 2021-10-01 | O107: 21G0093703 | P107: IPCA + | Q107: CRI Vinci Renda Urbana Virgo 280S 4E | R107: 21638098.4 | S107: 0.056 | U107: 0.056 | W107: 0.01063234943 | X107: 0.07733026715 | Y107: 709165.6993 | Z107: 0.08756575246
B108: 2021-12-01 | C108: 21L0736589 | D108: IPCA + | E108: CRI Madureira Shopping RBSec 468S 1E | F108: 2000000 | G108: 0.065 | I108: 0.0156386201 | J108: 0.00171540638 | K108: 0.001743083934 | N108: 2021-10-01 | O108: 14C0072810 | P108: IPCA + | Q108: CRI RB Capital "BR Malls" 99S 1E | R108: 21390661.99 | S108: 0.05374792473 | U108: 0.05596055311 | W108: 0.01304905108 | X108: 0.07644597855 | Y108: 833525.2943 | Z108: 0.08656441884
B109: 2021-12-01 | C109: 17K0150400 | D109: IPCA + | E109: CRI BRF Embú Bari 64S 1E | F109: 1870912.754 | G109: 0.0599 | I109: 0.01887533047 | J109: 0.001604687837 | K109: 0.001630578982 | N109: 2021-10-01 | O109: 21C0549648 | P109: IPCA + | Q109: CRI Tellus Isec 226S 4E | R109: 14598518.58 | S109: 0.057498 | U109: 0.0575 | W109: 0.0222563794 | X109: 0.05217220667 | Y109: 85280.10017 | Z109: 0.05907775445
B110: 2021-12-01 | C110: 21J0001207 | D110: IPCA + | E110: CRI Tenda Virgo 307S 4E | F110: 1230343.2 | G110: 0.06302 | I110: 0.01667242626 | J110: 0.001055269287 | K110: 0.001072295733 | N110: 2021-10-01 | O110: 19G0228153 | P110: IPCA + | Q110: CRI HBR Habitasec 148S 1E | R110: 11550216.43 | S110: 0.0594648623 | U110: 0.05629410732 | W110: 0.01354883455 | X110: 0.04127818008 | Y110: 237467.7326 | Z110: 0.0467417873
B111: 2022-01-01 | C111: 21J0043571 | D111: IPCA + | E111: CRI GTIS Habitasec 447S 1E | F111: 99998104.28 | G111: 0.0593 | I111: 0.006848223611 | J111: 0.2622774814 | K111: 0.2622774814 | N111: 2021-10-01 | O111: 20F0689770 | P111: IPCA + | Q111: CRI GPA 82S 1E | R111: 11297392.54 | S111: 0.053486 | U111: 0.05495318717 | W111: 0.01568131273 | X111: 0.0403746377 | Y111: -123.025248 | Z111: 0.04571865145
B112: 2022-01-01 | C112: 21I0682465 | D112: IPCA + | E112: CRI Vinci Shoppings Virgo 366S 4E | F112: 65847640.2 | G112: 0.0625 | I112: 0.01041158652 | J112: 0.1727068063 | K112: 0.1727068063 | N112: 2021-10-01 | O112: 17B0048606 | P112: IPCA + | Q112: CRI Colorado SCCI 32S 1E | R112: 746646.6353 | S112: 0.095 | U112: 0.095 | W112: 0.06816401558 | X112: 0.002668366817 | Y112: 1030.932907 | Z112: 0.003021553614
B113: 2022-01-01 | C113: 21K0001807 | D113: IPCA + | E113: CRI Rede D'Or RBSec 397S 1E | F113: 54795033.1 | G113: 0.06084326101 | I113: 0.008528514532 | J113: 0.1437177572 | K113: 0.1437177572 | N113: 2021-11-01 | O113: 19A0093844 | P113: IPCA + | Q113: CRI Vinci Logística Habitasec 132S 1E | R113: 67016941.37 | S113: 0.0693 | U113: 0.0693 | W113: 0.02988407458 | X113: 0.2132532781 | Y113: 296385.2635 | Z113: 0.2132532781
B114: 2022-01-01 | C114: 21G0864354 | D114: IPCA + | E114: CRI Via Varejo Extrema Habitasec 1E 258S | F114: 50277453.37 | G114: 0.085 | I114: 0.03230370307 | J114: 0.1318689383 | K114: 0.1318689383 | N114: 2021-11-01 | O114: 14C0072810 | P114: IPCA + | Q114: CRI RB Capital "BR Malls" 99S 1E | R114: 61547975.09 | S114: 0.05374792473 | U114: 0.0537 | W114: 0.01349254206 | X114: 0.1958505891 | Y114: 1777780.935 | Z114: 0.1958505891
B115: 2022-01-01 | C115: 21H0862845 | D115: IPCA + | E115: CRI Plural Renda Urbana Travessia Sec 1E 82S | F115: 32651569.28 | G115: 0.065 | I115: 0.01283387284 | J115: 0.08563933701 | K115: 0.08563933701 | N115: 2021-11-01 | O115: 21G0864354 | P115: IPCA + | Q115: CRI Via Varejo Extrema Habitasec 1E 258S | R115: 42097104.88 | S115: 0.085 | U115: 0.085 | W115: 0.040827648 | X115: 0.1339563613 | Y115: 1853964.241 | Z115: 0.1339563613
B116: 2022-01-01 | C116: 21H0700312 | D116: IPCA + | E116: CRI Athena l Virgo 4E 335S | F116: 27543912.95 | G116: 0.06251394143 | I116: 0.01207517257 | J116: 0.07224285069 | K116: 0.07224285069 | N116: 2021-11-01 | O116: 21J0001207 | P116: IPCA + | Q116: CRI Tenda Virgo 307S 4E | R116: 41354578.99 | S116: 0.069809 | U116: 0.06346882892 | W116: 0.01891861761 | X116: 0.1315935845 | Y116: 1354578.993 | Z116: 0.1315935845
B117: 2022-01-01 | C117: 21K0728271 | D117: IPCA + | E117: CRI JSL Habitasec 291S 1E | F117: 15001104.89 | G117: 0.085 | I117: 0.03256939373 | J117: 0.03934526596 | K117: 0.03934526596 | N117: 2021-11-01 | O117: 21H0862845 | P117: IPCA + | Q117: CRI Plural Renda Urbana Travessia Sec 1E 82S | R117: 32191926.58 | S117: 0.065 | U117: 0.065 | W117: 0.01964973463 | X117: 0.1024372902 | Y117: 1143926.582 | Z117: 0.1024372902
B118: 2022-01-01 | C118: 21K0665223 | D118: IPCA + | E118: CRI TRX Assaí II Bari 98S 1E | F118: 11999828.81 | G118: 0.067 | I118: 0.01948116651 | J118: 0.03147344542 | K118: 0.03147344542 | N118: 2021-11-01 | O118: 13F0056986 | P118: IPCA + | Q118: CRI Jaraguá do Sul Habitasec 32S 1E | R118: 17172696.08 | S118: 0.08056553386 | U118: 0.08 | W118: 0.03503658484 | X118: 0.05464489513 | Y118: 2741449.827 | Z118: 0.05464489513
B119: 2022-01-01 | C119: 21C0549648 | D119: IPCA + | E119: CRI Tellus Isec 226S 4E | F119: 11072351.77 | G119: 0.0575 | I119: 0.005845606988 | J119: 0.02904083588 | K119: 0.02904083588 | N119: 2021-11-01 | O119: 21H0700312 | P119: IPCA + | Q119: CRI Athena l Virgo 4E 335S | R119: 17143984.87 | S119: 0.0625 | U119: 0.0625 | W119: 0.02045019508 | X119: 0.05455353375 | Y119: 643849.609 | Z119: 0.05455353375
B120: 2022-01-01 | C120: 22A0377996 | D120: IPCA + | E120: CRI Vinci Log Castelo RB Sec 472S 1E | F120: 6220000 | G120: 0.068 | I120: 0.01718769637 | J120: 0.01631396861 | K120: 0.01631396861 | N120: 2021-11-01 | O120: 21F1076965 | P120: IPCA + | Q120: CRI Jequitibá Plaza Shopping Habitasec 259S 1E | R120: 14996381.37 | S120: 0.065 | U120: 0.06422204997 | W120: 0.02003877931 | X120: 0.04771968732 | Y120: 261435.8134 | Z120: 0.04771968732
B121: 2022-01-01 | C121: 21E0407810 | D121: IPCA + | E121: CRI Gazit True Sec 340S 1E | F121: 3272494.603 | G121: 0.058955 | I121: 0.007237129491 | J121: 0.008583179136 | K121: 0.008583179136 | N121: 2021-11-01 | O121: 20K0660743 | P121: IPCA + | Q121: CRI Shopping Maringá Park True Sec 1E 1S | R121: 13492339.94 | S121: 0.0685 | U121: 0.0685 | W121: 0.02481298813 | X121: 0.04293370694 | Y121: 179701.9714 | Z121: 0.04293370694
B122: 2022-01-01 | C122: 13F0056986 | D122: IPCA + | E122: CRI Jaraguá do Sul Habitasec 32S 1E | F122: 2588863.28 | G122: 0.08 | I122: 0.02767667237 | J122: 0.006790134129 | K122: 0.006790134129 | N122: 2021-11-01 | O122: 20G0800227 | P122: IPCA + | Q122: CRI GSFI CRI True 236S 1E | R122: 2549821.109 | S122: 0.05724839161 | U122: 0.0541 | W122: 0.006554684527 | X122: 0.008113735109 | Y122: 111331.9222 | Z122: 0.008113735109
B123: 2022-02-01 | C123: 21I0931497 | D123: IPCA + | E123: CRI Pátio Malzoni Virgo 329S 4E | F123: 105267918.9 | G123: 0.059193 | I123: 0.006526474964 | J123: 0.290867753 | K123: 0.290867753 | N123: 2021-11-01 | O123: 20K0699593 | P123: IPCA + | Q123: CRI BRF Salvador Isec | R123: 2087056.342 | S123: 0.054416078 | U123: 0.0557 | W123: 0.005211705829 | X123: 0.006641180534 | Y123: 12421.27532 | Z123: 0.006641180534
B124: 2022-02-01 | C124: 22A0699149 | D124: IPCA + | E124: CRI Marabraz Opea Sec 1E 423S | F124: 100000000 | G124: 0.07 | I124: 0.01711123619 | J124: 0.2763118678 | K124: 0.2763118678 | N124: 2021-11-01 | O124: 21C0549648 | P124: IPCA + | Q124: CRI Tellus Isec 226S 4E | R124: 1514214.68 | S124: 0.0575 | U124: 0.0561 | W124: 0.008045174644 | X124: 0.004818352459 | Y124: 14009.83858 | Z124: 0.004818352459
B125: 2022-02-01 | C125: 21E0514204 | D125: IPCA + | E125: CRI Hypera True Sec 392S 1E | F125: 65861599.42 | G125: 0.0641 | I125: 0.008978296956 | J125: 0.1819834155 | K125: 0.1819834155 | N125: 2021-11-01 | O125: 19G0228153 | P125: IPCA + | Q125: CRI HBR Habitasec 148S 1E | R125: 1051685.343 | S125: 0.05884447531 | U125: 0.0615 | W125: 0.01684273856 | X125: 0.003346547041 | Y125: -13183.86224 | Z125: 0.003346547041
B126: 2022-02-01 | C126: 21F1076305 | D126: IPCA + | E126: CRI DutraLog TrueSec 401S 1E | F126: 26860107.55 | G126: 0.079914 | I126: 0.02617736054 | J126: 0.07421766487 | K126: 0.07421766487 | N126: 2021-11-01 | O126: 19H0235501 | P126: IPCA + | Q126: CRI Rede D'Or TrueSec 214S 1E | R126: 43134.85939 | S126: 0.0475 | U126: 0.049 | W126: -0.002456194268 | X126: 0.0001372585794 | Y126: 15.69991224 | Z126: 0.0001372585794
B127: 2022-02-01 | C127: 21G0093703 | D127: IPCA + | E127: CRI Vinci Renda Urbana Virgo 280S 4E | F127: 22670132.56 | G127: 0.056 | I127: 0.003967129237 | J127: 0.06264026671 | K127: 0.06264026671 | N127: 2021-12-01 | O127: 21I0682465 | P127: IPCA + | Q127: CRI Vinci Shoppings Virgo 366S 4E | R127: 166988844.7 | S127: 0.0625 | U127: 0.062477 | W127: 0.0137593416 | X127: 0.2009564538 | Y127: 6488844.709 | Z127: 0.20553763
B128: 2022-02-01 | C128: 21K0728271 | D128: IPCA + | E128: CRI JSL Habitasec 291S 1E | F128: 18490024.3 | G128: 0.084981 | I128: 0.0332885547 | J128: 0.0510901315 | K128: 0.0510901315 | N128: 2021-12-01 | O128: 21I0277341 | P128: IPCA + | Q128: CRI Assai TRX Barisec 93S 1E | R128: 145215765.3 | S128: 0.057 | U128: 0.057 | W128: 0.01335333572 | X128: 0.1747544591 | Y128: 4250492.781 | Z128: 0.1787383121
B129: 2022-02-01 | C129: 21I0277499 | D129: IPCA + | E129: CRI Verticale RB Sec 383S 1E | F129: 14780490.17 | G129: 0.07 | I129: 0.01649823351 | J129: 0.04084024846 | K129: 0.04084024846 | N129: 2021-12-01 | O129: 21G0864354 | P129: IPCA + | Q129: CRI Via Varejo Extrema Habitasec 1E 258S | R129: 105554632.7 | S129: 0.08453424623 | U129: 0.08392418265 | W129: 0.03608216491 | X129: 0.1270257586 | Y129: 3220667.374 | Z129: 0.1299215471
B130: 2022-02-01 | C130: 22A0377996 | D130: IPCA + | E130: CRI Vinci Log Castelo RB Sec 472S 1E | F130: 7979625.423 | G130: 0.068 | I130: 0.01708271452 | J130: 0.02204865205 | K130: 0.02204865205 | N130: 2021-12-01 | O130: 21K0001807 | P130: IPCA + | Q130: CRI Rede D'Or RBSec 397S 1E | R130: 89114723.25 | S130: 0.06080504805 | U130: 0.06071325468 | W130: 0.01160854577 | X130: 0.1072417669 | Y130: 637379.1654 | Z130: 0.1096865425
B131: 2022-03-01 | C131: 21E0407810 | D131: IPCA + | E131: CRI Gazit True Sec 340S 1E | F131: 113173544.6 | G131: 0.058897 | I131: 0.01284241891 | J131: 0.2470236636 | K131: 0.2470236636 | N131: 2021-12-01 | O131: 20G0800227 | P131: IPCA + | Q131: CRI GSFI True 236S 1E | R131: 77167951.52 | S131: 0.05643693685 | U131: 0.054745 | W131: 0.007427032161 | X131: 0.09286487317 | Y131: 2850978.23 | Z131: 0.09498190073
B132: 2022-03-01 | C132: 21J0043571 | D132: IPCA + | E132: CRI GTIS True 447S 1E | F132: 84867491.35 | G132: 0.0593 | I132: 0.01115740252 | J132: 0.1852400993 | K132: 0.1852400993 | N132: 2021-12-01 | O132: 19A0093844 | P132: IPCA + | Q132: CRI Vinci Logística Habitasec 132S 1E | R132: 65800688.73 | S132: 0.06930080703 | U132: 0.06964940075 | W132: 0.02241451798 | X132: 0.07918536767 | Y132: -612777.3524 | Z132: 0.08099054545
B133: 2022-03-01 | C133: 21J0790766 | D133: IPCA + | E133: CRI XP Industrial True 446S 1E | F133: 57967984.03 | G133: 0.065 | I133: 0.01691681659 | J133: 0.1265265998 | K133: 0.1265265998 | N133: 2021-12-01 | O133: 21E0514204 | P133: IPCA + | Q133: CRI Hypera True Sec 392S 1E | R133: 63566633.32 | S133: 0.06314154041 | U133: 0.064108 | W133: 0.01311472669 | X133: 0.07649687759 | Y133: -257636.1359 | Z133: 0.07824076624
B134: 2022-03-01 | C134: 21G0864354 | D134: IPCA + | E134: CRI Via Varejo Extrema Habitasec 1E 258S | F134: 35988035.8 | G134: 0.085 | I134: 0.03917488342 | J134: 0.07855101192 | K134: 0.07855101192 | N134: 2021-12-01 | O134: 21F1076965 | P134: IPCA + | Q134: CRI Jequitibá Plaza Shopping Habitasec 259S 1E | R134: 57560522.63 | S134: 0.05944690694 | U134: 0.058613 | W134: 0.01145321562 | X134: 0.06926904925 | Y134: 509781.0073 | Z134: 0.0708481661
B135: 2022-03-01 | C135: 21H0862845 | D135: IPCA + | E135: CRI Plural Renda Urbana Travessia Sec 1E 82S | F135: 33216767.35 | G135: 0.065 | I135: 0.01960877927 | J135: 0.07250216997 | K135: 0.07250216997 | N135: 2021-12-01 | O135: 20G0000001 | P135: CDI + | Q135: CRI Apogee 84S 4E | R135: 18521286.79 | T135: 0.027872 | V135: 0.027868 | W135: 0.02786799997 | X135: 0.02228874701 | Y135: 8474.7585 | AA135: 1
B136: 2022-03-01 | C136: 21L0736589 | D136: IPCA + | E136: CRI Madureira Shopping RBSec 468S 1E | F136: 27120026.96 | G136: 0.065 | I136: 0.01806364919 | J136: 0.05919482723 | K136: 0.05919482723 | N136: 2021-12-01 | O136: 21I0277499 | P136: IPCA + | Q136: CRI Verticale RB Sec 383S 1E | R136: 14699837.17 | S136: 0.075302 | U136: 0.07 | W136: 0.02151112134 | X136: 0.01768996699 | Y136: 705966.6808 | Z136: 0.0180932427
B137: 2022-03-01 | C137: 22B0582974 | D137: IPCA + | E137: CRI Frio Peças Habitasec 310S 1E | F137: 25141254.58 | G137: 0.07518910568 | I137: 0.02340551078 | J137: 0.05487576481 | K137: 0.05487576481 | N137: 2021-12-01 | O137: 20K0660743 | P137: IPCA + | Q137: CRI Shopping Maringá Park True Sec 1E 1S | R137: 11006339.56 | S137: 0.063116 | U137: 0.063116 | W137: 0.01406951638 | X137: 0.013245166 | Y137: 5629.477909 | Z137: 0.0135471142
B138: 2022-03-01 | C138: 21H0865631 | D138: IPCA + | E138: CRI Plural Renda Urbana Travessia Sec 1E 83S | F138: 22967281.76 | G138: 0.065 | I138: 0.01958877835 | J138: 0.05013063878 | K138: 0.05013063878 | N138: 2021-12-01 | O138: 21C0549648 | P138: IPCA + | Q138: CRI Tellus Isec 226S 4E | R138: 10951457.94 | S138: 0.057371 | U138: 0.0575 | W138: 0.009419543605 | X138: 0.01317912077 | Y138: 31907.55504 | Z138: 0.01347956335
B139: 2022-03-01 | C139: 21K0665223 | D139: IPCA + | E139: CRI TRX Assaí II Bari 98S 1E | F139: 14999634.18 | G139: 0.067 | I139: 0.0169540667 | J139: 0.03273967075 | K139: 0.03273967075 | N139: 2021-12-01 | O139: 20K0010253 | P139: IPCA + | Q139: CRI GPA EVBI RB Sec 1S 296S | R139: 3575488.09 | S139: 0.0609 | U139: 0.0591 | W139: 0.0208 | X139: 0.004302786862 | Y139: 41976.46554 | Z139: 0.004400876894
B140: 2022-03-01 | C140: 21G0507867 | D140: IPCA + | E140: CRI HBR ComVem Habitasec 242S 1E | F140: 13680373.82 | G140: 0.056 | I140: 0.009975395109 | J140: 0.02986012388 | K140: 0.02986012388 | N140: 2021-12-01 | O140: 21J0001207 | P140: IPCA + | Q140: CRI Tenda Virgo 307S 4E | R140: 1246128.31 | S140: 0.06302 | U140: 0.062846 | W140: 0.01742661901 | X140: 0.001499606316 | Y140: 15785.11 | Z140: 0.001533792632
B141: 2022-03-01 | C141: 21I0278118 | D141: IPCA + | E141: CRI LOG CP Virgo 362S 4E | F141: 10517114.98 | G141: 0.06620591447 | I141: 0.01316436948 | J141: 0.02295568529 | K141: 0.02295568529 | N141: 2022-01-01 | O141: 21J0043571 | P141: IPCA + | Q141: CRI GTIS Habitasec 447S 1E | R141: 154607762.4 | S141: 0.0593 | U141: 0.0593 | W141: 0.007721890771 | X141: 0.4867436598 | Y141: 5959335.782 | Z141: 0.4905574461
B142: 2022-03-01 | C142: 22A0377996 | D142: IPCA + | E142: CRI Vinci Log Castelo RB Sec 472S 1E | F142: 8467380.182 | G142: 0.068 | I142: 0.0137760446 | J142: 0.01848173336 | K142: 0.01848173336 | N142: 2022-01-01 | O142: 21I0931497 | P142: IPCA + | Q142: CRI Pátio Malzoni Virgo 329S 4E | R142: 93972042.23 | S142: 0.059193 | U142: 0.059193 | W142: 0.007853356465 | X142: 0.2958473433 | Y142: 3972042.23 | Z142: 0.2981653983
B143: 2022-03-01 | C143: 21I0682465 | D143: IPCA + | E143: CRI Vinci Shoppings Virgo 366S 4E | F143: 6946701.291 | G143: 0.0625 | I143: 0.01385285395 | J143: 0.01516255066 | K143: 0.01516255066 | N143: 2022-01-01 | O143: 21I0682465 | P143: IPCA + | Q143: CRI Vinci Shoppings Virgo 366S 4E | R143: 44999760.52 | S143: 0.06248350218 | U143: 0.062465 | W143: 0.00919343347 | X143: 0.1416704297 | Y143: 331901.6435 | Z143: 0.1427804611
B144: 2022-03-01 | C144: 21I0277499 | D144: IPCA + | E144: CRI Verticale RB Sec 383S 1E | F144: 3095004.758 | G144: 0.074979 | I144: 0.02898548073 | J144: 0.006755460538 | K144: 0.006755460538 | N144: 2022-01-01 | O144: 21I0221466 | P144: IPCA + | Q144: CRI Mogno Logístico Virgo 351S 4E | R144: 12588439.55 | S144: 0.065 | U144: 0.065 | W144: 0.01262774548 | X144: 0.03963153623 | Y144: 580240.674 | Z144: 0.03994206151
N145: 2022-01-01 | O145: 20G0800227 | P145: IPCA + | Q145: CRI GSFI CRI True 236S 1E | R145: 5999999.726 | S145: 0.05604510711 | U145: 0.052512 | W145: 0.001866790507 | X145: 0.01888949028 | Y145: 251058.1521 | Z145: 0.01903749525
N146: 2022-01-01 | O146: 21K0001807 | P146: IPCA + | Q146: CRI Rede D'Or RBSec 397S 1E | R146: 2999492.495 | S146: 0.06084326101 | U146: 0.060802 | W146: 0.007388192411 | X146: 0.009443147822 | Y146: 4462.880676 | Z146: 0.009517137791
N147: 2022-01-01 | O147: 13D0463613 | P147: CDI + | Q147: CRI Shopping Sul Gaia 52S 4E | R147: 1656332.218 | T147: 0.0425 | V147: 0.026 | W147: 0.026 | X147: 0.00521454546 | Y147: 44361.77695 | AA147: 0.6707334576
N148: 2022-01-01 | O148: 13D0463614 | P148: CDI + | Q148: CRI Shopping Sul Gaia 53S 4E | R148: 813102.099 | T148: 0.030081 | V148: 0.026 | W148: 0.026 | X148: 0.002559847484 | Y148: 1424.481361 | AA148: 0.3292665424
N149: 2022-02-01 | O149: 21E0407810 | P149: IPCA + | Q149: CRI Gazit True Sec 340S 1E | R149: 111563176.3 | S149: 0.05890561258 | U149: 0.058875 | W149: 0.005863218005 | X149: 0.2532652722 | Y149: 8066185.047 | Z149: 0.2532652722
N150: 2022-02-01 | O150: 21J0043571 | P150: IPCA + | Q150: CRI GTIS True 447S 1E | R150: 65924771.47 | S150: 0.0593 | U150: 0.0593 | W150: 0.006562880472 | X150: 0.1496591953 | Y150: 1305991.783 | Z150: 0.1496591953
N151: 2022-02-01 | O151: 21J0585266 | P151: IPCA + | Q151: CRI Via Varejo Extrema Habitasec 1E 286S | R151: 63555313.94 | S151: 0.065 | U151: 0.064938 | W151: 0.01190824769 | X151: 0.1442801686 | Y151: 2406913.46 | Z151: 0.1442801686
N152: 2022-02-01 | O152: 21J0790766 | P152: IPCA + | Q152: CRI XP Industrial True 446S 1E | R152: 62348106.96 | S152: 0.065 | U152: 0.064943 | W152: 0.01295902201 | X152: 0.1415396263 | Y152: 2348106.96 | Z152: 0.1415396263
N153: 2022-02-01 | O153: 21K0001807 | P153: IPCA + | Q153: CRI Rede D'Or RBSec 397S 1E | R153: 51902294.52 | S153: 0.06084326101 | U153: 0.060798 | W153: 0.007388402031 | X153: 0.1178260532 | Y153: 102291.0397 | Z153: 0.1178260532
N154: 2022-02-01 | O154: 21H0862845 | P154: IPCA + | Q154: CRI Plural Renda Urbana Travessia Sec 1E 82S | R154: 23010100.82 | S154: 0.065 | U154: 0.064932 | W154: 0.01103708273 | X154: 0.05223640666 | Y154: 96792.66709 | Z154: 0.05223640666
N155: 2022-02-01 | O155: 21H0865631 | P155: IPCA + | Q155: CRI Plural Renda Urbana Travessia Sec 1E 83S | R155: 22677030.58 | S155: 0.065 | U155: 0.065 | W155: 0.01182391528 | X155: 0.05148028687 | Y155: 625030.5753 | Z155: 0.05148028687
N156: 2022-02-01 | O156: 20G0800227 | P156: IPCA + | Q156: CRI GSFI CRI True 236S 1E | R156: 21248931.26 | S156: 0.05604510711 | U156: 0.055998 | W156: 0.003386552939 | X156: 0.04823828559 | Y156: 617578.3667 | Z156: 0.04823828559
N157: 2022-02-01 | O157: 21G0864354 | P157: IPCA + | Q157: CRI Via Varejo Extrema Habitasec 1E 258S | R157: 13000791.04 | S157: 0.08437147367 | U157: 0.085 | W157: 0.03189004228 | X157: 0.02951376064 | Y157: 124809.4004 | Z157: 0.02951376064
N158: 2022-02-01 | O158: 21I0682465 | P158: IPCA + | Q158: CRI Vinci Shoppings Virgo 366S 4E | R158: 3999778.113 | S158: 0.06248350218 | U158: 0.062415 | W158: 0.01135005733 | X158: 0.009080100853 | Y158: 39569.36243 | Z158: 0.009080100853
N159: 2022-02-01 | O159: 17K0150400 | P159: IPCA + | Q159: CRI BRF Embú Bari 64S 1E | R159: 1269009.713 | S159: 0.0599 | U159: 0.058621 | W159: 0.009125938748 | X159: 0.002880843851 | Y159: 551.8258595 | Z159: 0.002880843851
N160: 2022-03-01 | O160: 20G0800227 | P160: IPCA + | Q160: CRI GSFI CRI True 236S 1E | R160: 151207251.5 | S160: 0.05604510711 | U160: 0.05599933831 | W160: 0.007807000527 | X160: 0.3195763153 | Y160: 8066745.596 | Z160: 0.3195763153
N161: 2022-03-01 | O161: 21L0736590 | P161: IPCA + | Q161: CRI Madureira Shopping RBSec 470S 1E | R161: 148714483.6 | S161: 0.065 | U161: 0.065 | W161: 0.0186096397 | X161: 0.3143078537 | Y161: 3714483.56 | Z161: 0.3143078537
N162: 2022-03-01 | O162: 21L0640489 | P162: IPCA + | Q162: CRI BTLG Mauá RB Sec 466S 1E | R162: 72622344.62 | S162: 0.063 | U162: 0.063 | W162: 0.01931133722 | X162: 0.1534872241 | Y162: 2012772.133 | Z162: 0.1534872241
N163: 2022-03-01 | O163: 21I0682465 | P163: IPCA + | Q163: CRI Vinci Shoppings Virgo 366S 4E | R163: 24321236.36 | S163: 0.06248410146 | U163: 0.0625 | W163: 0.01708375334 | X163: 0.05140289915 | Y163: 618634.6187 | Z163: 0.05140289915
N164: 2022-03-01 | O164: 21G0093703 | P164: IPCA + | Q164: CRI Vinci Renda Urbana Virgo 280S 4E | R164: 22321170.51 | S164: 0.056 | U164: 0.056 | W164: 0.0114810723 | X164: 0.04717576276 | Y164: 1160590.707 | Z164: 0.04717576276
N165: 2022-03-01 | O165: 21G0864354 | P165: IPCA + | Q165: CRI Via Varejo Extrema Habitasec 1E 258S | R165: 22105665.37 | S165: 0.08437147367 | U165: 0.083785 | W165: 0.02937677009 | X165: 0.04672029294 | Y165: 513618.3552 | Z165: 0.04672029294
N166: 2022-03-01 | O166: 21H0862845 | P166: IPCA + | Q166: CRI Plural Renda Urbana Travessia Sec 1E 82S | R166: 9882880.604 | S166: 0.065 | U166: 0.065 | W166: 0.01173456452 | X166: 0.02088745438 | Y166: 144619.476 | Z166: 0.02088745438
N167: 2022-03-01 | O167: 21F1076965 | P167: IPCA + | Q167: CRI Jequitibá Plaza Shopping Habitasec 259S 1E | R167: 9342355.065 | S167: 0.05944690694 | U167: 0.059447 | W167: 0.007022018487 | X167: 0.01974505441 | Y167: 219043.8983 | Z167: 0.01974505441
N168: 2022-03-01 | O168: 21I0278118 | P168: IPCA + | Q168: CRI LOG CP Virgo 362S 4E | R168: 8142302.148 | S168: 0.0679 | U168: 0.06461279937 | W168: 0.01470663236 | X168: 0.01720874424 | Y168: 142052.8776 | Z168: 0.01720874424
N169: 2022-03-01 | O169: 21L0736589 | P169: IPCA + | Q169: CRI Madureira Shopping RBSec 468S 1E | R169: 2047969.344 | S169: 0.065 | U169: 0.065 | W169: 0.01979337486 | X169: 0.004328380354 | Y169: 47969.344 | Z169: 0.004328380354
N170: 2022-03-01 | O170: 21I0931497 | P170: IPCA + | Q170: CRI Pátio Malzoni Virgo 329S 4E | R170: 1441305.996 | S170: 0.059193 | U170: 0.05946541448 | W170: 0.009892435278 | X170: 0.003046198214 | Y170: 3691.251291 | Z170: 0.003046198214
N171: 2022-03-01 | O171: 21K0665223 | P171: IPCA + | Q171: CRI TRX Assaí II Bari 98S 1E | R171: 1000152.26 | S171: 0.0674069411 | U171: 0.067 | W171: 0.01943282452 | X171: 0.002113820407 | Y171: 18865.38833 | Z171: 0.002113820407
